Workbook

Sheet Right-Click
B2: Use of Right-Clicking
B4: 123 | C4: =B4+1 -> 124 | D4: =C4+1 -> 125 | F4: =D4+1 -> 126 | G4: 127 | H4: 128 | I4: 129 | J4: 130 | K4: 131 | L4: 132 | M4: 133 | N4: 134 | O4: 135 | P4: 136 | Q4: 137 | R4: 138 | S4: 139 | T4: 140 | U4: 141 | V4: 142 | X4: =V4+1 -> 143 | Y4: 144 | Z4: 145 | AA4: 146 | AB4: 147 | AC4: 148 | AD4: 149 | AF4: =AD4+1 -> 150 | AG4: 151 | AH4: =AG4+1 -> 152 | AI4: =AH4+1 -> 153 | AJ4: 154 | AK4: 155 | AL4: 156 | AM4: 157 | AN4: 158 | AO4: 159
B5: 43 | C5: =B5+1 -> 44 | D5: 45 | F5: 46 | G5: 47 | H5: 48 | I5: 49 | J5: 50 | K5: 51 | L5: 52 | M5: 53 | N5: 54 | O5: 55 | P5: 56 | Q5: 57 | R5: 58 | S5: 59 | T5: 60 | U5: 61 | V5: 62 | X5: 63 | Y5: 64 | Z5: 65 | AA5: 66 | AB5: 67 | AC5: 68 | AD5: 69 | AF5: 70 | AG5: 71 | AH5: =AG5+1 -> 72 | AI5: 73 | AJ5: 74 | AK5: 75 | AL5: 76 | AM5: 77 | AN5: 78 | AO5: 79
B6: 567 | C6: 568 | D6: 569 | F6: 570 | G6: 571 | H6: 572 | I6: 573 | J6: 574 | K6: 575 | L6: 576 | M6: 577 | N6: 578 | O6: 579 | P6: 580 | Q6: 581 | R6: 582 | S6: 583 | T6: 584 | U6: 585 | V6: 586 | X6: 587 | Y6: 588 | Z6: 589 | AA6: 590 | AB6: 591 | AC6: 592 | AD6: 593 | AF6: 594 | AG6: 595 | AH6: =AG6+1 -> 596 | AI6: 597 | AJ6: 598 | AK6: 599 | AL6: 600 | AM6: 601 | AN6: 602 | AO6: 603
B7: 78 | C7: 79 | D7: 80 | F7: 81 | G7: 82 | H7: 83 | I7: 84 | J7: 85 | K7: 86 | L7: 87 | M7: 88 | N7: 89 | O7: 90 | P7: 91 | Q7: 92 | R7: 93 | S7: 94 | T7: 95 | U7: 96 | V7: 97 | X7: 98 | Y7: 99 | Z7: 100 | AA7: 101 | AB7: 102 | AC7: 103 | AD7: 104 | AF7: 105 | AG7: 106 | AH7: =AG7+1 -> 107 | AI7: 108 | AJ7: 109 | AK7: 110 | AL7: 111 | AM7: 112 | AN7: 113 | AO7: 114
B8: 34 | C8: 35 | D8: 36 | F8: 37 | G8: 38 | H8: 39 | I8: 40 | J8: 41 | K8: 42 | L8: 43 | M8: 44 | N8: 45 | O8: 46 | P8: 47 | Q8: 48 | R8: 49 | S8: 50 | T8: 51 | U8: 52 | V8: 53 | X8: 54 | Y8: 55 | Z8: 56 | AA8: 57 | AB8: 58 | AC8: 59 | AD8: 60 | AF8: 61 | AG8: 62 | AH8: =AG8+1 -> 63 | AI8: 64 | AJ8: 65 | AK8: 66 | AL8: 67 | AM8: 68 | AN8: 69 | AO8: 70
B9: 568 | C9: 569 | D9: 570 | F9: 571 | G9: 572 | H9: 573 | I9: 574 | J9: 575 | K9: 576 | L9: 577 | M9: 578 | N9: 579 | O9: 580 | P9: 581 | Q9: 582 | R9: 583 | S9: 584 | T9: 585 | U9: 586 | V9: 587 | X9: 588 | Y9: 589 | Z9: 590 | AA9: 591 | AB9: 592 | AC9: 593 | AD9: 594 | AF9: 595 | AG9: 596 | AH9: =AG9+1 -> 597 | AI9: 598 | AJ9: 599 | AK9: 600 | AL9: 601 | AM9: 602 | AN9: 603 | AO9: 604
B10: 41 | C10: 42 | D10: 43 | F10: 44 | G10: 45 | H10: 46 | I10: 47 | J10: 48 | K10: 49 | L10: 50 | M10: 51 | N10: 52 | O10: 53 | P10: 54 | Q10: 55 | R10: 56 | S10: 57 | T10: 58 | U10: 59 | V10: 60 | X10: 61 | Y10: 62 | Z10: 63 | AA10: 64 | AB10: 65 | AC10: 66 | AD10: 67 | AF10: 68 | AG10: 69 | AH10: =AG10+1 -> 70 | AI10: 71 | AJ10: 72 | AK10: 73 | AL10: 74 | AM10: 75 | AN10: 76 | AO10: 77
B11: 54 | C11: 55 | D11: 56 | F11: 57 | G11: 58 | H11: 59 | I11: 60 | J11: 61 | K11: 62 | L11: 63 | M11: 64 | N11: 65 | O11: 66 | P11: 67 | Q11: 68 | R11: 69 | S11: 70 | T11: 71 | U11: 72 | V11: 73 | X11: 74 | Y11: 75 | Z11: 76 | AA11: 77 | AB11: 78 | AC11: 79 | AD11: 80 | AF11: 81 | AG11: 82 | AH11: =AG11+1 -> 83 | AI11: 84 | AJ11: 85 | AK11: 86 | AL11: 87 | AM11: 88 | AN11: 89 | AO11: 90
B12: 879 | C12: 880 | D12: 881 | F12: 882 | G12: 883 | H12: 884 | I12: 885 | J12: 886 | K12: 887 | L12: 888 | M12: 889 | N12: 890 | O12: 891 | P12: 892 | Q12: 893 | R12: 894 | S12: 895 | T12: 896 | U12: 897 | V12: 898 | X12: 899 | Y12: 900 | Z12: 901 | AA12: 902 | AB12: 903 | AC12: 904 | AD12: 905 | AF12: 906 | AG12: 907 | AH12: =AG12+1 -> 908 | AI12: 909 | AJ12: 910 | AK12: 911 | AL12: 912 | AM12: 913 | AN12: 914 | AO12: 915
B13: 53 | C13: 54 | D13: 55 | F13: 56 | G13: 57 | H13: 58 | I13: 59 | J13: 60 | K13: 61 | L13: 62 | M13: 63 | N13: 64 | O13: 65 | P13: 66 | Q13: 67 | R13: 68 | S13: 69 | T13: 70 | U13: 71 | V13: 72 | X13: 73 | Y13: 74 | Z13: 75 | AA13: 76 | AB13: 77 | AC13: 78 | AD13: 79 | AF13: 80 | AG13: 81 | AH13: =AG13+1 -> 82 | AI13: 83 | AJ13: 84 | AK13: 85 | AL13: 86 | AM13: 87 | AN13: 88 | AO13: 89
B14: 56 | C14: 57 | D14: =C14+1 -> 58 | F14: 59 | G14: 60 | H14: 61 | I14: 62 | J14: 63 | K14: 64 | L14: 65 | M14: 66 | N14: 67 | O14: 68 | P14: 69 | Q14: 70 | R14: 71 | S14: 72 | T14: 73 | U14: 74 | V14: 75 | X14: 76 | Y14: 77 | Z14: 78 | AA14: 79 | AB14: 80 | AC14: 81 | AD14: 82 | AF14: 83 | AG14: 84 | AH14: =AG14+1 -> 85 | AI14: 86 | AJ14: 87 | AK14: 88 | AL14: 89 | AM14: 90 | AN14: 91 | AO14: 92
B15: 897 | C15: 898 | D15: 899 | F15: 900 | G15: 901 | H15: 902 | I15: 903 | J15: 904 | K15: 905 | L15: 906 | M15: 907 | N15: 908 | O15: 909 | P15: 910 | Q15: 911 | R15: 912 | S15: 913 | T15: 914 | U15: 915 | V15: 916 | X15: 917 | Y15: 918 | Z15: 919 | AA15: 920 | AB15: 921 | AC15: 922 | AD15: 923 | AF15: 924 | AG15: 925 | AH15: =AG15+1 -> 926 | AI15: 927 | AJ15: 928 | AK15: 929 | AL15: 930 | AM15: 931 | AN15: 932 | AO15: 933
B16: 90 | C16: 91 | D16: 92 | F16: 93 | G16: 94 | H16: 95 | I16: 96 | J16: 97 | K16: 98 | L16: 99 | M16: 100 | N16: 101 | O16: 102 | P16: 103 | Q16: 104 | R16: 105 | S16: 106 | T16: 107 | U16: 108 | V16: 109 | X16: 110 | Y16: 111 | Z16: 112 | AA16: 113 | AB16: 114 | AC16: 115 | AD16: 116 | AF16: 117 | AG16: 118 | AH16: =AG16+1 -> 119 | AI16: 120 | AJ16: 121 | AK16: 122 | AL16: 123 | AM16: 124 | AN16: 125 | AO16: 126
B17: 543 | C17: 544 | D17: 545 | F17: 546 | G17: 547 | H17: 548 | I17: 549 | J17: 550 | K17: 551 | L17: 552 | M17: 553 | N17: 554 | O17: 555 | P17: 556 | Q17: 557 | R17: 558 | S17: 559 | T17: 560 | U17: 561 | V17: 562 | X17: 563 | Y17: 564 | Z17: 565 | AA17: 566 | AB17: 567 | AC17: 568 | AD17: 569 | AF17: 570 | AG17: 571 | AH17: =AG17+1 -> 572 | AI17: 573 | AJ17: 574 | AK17: 575 | AL17: 576 | AM17: 577 | AN17: 578 | AO17: 579
B18: 64 | C18: 65 | D18: 66 | F18: 67 | G18: 68 | H18: 69 | I18: 70 | J18: 71 | K18: 72 | L18: 73 | M18: 74 | N18: 75 | O18: 76 | P18: 77 | Q18: 78 | R18: 79 | S18: 80 | T18: 81 | U18: 82 | V18: 83 | X18: 84 | Y18: 85 | Z18: 86 | AA18: 87 | AB18: 88 | AC18: 89 | AD18: 90 | AF18: 91 | AG18: 92 | AH18: =AG18+1 -> 93 | AI18: 94 | AJ18: 95 | AK18: 96 | AL18: 97 | AM18: 98 | AN18: 99 | AO18: 100
B19: =C13+3 -> 57 | C19: =D13+3 -> 58 | D19: =F13+3 -> 59 | F19: 60 | G19: 61 | H19: 62 | I19: 63 | J19: 64 | K19: 65 | L19: 66 | M19: 67 | N19: 68 | O19: 69 | P19: 70 | Q19: 71 | R19: 72 | S19: 73 | T19: 74 | U19: 75 | V19: 76 | X19: 77 | Y19: 78 | Z19: 79 | AA19: 80 | AB19: 81 | AC19: 82 | AD19: 83 | AF19: 84 | AG19: 85 | AH19: =AG19+1 -> 86 | AI19: 87 | AJ19: 88 | AK19: 89 | AL19: 90 | AM19: 91 | AN19: 92 | AO19: 93
B20: =C14+3 -> 60 | C20: 61 | D20: 62 | F20: 63 | G20: 64 | H20: =G20+1 -> 65 | I20: 66 | J20: 67 | K20: 68 | L20: 69 | M20: 70 | N20: 71 | O20: 72 | P20: 73 | Q20: 74 | R20: 75 | S20: 76 | T20: 77 | U20: 78 | V20: 79 | X20: 80 | Y20: 81 | Z20: 82 | AA20: 83 | AB20: 84 | AC20: 85 | AD20: 86 | AF20: 87 | AG20: 88 | AH20: =AG20+1 -> 89 | AI20: 90 | AJ20: 91 | AK20: 92 | AL20: 93 | AM20: 94 | AN20: 95 | AO20: 96
B21: 901 | C21: 902 | D21: 903 | F21: 904 | G21: 905 | H21: 906 | I21: 907 | J21: 908 | K21: 909 | L21: 910 | M21: 911 | N21: 912 | O21: 913 | P21: 914 | Q21: 915 | R21: 916 | S21: 917 | T21: 918 | U21: 919 | V21: 920 | X21: 921 | Y21: 922 | Z21: 923 | AA21: 924 | AB21: 925 | AC21: 926 | AD21: 927 | AF21: 928 | AG21: 929 | AH21: =AG21+1 -> 930 | AI21: 931 | AJ21: 932 | AK21: 933 | AL21: 934 | AM21: 935 | AN21: 936 | AO21: 937
B22: 94 | C22: 95 | D22: 96 | F22: 97 | G22: 98 | H22: 99 | I22: 100 | J22: 101 | K22: 102 | L22: 103 | M22: 104 | N22: 105 | O22: 106 | P22: 107 | Q22: 108 | R22: 109 | S22: 110 | T22: 111 | U22: 112 | V22: 113 | X22: 114 | Y22: 115 | Z22: 116 | AA22: 117 | AB22: 118 | AC22: 119 | AD22: 120 | AF22: 121 | AG22: 122 | AH22: =AG22+1 -> 123 | AI22: 124 | AJ22: 125 | AK22: 126 | AL22: 127 | AM22: 128 | AN22: 129 | AO22: 130
B23: 547 | C23: 548 | D23: 549 | F23: 550 | G23: 551 | H23: 552 | I23: 553 | J23: 554 | K23: 555 | L23: 556 | M23: 557 | N23: 558 | O23: 559 | P23: 560 | Q23: 561 | R23: 562 | S23: 563 | T23: 564 | U23: 565 | V23: 566 | X23: 567 | Y23: 568 | Z23: 569 | AA23: 570 | AB23: 571 | AC23: 572 | AD23: 573 | AF23: 574 | AG23: 575 | AH23: =AG23+1 -> 576 | AI23: 577 | AJ23: 578 | AK23: 579 | AL23: 580 | AM23: 581 | AN23: 582 | AO23: 583
B24: 68 | C24: 69 | D24: 70 | F24: 71 | G24: 72 | H24: =G24+1 -> 73 | I24: 74 | J24: 75 | K24: 76 | L24: 77 | M24: 78 | N24: 79 | O24: 80 | P24: 81 | Q24: 82 | R24: 83 | S24: 84 | T24: 85 | U24: 86 | V24: 87 | X24: 88 | Y24: 89 | Z24: 90 | AA24: 91 | AB24: 92 | AC24: 93 | AD24: 94 | AF24: 95 | AG24: 96 | AH24: 97 | AI24: 98 | AJ24: 99 | AK24: 100 | AL24: 101 | AM24: 102 | AN24: 103 | AO24: 104
B25: 61 | C25: 62 | D25: 63 | F25: 64 | G25: 65 | H25: 66 | I25: 67 | J25: 68 | K25: 69 | L25: 70 | M25: 71 | N25: 72 | O25: 73 | P25: 74 | Q25: 75 | R25: 76 | S25: 77 | T25: 78 | U25: 79 | V25: 80 | X25: 81 | Y25: 82 | Z25: 83 | AA25: 84 | AB25: 85 | AC25: 86 | AD25: 87 | AF25: 88 | AG25: 89 | AH25: 90 | AI25: 91 | AJ25: 92 | AK25: 93 | AL25: 94 | AM25: 95 | AN25: 96 | AO25: 97
B26: 64 | C26: 65 | D26: 66 | F26: 67 | G26: 68 | H26: 69 | I26: 70 | J26: 71 | K26: 72 | L26: 73 | M26: 74 | N26: 75 | O26: 76 | P26: 77 | Q26: 78 | R26: 79 | S26: 80 | T26: 81 | U26: 82 | V26: 83 | X26: 84 | Y26: 85 | Z26: 86 | AA26: 87 | AB26: 88 | AC26: 89 | AD26: 90 | AF26: 91 | AG26: 92 | AH26: 93 | AI26: 94 | AJ26: 95 | AK26: 96 | AL26: 97 | AM26: 98 | AN26: 99 | AO26: 100
B27: 905 | C27: 906 | D27: 907 | F27: 908 | G27: 909 | H27: 910 | I27: 911 | J27: 912 | K27: 913 | L27: 914 | M27: 915 | N27: 916 | O27: 917 | P27: 918 | Q27: 919 | R27: 920 | S27: 921 | T27: 922 | U27: 923 | V27: 924 | X27: 925 | Y27: 926 | Z27: 927 | AA27: 928 | AB27: 929 | AC27: 930 | AD27: 931 | AF27: 932 | AG27: 933 | AH27: 934 | AI27: 935 | AJ27: 936 | AK27: 937 | AL27: 938 | AM27: 939 | AN27: 940 | AO27: 941
B28: =C22+3 -> 98 | C28: 99 | D28: 100 | F28: 101 | G28: 102 | H28: 103 | I28: 104 | J28: 105 | K28: 106 | L28: 107 | M28: 108 | N28: 109 | O28: 110 | P28: 111 | Q28: 112 | R28: 113 | S28: 114 | T28: 115 | U28: 116 | V28: 117 | X28: 118 | Y28: 119 | Z28: 120 | AA28: 121 | AB28: 122 | AC28: 123 | AD28: 124 | AF28: 125 | AG28: 126 | AH28: 127 | AI28: 128 | AJ28: 129 | AK28: 130 | AL28: 131 | AM28: 132 | AN28: 133 | AO28: 134
B29: =C23+3 -> 551 | C29: 552 | D29: 553 | F29: 554 | G29: 555 | H29: 556 | I29: 557 | J29: 558 | K29: 559 | L29: 560 | M29: 561 | N29: 562 | O29: 563 | P29: 564 | Q29: 565 | R29: 566 | S29: 567 | T29: 568 | U29: 569 | V29: 570 | X29: 571 | Y29: 572 | Z29: 573 | AA29: 574 | AB29: 575 | AC29: 576 | AD29: 577 | AF29: 578 | AG29: 579 | AH29: 580 | AI29: 581 | AJ29: 582 | AK29: 583 | AL29: 584 | AM29: 585 | AN29: 586 | AO29: 587
B30: =C24+3 -> 72 | C30: 73 | D30: 74 | F30: 75 | G30: 76 | H30: 77 | I30: 78 | J30: 79 | K30: 80 | L30: 81 | M30: 82 | N30: 83 | O30: 84 | P30: 85 | Q30: 86 | R30: 87 | S30: 88 | T30: 89 | U30: 90 | V30: 91 | X30: 92 | Y30: 93 | Z30: 94 | AA30: 95 | AB30: 96 | AC30: 97 | AD30: 98 | AF30: 99 | AG30: 100 | AH30: 101 | AI30: 102 | AJ30: 103 | AK30: 104 | AL30: 105 | AM30: 106 | AN30: 107 | AO30: 108
B31: =C25+3 -> 65 | C31: 66 | D31: 67 | F31: 68 | G31: 69 | H31: 70 | I31: 71 | J31: 72 | K31: 73 | L31: 74 | M31: 75 | N31: =M31+1 -> 76 | O31: 77 | P31: 78 | Q31: 79 | R31: 80 | S31: 81 | T31: 82 | U31: 83 | V31: 84 | X31: 85 | Y31: 86 | Z31: 87 | AA31: 88 | AB31: 89 | AC31: 90 | AD31: 91 | AF31: 92 | AG31: 93 | AH31: 94 | AI31: 95 | AJ31: 96 | AK31: 97 | AL31: 98 | AM31: 99 | AN31: 100 | AO31: 101
B32: =C26+3 -> 68 | C32: 69 | D32: 70 | F32: 71 | G32: 72 | H32: 73 | I32: 74 | J32: 75 | K32: 76 | L32: 77 | M32: 78 | N32: 79 | O32: 80 | P32: 81 | Q32: 82 | R32: 83 | S32: 84 | T32: 85 | U32: 86 | V32: 87 | X32: 88 | Y32: 89 | Z32: 90 | AA32: 91 | AB32: 92 | AC32: 93 | AD32: 94 | AF32: 95 | AG32: 96 | AH32: 97 | AI32: 98 | AJ32: 99 | AK32: 100 | AL32: 101 | AM32: 102 | AN32: 103 | AO32: 104
B33: =C27+3 -> 909 | C33: 910 | D33: 911 | F33: 912 | G33: 913 | H33: 914 | I33: 915 | J33: 916 | K33: 917 | L33: 918 | M33: 919 | N33: 920 | O33: 921 | P33: 922 | Q33: 923 | R33: 924 | S33: 925 | T33: 926 | U33: 927 | V33: 928 | X33: 929 | Y33: 930 | Z33: 931 | AA33: 932 | AB33: 933 | AC33: 934 | AD33: 935 | AF33: 936 | AG33: 937 | AH33: 938 | AI33: 939 | AJ33: 940 | AK33: 941 | AL33: 942 | AM33: 943 | AN33: 944 | AO33: 945
B34: =C28+3 -> 102 | C34: 103 | D34: 104 | F34: 105 | G34: 106 | H34: 107 | I34: 108 | J34: 109 | K34: 110 | L34: 111 | M34: 112 | N34: 113 | O34: 114 | P34: 115 | Q34: 116 | R34: 117 | S34: 118 | T34: 119 | U34: 120 | V34: 121 | X34: 122 | Y34: 123 | Z34: 124 | AA34: 125 | AB34: 126 | AC34: 127 | AD34: 128 | AF34: 129 | AG34: 130 | AH34: 131 | AI34: 132 | AJ34: 133 | AK34: 134 | AL34: 135 | AM34: 136 | AN34: 137 | AO34: 138
B35: =C29+3 -> 555 | C35: 556 | D35: 557 | F35: 558 | G35: 559 | H35: =G35+1 -> 560 | I35: 561 | J35: 562 | K35: 563 | L35: 564 | M35: 565 | N35: 566 | O35: 567 | P35: 568 | Q35: 569 | R35: 570 | S35: 571 | T35: 572 | U35: 573 | V35: 574 | X35: 575 | Y35: 576 | Z35: 577 | AA35: 578 | AB35: 579 | AC35: 580 | AD35: 581 | AF35: 582 | AG35: 583 | AH35: 584 | AI35: 585 | AJ35: 586 | AK35: 587 | AL35: 588 | AM35: 589 | AN35: 590 | AO35: 591
B36: =C30+3 -> 76 | C36: =D30+3 -> 77 | D36: 78 | F36: 79 | G36: 80 | H36: 81 | I36: 82 | J36: 83 | K36: 84 | L36: 85 | M36: 86 | N36: 87 | O36: 88 | P36: 89 | Q36: 90 | R36: 91 | S36: 92 | T36: 93 | U36: 94 | V36: 95 | X36: 96 | Y36: 97 | Z36: 98 | AA36: 99 | AB36: 100 | AC36: 101 | AD36: 102 | AF36: 103 | AG36: 104 | AH36: 105 | AI36: 106 | AJ36: 107 | AK36: 108 | AL36: 109 | AM36: 110 | AN36: 111 | AO36: 112
B37: =C31+3 -> 69 | C37: 70 | D37: 71 | F37: 72 | G37: 73 | H37: 74 | I37: 75 | J37: 76 | K37: 77 | L37: 78 | M37: 79 | N37: 80 | O37: 81 | P37: 82 | Q37: 83 | R37: 84 | S37: 85 | T37: 86 | U37: 87 | V37: 88 | X37: 89 | Y37: 90 | Z37: 91 | AA37: 92 | AB37: 93 | AC37: 94 | AD37: 95 | AF37: 96 | AG37: 97 | AH37: 98 | AI37: 99 | AJ37: 100 | AK37: 101 | AL37: 102 | AM37: 103 | AN37: 104 | AO37: 105
B38: =C32+3 -> 72 | C38: 73 | D38: 74 | F38: 75 | G38: 76 | H38: 77 | I38: 78 | J38: 79 | K38: 80 | L38: 81 | M38: 82 | N38: 83 | O38: 84 | P38: 85 | Q38: 86 | R38: 87 | S38: 88 | T38: 89 | U38: 90 | V38: 91 | X38: 92 | Y38: 93 | Z38: 94 | AA38: 95 | AB38: 96 | AC38: 97 | AD38: 98 | AF38: 99 | AG38: 100 | AH38: 101 | AI38: 102 | AJ38: 103 | AK38: 104 | AL38: 105 | AM38: 106 | AN38: 107 | AO38: =AN38+1 -> 108
B39: =C33+3 -> 913 | C39: 914 | D39: 915 | F39: 916 | G39: 917 | H39: =G39+1 -> 918 | I39: 919 | J39: 920 | K39: 921 | L39: 922 | M39: 923 | N39: 924 | O39: 925 | P39: 926 | Q39: 927 | R39: 928 | S39: 929 | T39: 930 | U39: 931 | V39: 932 | X39: 933 | Y39: 934 | Z39: 935 | AA39: 936 | AB39: 937 | AC39: 938 | AD39: 939 | AF39: 940 | AG39: 941 | AH39: 942 | AI39: 943 | AJ39: 944 | AK39: 945 | AL39: 946 | AM39: 947 | AN39: 948 | AO39: 949
B40: 619.8380952 | C40: =B40+1 -> 620.8380952 | D40: 621.8380952 | F40: =D40+1 -> 622.8380952 | G40: 623.8380952 | H40: 624.8380952 | I40: 625.8380952 | J40: 626.8380952 | K40: 627.8380952 | L40: 628.8380952 | M40: 629.8380952 | N40: 630.8380952 | O40: 631.8380952 | P40: 632.8380952 | Q40: 633.8380952 | R40: 634.8380952 | S40: 635.8380952 | T40: 636.8380952 | U40: 637.8380952 | V40: 638.8380952 | X40: 639.8380952 | Y40: 640.8380952 | Z40: 641.8380952 | AA40: 642.8380952 | AB40: 643.8380952 | AC40: 644.8380952 | AD40: 645.8380952 | AF40: 646.8380952 | AG40: 647.8380952 | AH40: 648.8380952 | AI40: 649.8380952 | AJ40: 650.8380952 | AK40: 651.8380952 | AL40: 652.8380952 | AM40: 653.8380952 | AN40: 654.8380952 | AO40: 655.8380952
B41: 631.8095238 | C41: =B41+1 -> 632.8095238 | D41: 633.8095238 | F41: 634.8095238 | G41: 635.8095238 | H41: 636.8095238 | I41: 637.8095238 | J41: 638.8095238 | K41: 639.8095238 | L41: 640.8095238 | M41: 641.8095238 | N41: 642.8095238 | O41: 643.8095238 | P41: 644.8095238 | Q41: 645.8095238 | R41: 646.8095238 | S41: 647.8095238 | T41: 648.8095238 | U41: 649.8095238 | V41: 650.8095238 | X41: 651.8095238 | Y41: 652.8095238 | Z41: 653.8095238 | AA41: 654.8095238 | AB41: 655.8095238 | AC41: 656.8095238 | AD41: 657.8095238 | AF41: 658.8095238 | AG41: 659.8095238 | AH41: =AG41+1 -> 660.8095238 | AI41: =AH41+1 -> 661.8095238 | AJ41: 662.8095238 | AK41: 663.8095238 | AL41: 664.8095238 | AM41: 665.8095238 | AN41: 666.8095238 | AO41: 667.8095238
B42: 643.7809524 | C42: =B42+1 -> 644.7809524 | D42: 645.7809524 | F42: 646.7809524 | G42: 647.7809524 | H42: 648.7809524 | I42: 649.7809524 | J42: 650.7809524 | K42: 651.7809524 | L42: 652.7809524 | M42: 653.7809524 | N42: 654.7809524 | O42: 655.7809524 | P42: 656.7809524 | Q42: 657.7809524 | R42: 658.7809524 | S42: 659.7809524 | T42: 660.7809524 | U42: 661.7809524 | V42: 662.7809524 | X42: 663.7809524 | Y42: 664.7809524 | Z42: 665.7809524 | AA42: 666.7809524 | AB42: 667.7809524 | AC42: 668.7809524 | AD42: 669.7809524 | AF42: 670.7809524 | AG42: 671.7809524 | AH42: 672.7809524 | AI42: 673.7809524 | AJ42: 674.7809524 | AK42: 675.7809524 | AL42: 676.7809524 | AM42: 677.7809524 | AN42: 678.7809524 | AO42: 679.7809524
B43: 655.752381 | C43: =B43+1 -> 656.752381 | D43: 657.752381 | F43: 658.752381 | G43: 659.752381 | H43: 660.752381 | I43: 661.752381 | J43: 662.752381 | K43: 663.752381 | L43: 664.752381 | M43: 665.752381 | N43: 666.752381 | O43: 667.752381 | P43: 668.752381 | Q43: 669.752381 | R43: 670.752381 | S43: 671.752381 | T43: 672.752381 | U43: 673.752381 | V43: 674.752381 | X43: 675.752381 | Y43: 676.752381 | Z43: 677.752381 | AA43: 678.752381 | AB43: 679.752381 | AC43: 680.752381 | AD43: 681.752381 | AF43: 682.752381 | AG43: 683.752381 | AH43: 684.752381 | AI43: 685.752381 | AJ43: 686.752381 | AK43: 687.752381 | AL43: 688.752381 | AM43: 689.752381 | AN43: 690.752381 | AO43: 691.752381
B44: 667.7238095 | C44: =B44+1 -> 668.7238095 | D44: 669.7238095 | F44: 670.7238095 | G44: 671.7238095 | H44: 672.7238095 | I44: 673.7238095 | J44: 674.7238095 | K44: 675.7238095 | L44: 676.7238095 | M44: 677.7238095 | N44: 678.7238095 | O44: 679.7238095 | P44: 680.7238095 | Q44: 681.7238095 | R44: 682.7238095 | S44: 683.7238095 | T44: 684.7238095 | U44: 685.7238095 | V44: 686.7238095 | X44: 687.7238095 | Y44: 688.7238095 | Z44: 689.7238095 | AA44: 690.7238095 | AB44: 691.7238095 | AC44: 692.7238095 | AD44: 693.7238095 | AF44: 694.7238095 | AG44: 695.7238095 | AH44: 696.7238095 | AI44: 697.7238095 | AJ44: 698.7238095 | AK44: 699.7238095 | AL44: 700.7238095 | AM44: 701.7238095 | AN44: 702.7238095 | AO44: 703.7238095
B45: 679.6952381 | C45: =B45+1 -> 680.6952381 | D45: 681.6952381 | F45: 682.6952381 | G45: 683.6952381 | H45: 684.6952381 | I45: 685.6952381 | J45: 686.6952381 | K45: 687.6952381 | L45: 688.6952381 | M45: 689.6952381 | N45: 690.6952381 | O45: 691.6952381 | P45: 692.6952381 | Q45: 693.6952381 | R45: 694.6952381 | S45: 695.6952381 | T45: 696.6952381 | U45: 697.6952381 | V45: 698.6952381 | X45: 699.6952381 | Y45: 700.6952381 | Z45: 701.6952381 | AA45: 702.6952381 | AB45: 703.6952381 | AC45: 704.6952381 | AD45: 705.6952381 | AF45: 706.6952381 | AG45: 707.6952381 | AH45: 708.6952381 | AI45: 709.6952381 | AJ45: 710.6952381 | AK45: 711.6952381 | AL45: 712.6952381 | AM45: 713.6952381 | AN45: 714.6952381 | AO45: 715.6952381
B46: 691.6666667 | C46: =B46+1 -> 692.6666667 | D46: 693.6666667 | F46: 694.6666667 | G46: 695.6666667 | H46: 696.6666667 | I46: 697.6666667 | J46: 698.6666667 | K46: 699.6666667 | L46: 700.6666667 | M46: 701.6666667 | N46: 702.6666667 | O46: 703.6666667 | P46: 704.6666667 | Q46: 705.6666667 | R46: 706.6666667 | S46: 707.6666667 | T46: 708.6666667 | U46: 709.6666667 | V46: 710.6666667 | X46: 711.6666667 | Y46: 712.6666667 | Z46: 713.6666667 | AA46: 714.6666667 | AB46: 715.6666667 | AC46: 716.6666667 | AD46: 717.6666667 | AF46: 718.6666667 | AG46: 719.6666667 | AH46: 720.6666667 | AI46: 721.6666667 | AJ46: 722.6666667 | AK46: 723.6666667 | AL46: 724.6666667 | AM46: =AL46+1 -> 725.6666667 | AN46: 726.6666667 | AO46: 727.6666667
B47: 703.6380952 | C47: =B47+1 -> 704.6380952 | D47: 705.6380952 | F47: 706.6380952 | G47: 707.6380952 | H47: 708.6380952 | I47: 709.6380952 | J47: 710.6380952 | K47: 711.6380952 | L47: 712.6380952 | M47: 713.6380952 | N47: 714.6380952 | O47: 715.6380952 | P47: 716.6380952 | Q47: 717.6380952 | R47: 718.6380952 | S47: 719.6380952 | T47: 720.6380952 | U47: 721.6380952 | V47: 722.6380952 | X47: 723.6380952 | Y47: 724.6380952 | Z47: 725.6380952 | AA47: 726.6380952 | AB47: 727.6380952 | AC47: 728.6380952 | AD47: 729.6380952 | AF47: 730.6380952 | AG47: 731.6380952 | AH47: 732.6380952 | AI47: 733.6380952 | AJ47: 734.6380952 | AK47: 735.6380952 | AL47: 736.6380952 | AM47: 737.6380952 | AN47: 738.6380952 | AO47: 739.6380952
B48: 715.6095238 | C48: =B48+1 -> 716.6095238 | D48: 717.6095238 | F48: 718.6095238 | G48: 719.6095238 | H48: 720.6095238 | I48: 721.6095238 | J48: 722.6095238 | K48: 723.6095238 | L48: 724.6095238 | M48: 725.6095238 | N48: 726.6095238 | O48: 727.6095238 | P48: 728.6095238 | Q48: 729.6095238 | R48: 730.6095238 | S48: 731.6095238 | T48: 732.6095238 | U48: 733.6095238 | V48: 734.6095238 | X48: 735.6095238 | Y48: 736.6095238 | Z48: 737.6095238 | AA48: 738.6095238 | AB48: 739.6095238 | AC48: 740.6095238 | AD48: 741.6095238 | AF48: 742.6095238 | AG48: 743.6095238 | AH48: 744.6095238 | AI48: 745.6095238 | AJ48: 746.6095238 | AK48: 747.6095238 | AL48: 748.6095238 | AM48: 749.6095238 | AN48: 750.6095238 | AO48: 751.6095238
B49: 727.5809524 | C49: =B49+1 -> 728.5809524 | D49: 729.5809524 | F49: 730.5809524 | G49: 731.5809524 | H49: 732.5809524 | I49: 733.5809524 | J49: 734.5809524 | K49: 735.5809524 | L49: 736.5809524 | M49: 737.5809524 | N49: 738.5809524 | O49: 739.5809524 | P49: 740.5809524 | Q49: 741.5809524 | R49: 742.5809524 | S49: 743.5809524 | T49: 744.5809524 | U49: 745.5809524 | V49: 746.5809524 | X49: 747.5809524 | Y49: 748.5809524 | Z49: 749.5809524 | AA49: 750.5809524 | AB49: 751.5809524 | AC49: 752.5809524 | AD49: 753.5809524 | AF49: 754.5809524 | AG49: 755.5809524 | AH49: 756.5809524 | AI49: 757.5809524 | AJ49: 758.5809524 | AK49: 759.5809524 | AL49: 760.5809524 | AM49: 761.5809524 | AN49: 762.5809524 | AO49: 763.5809524

Sheet Keyboard Shortcut
B2: Use of Keyboard Shortcut
B4: 123 | C4: =B4+1 -> 124 | D4: =C4+1 -> 125 | F4: =D4+1 -> 126 | G4: 127 | H4: 128 | I4: 129 | J4: 130 | K4: 131 | L4: 132 | M4: 133 | N4: 134 | O4: 135 | P4: 136 | Q4: 137 | R4: 138 | S4: 139 | T4: 140 | U4: 141 | V4: 142 | X4: =V4+1 -> 143 | Y4: 144 | Z4: 145 | AA4: 146 | AB4: 147 | AC4: 148 | AD4: 149 | AF4: =AD4+1 -> 150 | AG4: 151 | AH4: =AG4+1 -> 152 | AI4: =AH4+1 -> 153 | AJ4: 154 | AK4: 155 | AL4: 156 | AM4: 157 | AN4: 158 | AO4: 159
B5: 43 | C5: =B5+1 -> 44 | D5: 45 | F5: 46 | G5: 47 | H5: 48 | I5: 49 | J5: 50 | K5: 51 | L5: 52 | M5: 53 | N5: 54 | O5: 55 | P5: 56 | Q5: 57 | R5: 58 | S5: 59 | T5: 60 | U5: 61 | V5: 62 | X5: 63 | Y5: 64 | Z5: 65 | AA5: 66 | AB5: 67 | AC5: 68 | AD5: 69 | AF5: 70 | AG5: 71 | AH5: =AG5+1 -> 72 | AI5: 73 | AJ5: 74 | AK5: 75 | AL5: 76 | AM5: 77 | AN5: 78 | AO5: 79
B6: 567 | C6: 568 | D6: 569 | F6: 570 | G6: 571 | H6: 572 | I6: 573 | J6: 574 | K6: 575 | L6: 576 | M6: 577 | N6: 578 | O6: 579 | P6: 580 | Q6: 581 | R6: 582 | S6: 583 | T6: 584 | U6: 585 | V6: 586 | X6: 587 | Y6: 588 | Z6: 589 | AA6: 590 | AB6: 591 | AC6: 592 | AD6: 593 | AF6: 594 | AG6: 595 | AH6: 596 | AI6: 597 | AJ6: 598 | AK6: 599 | AL6: 600 | AM6: 601 | AN6: 602 | AO6: 603
B7: 78 | C7: 79 | D7: 80 | F7: 81 | G7: 82 | H7: 83 | I7: 84 | J7: 85 | K7: 86 | L7: 87 | M7: 88 | N7: 89 | O7: 90 | P7: 91 | Q7: 92 | R7: 93 | S7: 94 | T7: 95 | U7: 96 | V7: 97 | X7: 98 | Y7: 99 | Z7: 100 | AA7: 101 | AB7: 102 | AC7: 103 | AD7: 104 | AF7: 105 | AG7: 106 | AH7: 107 | AI7: 108 | AJ7: 109 | AK7: 110 | AL7: 111 | AM7: 112 | AN7: 113 | AO7: 114
B8: 34 | C8: 35 | D8: 36 | F8: 37 | G8: 38 | H8: 39 | I8: 40 | J8: 41 | K8: 42 | L8: 43 | M8: 44 | N8: 45 | O8: 46 | P8: 47 | Q8: 48 | R8: 49 | S8: 50 | T8: 51 | U8: 52 | V8: 53 | X8: 54 | Y8: 55 | Z8: 56 | AA8: 57 | AB8: 58 | AC8: 59 | AD8: 60 | AF8: 61 | AG8: 62 | AH8: 63 | AI8: 64 | AJ8: 65 | AK8: 66 | AL8: 67 | AM8: 68 | AN8: 69 | AO8: 70
B9: 568 | C9: 569 | D9: 570 | F9: 571 | G9: 572 | H9: 573 | I9: 574 | J9: 575 | K9: 576 | L9: 577 | M9: 578 | N9: 579 | O9: 580 | P9: 581 | Q9: 582 | R9: 583 | S9: 584 | T9: 585 | U9: 586 | V9: 587 | X9: 588 | Y9: 589 | Z9: 590 | AA9: 591 | AB9: 592 | AC9: 593 | AD9: 594 | AF9: 595 | AG9: 596 | AH9: 597 | AI9: 598 | AJ9: 599 | AK9: 600 | AL9: 601 | AM9: 602 | AN9: 603 | AO9: 604
B10: 41 | C10: 42 | D10: 43 | F10: 44 | G10: 45 | H10: 46 | I10: 47 | J10: 48 | K10: 49 | L10: 50 | M10: 51 | N10: 52 | O10: 53 | P10: 54 | Q10: 55 | R10: 56 | S10: 57 | T10: 58 | U10: 59 | V10: 60 | X10: 61 | Y10: 62 | Z10: 63 | AA10: 64 | AB10: 65 | AC10: 66 | AD10: 67 | AF10: 68 | AG10: 69 | AH10: 70 | AI10: 71 | AJ10: 72 | AK10: 73 | AL10: 74 | AM10: 75 | AN10: 76 | AO10: 77
B11: 54 | C11: 55 | D11: 56 | F11: 57 | G11: 58 | H11: 59 | I11: 60 | J11: 61 | K11: 62 | L11: 63 | M11: 64 | N11: 65 | O11: 66 | P11: 67 | Q11: 68 | R11: 69 | S11: 70 | T11: 71 | U11: 72 | V11: 73 | X11: 74 | Y11: 75 | Z11: 76 | AA11: 77 | AB11: 78 | AC11: 79 | AD11: 80 | AF11: 81 | AG11: 82 | AH11: 83 | AI11: 84 | AJ11: 85 | AK11: 86 | AL11: 87 | AM11: 88 | AN11: 89 | AO11: 90
B12: 879 | C12: 880 | D12: 881 | F12: 882 | G12: 883 | H12: 884 | I12: 885 | J12: 886 | K12: 887 | L12: 888 | M12: 889 | N12: 890 | O12: 891 | P12: 892 | Q12: 893 | R12: 894 | S12: 895 | T12: 896 | U12: 897 | V12: 898 | X12: 899 | Y12: 900 | Z12: 901 | AA12: 902 | AB12: 903 | AC12: 904 | AD12: 905 | AF12: 906 | AG12: 907 | AH12: 908 | AI12: 909 | AJ12: 910 | AK12: 911 | AL12: 912 | AM12: 913 | AN12: 914 | AO12: 915
B13: 53 | C13: 54 | D13: 55 | F13: 56 | G13: 57 | H13: 58 | I13: 59 | J13: 60 | K13: 61 | L13: 62 | M13: 63 | N13: 64 | O13: 65 | P13: 66 | Q13: 67 | R13: 68 | S13: 69 | T13: 70 | U13: 71 | V13: 72 | X13: 73 | Y13: 74 | Z13: 75 | AA13: 76 | AB13: 77 | AC13: 78 | AD13: 79 | AF13: 80 | AG13: 81 | AH13: 82 | AI13: 83 | AJ13: 84 | AK13: 85 | AL13: 86 | AM13: 87 | AN13: 88 | AO13: 89
B14: 56 | C14: 57 | D14: 58 | F14: 59 | G14: 60 | H14: 61 | I14: 62 | J14: 63 | K14: 64 | L14: 65 | M14: 66 | N14: 67 | O14: 68 | P14: 69 | Q14: 70 | R14: 71 | S14: 72 | T14: 73 | U14: 74 | V14: 75 | X14: 76 | Y14: 77 | Z14: 78 | AA14: 79 | AB14: 80 | AC14: 81 | AD14: 82 | AF14: 83 | AG14: 84 | AH14: 85 | AI14: 86 | AJ14: 87 | AK14: 88 | AL14: 89 | AM14: 90 | AN14: 91 | AO14: 92
B15: 897 | C15: 898 | D15: 899 | F15: 900 | G15: 901 | H15: 902 | I15: 903 | J15: 904 | K15: =J15+1 -> 905 | L15: 906 | M15: 907 | N15: 908 | O15: 909 | P15: 910 | Q15: 911 | R15: 912 | S15: 913 | T15: 914 | U15: 915 | V15: 916 | X15: 917 | Y15: 918 | Z15: 919 | AA15: 920 | AB15: 921 | AC15: 922 | AD15: 923 | AF15: 924 | AG15: 925 | AH15: 926 | AI15: 927 | AJ15: 928 | AK15: 929 | AL15: 930 | AM15: 931 | AN15: 932 | AO15: 933
B16: 90 | C16: 91 | D16: 92 | F16: 93 | G16: 94 | H16: 95 | I16: 96 | J16: 97 | K16: 98 | L16: 99 | M16: 100 | N16: 101 | O16: 102 | P16: 103 | Q16: 104 | R16: 105 | S16: 106 | T16: 107 | U16: 108 | V16: 109 | X16: 110 | Y16: 111 | Z16: 112 | AA16: 113 | AB16: 114 | AC16: 115 | AD16: 116 | AF16: 117 | AG16: 118 | AH16: 119 | AI16: 120 | AJ16: 121 | AK16: 122 | AL16: 123 | AM16: 124 | AN16: 125 | AO16: 126
B17: 543 | C17: 544 | D17: 545 | F17: 546 | G17: 547 | H17: 548 | I17: 549 | J17: 550 | K17: 551 | L17: 552 | M17: 553 | N17: 554 | O17: 555 | P17: 556 | Q17: 557 | R17: 558 | S17: 559 | T17: 560 | U17: 561 | V17: 562 | X17: 563 | Y17: 564 | Z17: 565 | AA17: 566 | AB17: 567 | AC17: 568 | AD17: 569 | AF17: 570 | AG17: 571 | AH17: 572 | AI17: 573 | AJ17: 574 | AK17: 575 | AL17: 576 | AM17: 577 | AN17: 578 | AO17: 579
B18: 64 | C18: 65 | D18: 66 | F18: 67 | G18: 68 | H18: 69 | I18: 70 | J18: 71 | K18: 72 | L18: 73 | M18: 74 | N18: 75 | O18: 76 | P18: 77 | Q18: 78 | R18: 79 | S18: 80 | T18: 81 | U18: 82 | V18: 83 | X18: 84 | Y18: 85 | Z18: 86 | AA18: 87 | AB18: 88 | AC18: 89 | AD18: 90 | AF18: 91 | AG18: 92 | AH18: 93 | AI18: 94 | AJ18: 95 | AK18: 96 | AL18: 97 | AM18: 98 | AN18: 99 | AO18: 100
B19: =C13+3 -> 57 | C19: =D13+3 -> 58 | D19: =F13+3 -> 59 | F19: 60 | G19: 61 | H19: 62 | I19: 63 | J19: 64 | K19: 65 | L19: 66 | M19: 67 | N19: 68 | O19: 69 | P19: 70 | Q19: 71 | R19: 72 | S19: 73 | T19: 74 | U19: 75 | V19: 76 | X19: 77 | Y19: 78 | Z19: 79 | AA19: 80 | AB19: 81 | AC19: 82 | AD19: 83 | AF19: 84 | AG19: 85 | AH19: 86 | AI19: 87 | AJ19: 88 | AK19: 89 | AL19: 90 | AM19: 91 | AN19: 92 | AO19: 93
B20: =C14+3 -> 60 | C20: 61 | D20: 62 | F20: 63 | G20: 64 | H20: 65 | I20: 66 | J20: 67 | K20: 68 | L20: 69 | M20: 70 | N20: 71 | O20: 72 | P20: 73 | Q20: 74 | R20: 75 | S20: 76 | T20: 77 | U20: 78 | V20: 79 | X20: 80 | Y20: 81 | Z20: 82 | AA20: 83 | AB20: 84 | AC20: 85 | AD20: 86 | AF20: 87 | AG20: 88 | AH20: 89 | AI20: 90 | AJ20: 91 | AK20: 92 | AL20: 93 | AM20: 94 | AN20: 95 | AO20: 96
B21: 901 | C21: 902 | D21: 903 | F21: 904 | G21: 905 | H21: 906 | I21: 907 | J21: 908 | K21: 909 | L21: 910 | M21: 911 | N21: 912 | O21: 913 | P21: 914 | Q21: 915 | R21: 916 | S21: 917 | T21: 918 | U21: 919 | V21: 920 | X21: 921 | Y21: 922 | Z21: 923 | AA21: 924 | AB21: 925 | AC21: 926 | AD21: 927 | AF21: 928 | AG21: 929 | AH21: 930 | AI21: 931 | AJ21: 932 | AK21: 933 | AL21: 934 | AM21: 935 | AN21: 936 | AO21: =AN21+1 -> 937
B22: 94 | C22: 95 | D22: 96 | F22: 97 | G22: 98 | H22: 99 | I22: 100 | J22: 101 | K22: 102 | L22: 103 | M22: 104 | N22: 105 | O22: 106 | P22: 107 | Q22: 108 | R22: 109 | S22: 110 | T22: 111 | U22: 112 | V22: 113 | X22: 114 | Y22: 115 | Z22: 116 | AA22: 117 | AB22: 118 | AC22: 119 | AD22: 120 | AF22: 121 | AG22: 122 | AH22: 123 | AI22: 124 | AJ22: 125 | AK22: 126 | AL22: 127 | AM22: 128 | AN22: 129 | AO22: 130
B23: 547 | C23: 548 | D23: 549 | F23: 550 | G23: 551 | H23: 552 | I23: 553 | J23: 554 | K23: 555 | L23: 556 | M23: 557 | N23: 558 | O23: 559 | P23: 560 | Q23: 561 | R23: 562 | S23: 563 | T23: 564 | U23: 565 | V23: 566 | X23: 567 | Y23: 568 | Z23: 569 | AA23: 570 | AB23: 571 | AC23: 572 | AD23: 573 | AF23: 574 | AG23: 575 | AH23: 576 | AI23: 577 | AJ23: 578 | AK23: 579 | AL23: 580 | AM23: 581 | AN23: 582 | AO23: 583
B24: 68 | C24: 69 | D24: 70 | F24: 71 | G24: 72 | H24: 73 | I24: 74 | J24: 75 | K24: 76 | L24: 77 | M24: 78 | N24: 79 | O24: 80 | P24: 81 | Q24: 82 | R24: 83 | S24: 84 | T24: 85 | U24: 86 | V24: 87 | X24: 88 | Y24: 89 | Z24: 90 | AA24: 91 | AB24: 92 | AC24: 93 | AD24: 94 | AF24: 95 | AG24: 96 | AH24: 97 | AI24: 98 | AJ24: 99 | AK24: 100 | AL24: 101 | AM24: 102 | AN24: 103 | AO24: 104
B25: 61 | C25: 62 | D25: 63 | F25: 64 | G25: 65 | H25: 66 | I25: 67 | J25: 68 | K25: 69 | L25: =K25+1 -> 70 | M25: 71 | N25: 72 | O25: 73 | P25: 74 | Q25: 75 | R25: 76 | S25: 77 | T25: 78 | U25: 79 | V25: 80 | X25: 81 | Y25: 82 | Z25: 83 | AA25: 84 | AB25: 85 | AC25: 86 | AD25: 87 | AF25: 88 | AG25: 89 | AH25: 90 | AI25: 91 | AJ25: 92 | AK25: 93 | AL25: 94 | AM25: 95 | AN25: 96 | AO25: 97
B26: 64 | C26: 65 | D26: 66 | F26: 67 | G26: 68 | H26: 69 | I26: 70 | J26: 71 | K26: 72 | L26: 73 | M26: 74 | N26: 75 | O26: 76 | P26: 77 | Q26: 78 | R26: 79 | S26: 80 | T26: 81 | U26: 82 | V26: 83 | X26: 84 | Y26: 85 | Z26: 86 | AA26: 87 | AB26: 88 | AC26: 89 | AD26: 90 | AF26: 91 | AG26: 92 | AH26: 93 | AI26: 94 | AJ26: 95 | AK26: 96 | AL26: 97 | AM26: 98 | AN26: 99 | AO26: 100
B27: 905 | C27: 906 | D27: 907 | F27: 908 | G27: 909 | H27: 910 | I27: 911 | J27: 912 | K27: 913 | L27: 914 | M27: 915 | N27: 916 | O27: 917 | P27: 918 | Q27: 919 | R27: 920 | S27: 921 | T27: 922 | U27: 923 | V27: 924 | X27: 925 | Y27: 926 | Z27: 927 | AA27: 928 | AB27: 929 | AC27: 930 | AD27: 931 | AF27: 932 | AG27: 933 | AH27: 934 | AI27: 935 | AJ27: 936 | AK27: 937 | AL27: 938 | AM27: 939 | AN27: 940 | AO27: 941
B28: 98 | C28: 99 | D28: 100 | F28: 101 | G28: 102 | H28: 103 | I28: 104 | J28: 105 | K28: 106 | L28: 107 | M28: 108 | N28: 109 | O28: 110 | P28: 111 | Q28: 112 | R28: 113 | S28: 114 | T28: 115 | U28: 116 | V28: 117 | X28: 118 | Y28: 119 | Z28: 120 | AA28: 121 | AB28: 122 | AC28: 123 | AD28: 124 | AF28: 125 | AG28: 126 | AH28: 127 | AI28: 128 | AJ28: 129 | AK28: 130 | AL28: 131 | AM28: 132 | AN28: 133 | AO28: 134
B29: 551 | C29: 552 | D29: 553 | F29: 554 | G29: 555 | H29: 556 | I29: 557 | J29: 558 | K29: 559 | L29: 560 | M29: 561 | N29: 562 | O29: 563 | P29: 564 | Q29: 565 | R29: 566 | S29: 567 | T29: 568 | U29: 569 | V29: 570 | X29: 571 | Y29: 572 | Z29: 573 | AA29: 574 | AB29: 575 | AC29: 576 | AD29: 577 | AF29: 578 | AG29: 579 | AH29: 580 | AI29: 581 | AJ29: 582 | AK29: 583 | AL29: 584 | AM29: 585 | AN29: 586 | AO29: 587
B30: 72 | C30: 73 | D30: 74 | F30: 75 | G30: 76 | H30: 77 | I30: 78 | J30: 79 | K30: 80 | L30: 81 | M30: 82 | N30: 83 | O30: 84 | P30: 85 | Q30: 86 | R30: 87 | S30: 88 | T30: 89 | U30: 90 | V30: 91 | X30: 92 | Y30: 93 | Z30: 94 | AA30: 95 | AB30: 96 | AC30: 97 | AD30: 98 | AF30: 99 | AG30: 100 | AH30: 101 | AI30: 102 | AJ30: 103 | AK30: 104 | AL30: 105 | AM30: 106 | AN30: 107 | AO30: 108
B31: 65 | C31: 66 | D31: 67 | F31: 68 | G31: 69 | H31: 70 | I31: 71 | J31: 72 | K31: 73 | L31: 74 | M31: 75 | N31: 76 | O31: 77 | P31: 78 | Q31: 79 | R31: 80 | S31: 81 | T31: 82 | U31: 83 | V31: 84 | X31: 85 | Y31: 86 | Z31: 87 | AA31: 88 | AB31: 89 | AC31: 90 | AD31: 91 | AF31: 92 | AG31: 93 | AH31: 94 | AI31: 95 | AJ31: 96 | AK31: 97 | AL31: 98 | AM31: 99 | AN31: 100 | AO31: 101
B32: 68 | C32: 69 | D32: 70 | F32: 71 | G32: 72 | H32: 73 | I32: 74 | J32: 75 | K32: 76 | L32: 77 | M32: 78 | N32: 79 | O32: 80 | P32: 81 | Q32: 82 | R32: 83 | S32: 84 | T32: 85 | U32: 86 | V32: 87 | X32: 88 | Y32: 89 | Z32: 90 | AA32: 91 | AB32: 92 | AC32: 93 | AD32: 94 | AF32: 95 | AG32: 96 | AH32: 97 | AI32: 98 | AJ32: 99 | AK32: 100 | AL32: 101 | AM32: 102 | AN32: 103 | AO32: 104
B33: 909 | C33: 910 | D33: 911 | F33: 912 | G33: 913 | H33: 914 | I33: 915 | J33: 916 | K33: 917 | L33: 918 | M33: 919 | N33: 920 | O33: 921 | P33: 922 | Q33: 923 | R33: 924 | S33: 925 | T33: 926 | U33: 927 | V33: 928 | X33: 929 | Y33: 930 | Z33: 931 | AA33: 932 | AB33: 933 | AC33: =AB33+1 -> 934 | AD33: 935 | AF33: 936 | AG33: 937 | AH33: 938 | AI33: 939 | AJ33: 940 | AK33: 941 | AL33: 942 | AM33: 943 | AN33: 944 | AO33: 945
B34: 102 | C34: 103 | D34: 104 | F34: 105 | G34: 106 | H34: 107 | I34: 108 | J34: 109 | K34: 110 | L34: 111 | M34: 112 | N34: 113 | O34: 114 | P34: 115 | Q34: 116 | R34: 117 | S34: 118 | T34: 119 | U34: 120 | V34: 121 | X34: 122 | Y34: 123 | Z34: 124 | AA34: 125 | AB34: 126 | AC34: 127 | AD34: 128 | AF34: 129 | AG34: 130 | AH34: 131 | AI34: 132 | AJ34: 133 | AK34: 134 | AL34: 135 | AM34: 136 | AN34: 137 | AO34: 138
B35: 555 | C35: 556 | D35: 557 | F35: 558 | G35: 559 | H35: 560 | I35: 561 | J35: 562 | K35: 563 | L35: 564 | M35: 565 | N35: 566 | O35: 567 | P35: 568 | Q35: 569 | R35: 570 | S35: 571 | T35: 572 | U35: 573 | V35: 574 | X35: 575 | Y35: 576 | Z35: 577 | AA35: 578 | AB35: 579 | AC35: 580 | AD35: 581 | AF35: 582 | AG35: 583 | AH35: 584 | AI35: 585 | AJ35: 586 | AK35: 587 | AL35: 588 | AM35: 589 | AN35: 590 | AO35: 591
B36: =C30+3 -> 76 | C36: =D30+3 -> 77 | D36: 78 | F36: 79 | G36: 80 | H36: 81 | I36: 82 | J36: 83 | K36: 84 | L36: 85 | M36: 86 | N36: 87 | O36: 88 | P36: 89 | Q36: 90 | R36: 91 | S36: 92 | T36: 93 | U36: 94 | V36: 95 | X36: 96 | Y36: 97 | Z36: 98 | AA36: 99 | AB36: 100 | AC36: 101 | AD36: 102 | AF36: 103 | AG36: 104 | AH36: 105 | AI36: 106 | AJ36: 107 | AK36: 108 | AL36: 109 | AM36: 110 | AN36: 111 | AO36: 112
B37: =C31+3 -> 69 | C37: 70 | D37: 71 | F37: 72 | G37: 73 | H37: 74 | I37: 75 | J37: 76 | K37: 77 | L37: 78 | M37: 79 | N37: 80 | O37: 81 | P37: 82 | Q37: 83 | R37: 84 | S37: 85 | T37: 86 | U37: 87 | V37: 88 | X37: 89 | Y37: 90 | Z37: 91 | AA37: 92 | AB37: 93 | AC37: 94 | AD37: 95 | AF37: 96 | AG37: 97 | AH37: 98 | AI37: 99 | AJ37: 100 | AK37: 101 | AL37: 102 | AM37: 103 | AN37: 104 | AO37: 105
B38: 72 | C38: 73 | D38: 74 | F38: 75 | G38: 76 | H38: 77 | I38: 78 | J38: 79 | K38: 80 | L38: 81 | M38: 82 | N38: 83 | O38: 84 | P38: 85 | Q38: 86 | R38: 87 | S38: 88 | T38: 89 | U38: 90 | V38: 91 | X38: 92 | Y38: 93 | Z38: 94 | AA38: 95 | AB38: 96 | AC38: 97 | AD38: 98 | AF38: 99 | AG38: 100 | AH38: 101 | AI38: 102 | AJ38: 103 | AK38: 104 | AL38: 105 | AM38: 106 | AN38: 107 | AO38: 108
B39: 913 | C39: 914 | D39: 915 | F39: 916 | G39: 917 | H39: 918 | I39: 919 | J39: 920 | K39: 921 | L39: 922 | M39: 923 | N39: 924 | O39: 925 | P39: 926 | Q39: 927 | R39: 928 | S39: 929 | T39: 930 | U39: 931 | V39: 932 | X39: 933 | Y39: 934 | Z39: 935 | AA39: 936 | AB39: 937 | AC39: 938 | AD39: 939 | AF39: 940 | AG39: 941 | AH39: 942 | AI39: 943 | AJ39: 944 | AK39: 945 | AL39: 946 | AM39: 947 | AN39: 948 | AO39: 949
B40: 619.8380952 | C40: =B40+1 -> 620.8380952 | D40: 621.8380952 | F40: =D40+1 -> 622.8380952 | G40: 623.8380952 | H40: 624.8380952 | I40: 625.8380952 | J40: 626.8380952 | K40: 627.8380952 | L40: 628.8380952 | M40: 629.8380952 | N40: 630.8380952 | O40: 631.8380952 | P40: 632.8380952 | Q40: 633.8380952 | R40: 634.8380952 | S40: 635.8380952 | T40: 636.8380952 | U40: 637.8380952 | V40: 638.8380952 | X40: 639.8380952 | Y40: 640.8380952 | Z40: 641.8380952 | AA40: 642.8380952 | AB40: 643.8380952 | AC40: 644.8380952 | AD40: 645.8380952 | AF40: 646.8380952 | AG40: 647.8380952 | AH40: 648.8380952 | AI40: 649.8380952 | AJ40: 650.8380952 | AK40: 651.8380952 | AL40: 652.8380952 | AM40: 653.8380952 | AN40: 654.8380952 | AO40: 655.8380952
B41: 631.8095238 | C41: =B41+1 -> 632.8095238 | D41: 633.8095238 | F41: 634.8095238 | G41: 635.8095238 | H41: 636.8095238 | I41: 637.8095238 | J41: 638.8095238 | K41: 639.8095238 | L41: 640.8095238 | M41: 641.8095238 | N41: 642.8095238 | O41: 643.8095238 | P41: 644.8095238 | Q41: 645.8095238 | R41: 646.8095238 | S41: 647.8095238 | T41: 648.8095238 | U41: 649.8095238 | V41: 650.8095238 | X41: 651.8095238 | Y41: 652.8095238 | Z41: 653.8095238 | AA41: 654.8095238 | AB41: 655.8095238 | AC41: 656.8095238 | AD41: 657.8095238 | AF41: 658.8095238 | AG41: 659.8095238 | AH41: =AG41+1 -> 660.8095238 | AI41: 661.8095238 | AJ41: 662.8095238 | AK41: 663.8095238 | AL41: 664.8095238 | AM41: 665.8095238 | AN41: 666.8095238 | AO41: 667.8095238
B42: 643.7809524 | C42: =B42+1 -> 644.7809524 | D42: 645.7809524 | F42: 646.7809524 | G42: 647.7809524 | H42: 648.7809524 | I42: 649.7809524 | J42: 650.7809524 | K42: 651.7809524 | L42: 652.7809524 | M42: 653.7809524 | N42: 654.7809524 | O42: 655.7809524 | P42: 656.7809524 | Q42: 657.7809524 | R42: 658.7809524 | S42: 659.7809524 | T42: 660.7809524 | U42: 661.7809524 | V42: 662.7809524 | X42: 663.7809524 | Y42: 664.7809524 | Z42: 665.7809524 | AA42: 666.7809524 | AB42: 667.7809524 | AC42: 668.7809524 | AD42: 669.7809524 | AF42: 670.7809524 | AG42: 671.7809524 | AH42: 672.7809524 | AI42: 673.7809524 | AJ42: 674.7809524 | AK42: 675.7809524 | AL42: 676.7809524 | AM42: 677.7809524 | AN42: 678.7809524 | AO42: 679.7809524
B43: 655.752381 | C43: 656.752381 | D43: 657.752381 | F43: 658.752381 | G43: 659.752381 | H43: 660.752381 | I43: 661.752381 | J43: 662.752381 | K43: 663.752381 | L43: 664.752381 | M43: 665.752381 | N43: 666.752381 | O43: 667.752381 | P43: 668.752381 | Q43: 669.752381 | R43: 670.752381 | S43: 671.752381 | T43: 672.752381 | U43: 673.752381 | V43: 674.752381 | X43: 675.752381 | Y43: 676.752381 | Z43: 677.752381 | AA43: 678.752381 | AB43: 679.752381 | AC43: 680.752381 | AD43: 681.752381 | AF43: 682.752381 | AG43: 683.752381 | AH43: 684.752381 | AI43: 685.752381 | AJ43: 686.752381 | AK43: 687.752381 | AL43: 688.752381 | AM43: 689.752381 | AN43: 690.752381 | AO43: 691.752381
B44: 667.7238095 | C44: 668.7238095 | D44: 669.7238095 | F44: 670.7238095 | G44: 671.7238095 | H44: 672.7238095 | I44: 673.7238095 | J44: 674.7238095 | K44: 675.7238095 | L44: 676.7238095 | M44: 677.7238095 | N44: 678.7238095 | O44: 679.7238095 | P44: 680.7238095 | Q44: 681.7238095 | R44: 682.7238095 | S44: 683.7238095 | T44: 684.7238095 | U44: 685.7238095 | V44: 686.7238095 | X44: 687.7238095 | Y44: 688.7238095 | Z44: 689.7238095 | AA44: 690.7238095 | AB44: 691.7238095 | AC44: 692.7238095 | AD44: 693.7238095 | AF44: 694.7238095 | AG44: 695.7238095 | AH44: 696.7238095 | AI44: 697.7238095 | AJ44: 698.7238095 | AK44: 699.7238095 | AL44: 700.7238095 | AM44: 701.7238095 | AN44: 702.7238095 | AO44: 703.7238095
B45: 679.6952381 | C45: 680.6952381 | D45: 681.6952381 | F45: 682.6952381 | G45: 683.6952381 | H45: 684.6952381 | I45: 685.6952381 | J45: 686.6952381 | K45: 687.6952381 | L45: 688.6952381 | M45: 689.6952381 | N45: 690.6952381 | O45: 691.6952381 | P45: 692.6952381 | Q45: 693.6952381 | R45: 694.6952381 | S45: 695.6952381 | T45: 696.6952381 | U45: 697.6952381 | V45: 698.6952381 | X45: 699.6952381 | Y45: 700.6952381 | Z45: 701.6952381 | AA45: 702.6952381 | AB45: 703.6952381 | AC45: 704.6952381 | AD45: 705.6952381 | AF45: 706.6952381 | AG45: 707.6952381 | AH45: 708.6952381 | AI45: 709.6952381 | AJ45: 710.6952381 | AK45: 711.6952381 | AL45: 712.6952381 | AM45: 713.6952381 | AN45: 714.6952381 | AO45: 715.6952381
B46: 691.6666667 | C46: 692.6666667 | D46: 693.6666667 | F46: 694.6666667 | G46: 695.6666667 | H46: 696.6666667 | I46: 697.6666667 | J46: 698.6666667 | K46: 699.6666667 | L46: 700.6666667 | M46: 701.6666667 | N46: 702.6666667 | O46: 703.6666667 | P46: 704.6666667 | Q46: 705.6666667 | R46: 706.6666667 | S46: 707.6666667 | T46: 708.6666667 | U46: 709.6666667 | V46: 710.6666667 | X46: 711.6666667 | Y46: 712.6666667 | Z46: 713.6666667 | AA46: 714.6666667 | AB46: 715.6666667 | AC46: 716.6666667 | AD46: 717.6666667 | AF46: 718.6666667 | AG46: 719.6666667 | AH46: 720.6666667 | AI46: 721.6666667 | AJ46: 722.6666667 | AK46: 723.6666667 | AL46: 724.6666667 | AM46: 725.6666667 | AN46: 726.6666667 | AO46: 727.6666667
B47: 703.6380952 | C47: 704.6380952 | D47: 705.6380952 | F47: 706.6380952 | G47: 707.6380952 | H47: 708.6380952 | I47: 709.6380952 | J47: 710.6380952 | K47: 711.6380952 | L47: 712.6380952 | M47: 713.6380952 | N47: 714.6380952 | O47: 715.6380952 | P47: 716.6380952 | Q47: 717.6380952 | R47: 718.6380952 | S47: 719.6380952 | T47: 720.6380952 | U47: 721.6380952 | V47: 722.6380952 | X47: 723.6380952 | Y47: 724.6380952 | Z47: 725.6380952 | AA47: 726.6380952 | AB47: 727.6380952 | AC47: 728.6380952 | AD47: 729.6380952 | AF47: 730.6380952 | AG47: 731.6380952 | AH47: 732.6380952 | AI47: 733.6380952 | AJ47: 734.6380952 | AK47: 735.6380952 | AL47: 736.6380952 | AM47: 737.6380952 | AN47: 738.6380952 | AO47: 739.6380952
B48: 715.6095238 | C48: 716.6095238 | D48: 717.6095238 | F48: 718.6095238 | G48: 719.6095238 | H48: 720.6095238 | I48: 721.6095238 | J48: 722.6095238 | K48: 723.6095238 | L48: 724.6095238 | M48: 725.6095238 | N48: 726.6095238 | O48: 727.6095238 | P48: 728.6095238 | Q48: 729.6095238 | R48: 730.6095238 | S48: 731.6095238 | T48: 732.6095238 | U48: 733.6095238 | V48: 734.6095238 | X48: 735.6095238 | Y48: 736.6095238 | Z48: 737.6095238 | AA48: 738.6095238 | AB48: 739.6095238 | AC48: 740.6095238 | AD48: 741.6095238 | AF48: 742.6095238 | AG48: 743.6095238 | AH48: 744.6095238 | AI48: 745.6095238 | AJ48: 746.6095238 | AK48: =AJ48+1 -> 747.6095238 | AL48: 748.6095238 | AM48: 749.6095238 | AN48: 750.6095238 | AO48: 751.6095238
B49: 727.5809524 | C49: 728.5809524 | D49: 729.5809524 | F49: 730.5809524 | G49: 731.5809524 | H49: 732.5809524 | I49: 733.5809524 | J49: 734.5809524 | K49: 735.5809524 | L49: 736.5809524 | M49: 737.5809524 | N49: 738.5809524 | O49: 739.5809524 | P49: 740.5809524 | Q49: 741.5809524 | R49: 742.5809524 | S49: 743.5809524 | T49: =S49+1 -> 744.5809524 | U49: 745.5809524 | V49: 746.5809524 | X49: 747.5809524 | Y49: 748.5809524 | Z49: 749.5809524 | AA49: 750.5809524 | AB49: 751.5809524 | AC49: 752.5809524 | AD49: 753.5809524 | AF49: 754.5809524 | AG49: 755.5809524 | AH49: 756.5809524 | AI49: 757.5809524 | AJ49: 758.5809524 | AK49: 759.5809524 | AL49: 760.5809524 | AM49: 761.5809524 | AN49: 762.5809524 | AO49: 763.5809524

Sheet Ribbon
B2: Use of Ribbon
B4: 123 | C4: =B4+1 -> 124 | D4: =C4+1 -> 125 | F4: =D4+1 -> 126 | G4: 127 | H4: 128 | I4: 129 | J4: 130 | K4: 131 | L4: 132 | M4: 133 | N4: 134 | O4: 135 | P4: 136 | Q4: 137 | R4: 138 | S4: 139 | T4: 140 | U4: 141 | V4: 142 | X4: =V4+1 -> 143 | Y4: 144 | Z4: 145 | AA4: 146 | AB4: 147 | AC4: 148 | AD4: 149 | AF4: =AD4+1 -> 150 | AG4: 151 | AH4: =AG4+1 -> 152 | AI4: =AH4+1 -> 153 | AJ4: 154 | AK4: 155 | AL4: 156 | AM4: 157 | AN4: 158 | AO4: 159
B5: 43 | C5: =B5+1 -> 44 | D5: 45 | F5: 46 | G5: 47 | H5: 48 | I5: 49 | J5: 50 | K5: 51 | L5: 52 | M5: 53 | N5: 54 | O5: 55 | P5: 56 | Q5: 57 | R5: 58 | S5: 59 | T5: 60 | U5: 61 | V5: 62 | X5: 63 | Y5: 64 | Z5: 65 | AA5: 66 | AB5: 67 | AC5: 68 | AD5: 69 | AF5: 70 | AG5: 71 | AH5: =AG5+1 -> 72 | AI5: 73 | AJ5: 74 | AK5: 75 | AL5: 76 | AM5: 77 | AN5: 78 | AO5: 79
B6: 567 | C6: 568 | D6: 569 | F6: 570 | G6: 571 | H6: 572 | I6: 573 | J6: 574 | K6: 575 | L6: 576 | M6: 577 | N6: 578 | O6: 579 | P6: 580 | Q6: 581 | R6: 582 | S6: 583 | T6: 584 | U6: 585 | V6: 586 | X6: 587 | Y6: 588 | Z6: 589 | AA6: 590 | AB6: 591 | AC6: 592 | AD6: 593 | AF6: 594 | AG6: 595 | AH6: 596 | AI6: 597 | AJ6: 598 | AK6: 599 | AL6: 600 | AM6: 601 | AN6: 602 | AO6: 603
B7: 78 | C7: 79 | D7: 80 | F7: 81 | G7: 82 | H7: 83 | I7: 84 | J7: 85 | K7: 86 | L7: 87 | M7: 88 | N7: 89 | O7: 90 | P7: 91 | Q7: 92 | R7: 93 | S7: 94 | T7: 95 | U7: 96 | V7: 97 | X7: 98 | Y7: 99 | Z7: 100 | AA7: 101 | AB7: 102 | AC7: 103 | AD7: 104 | AF7: 105 | AG7: 106 | AH7: 107 | AI7: 108 | AJ7: 109 | AK7: 110 | AL7: 111 | AM7: 112 | AN7: 113 | AO7: 114
B8: 34 | C8: 35 | D8: 36 | F8: 37 | G8: 38 | H8: 39 | I8: 40 | J8: 41 | K8: 42 | L8: 43 | M8: 44 | N8: 45 | O8: 46 | P8: 47 | Q8: 48 | R8: 49 | S8: 50 | T8: 51 | U8: 52 | V8: 53 | X8: 54 | Y8: 55 | Z8: 56 | AA8: 57 | AB8: 58 | AC8: 59 | AD8: 60 | AF8: 61 | AG8: 62 | AH8: 63 | AI8: 64 | AJ8: 65 | AK8: 66 | AL8: 67 | AM8: 68 | AN8: 69 | AO8: 70
B9: 568 | C9: 569 | D9: 570 | F9: 571 | G9: 572 | H9: 573 | I9: 574 | J9: 575 | K9: 576 | L9: 577 | M9: 578 | N9: 579 | O9: 580 | P9: 581 | Q9: 582 | R9: 583 | S9: 584 | T9: 585 | U9: 586 | V9: 587 | X9: 588 | Y9: 589 | Z9: 590 | AA9: 591 | AB9: 592 | AC9: 593 | AD9: 594 | AF9: 595 | AG9: 596 | AH9: 597 | AI9: 598 | AJ9: 599 | AK9: 600 | AL9: 601 | AM9: 602 | AN9: 603 | AO9: 604
B10: 41 | C10: 42 | D10: 43 | F10: 44 | G10: 45 | H10: 46 | I10: 47 | J10: 48 | K10: 49 | L10: 50 | M10: 51 | N10: 52 | O10: 53 | P10: 54 | Q10: 55 | R10: 56 | S10: 57 | T10: 58 | U10: 59 | V10: 60 | X10: 61 | Y10: 62 | Z10: 63 | AA10: 64 | AB10: 65 | AC10: 66 | AD10: 67 | AF10: 68 | AG10: 69 | AH10: 70 | AI10: 71 | AJ10: 72 | AK10: 73 | AL10: 74 | AM10: 75 | AN10: 76 | AO10: 77
B11: 54 | C11: 55 | D11: 56 | F11: 57 | G11: 58 | H11: 59 | I11: 60 | J11: 61 | K11: 62 | L11: 63 | M11: 64 | N11: 65 | O11: 66 | P11: 67 | Q11: 68 | R11: 69 | S11: 70 | T11: 71 | U11: 72 | V11: 73 | X11: 74 | Y11: 75 | Z11: 76 | AA11: 77 | AB11: 78 | AC11: 79 | AD11: 80 | AF11: 81 | AG11: 82 | AH11: 83 | AI11: 84 | AJ11: 85 | AK11: 86 | AL11: 87 | AM11: 88 | AN11: 89 | AO11: 90
B12: 879 | C12: 880 | D12: 881 | F12: 882 | G12: 883 | H12: 884 | I12: 885 | J12: 886 | K12: 887 | L12: 888 | M12: 889 | N12: 890 | O12: 891 | P12: 892 | Q12: 893 | R12: 894 | S12: 895 | T12: 896 | U12: 897 | V12: 898 | X12: 899 | Y12: 900 | Z12: 901 | AA12: 902 | AB12: 903 | AC12: 904 | AD12: 905 | AF12: 906 | AG12: 907 | AH12: 908 | AI12: 909 | AJ12: 910 | AK12: 911 | AL12: 912 | AM12: 913 | AN12: 914 | AO12: 915
B13: 53 | C13: 54 | D13: 55 | F13: 56 | G13: 57 | H13: 58 | I13: 59 | J13: 60 | K13: 61 | L13: 62 | M13: 63 | N13: 64 | O13: 65 | P13: 66 | Q13: 67 | R13: 68 | S13: 69 | T13: 70 | U13: 71 | V13: 72 | X13: 73 | Y13: 74 | Z13: 75 | AA13: 76 | AB13: 77 | AC13: 78 | AD13: 79 | AF13: 80 | AG13: 81 | AH13: 82 | AI13: 83 | AJ13: 84 | AK13: 85 | AL13: 86 | AM13: 87 | AN13: 88 | AO13: 89
B14: 56 | C14: 57 | D14: 58 | F14: 59 | G14: 60 | H14: 61 | I14: 62 | J14: 63 | K14: 64 | L14: 65 | M14: 66 | N14: 67 | O14: 68 | P14: 69 | Q14: 70 | R14: 71 | S14: 72 | T14: 73 | U14: 74 | V14: 75 | X14: 76 | Y14: 77 | Z14: 78 | AA14: 79 | AB14: 80 | AC14: 81 | AD14: 82 | AF14: 83 | AG14: 84 | AH14: 85 | AI14: 86 | AJ14: 87 | AK14: 88 | AL14: 89 | AM14: 90 | AN14: 91 | AO14: 92
B15: 897 | C15: 898 | D15: 899 | F15: 900 | G15: 901 | H15: 902 | I15: 903 | J15: 904 | K15: =J15+1 -> 905 | L15: 906 | M15: 907 | N15: 908 | O15: 909 | P15: 910 | Q15: 911 | R15: 912 | S15: 913 | T15: 914 | U15: 915 | V15: 916 | X15: 917 | Y15: 918 | Z15: 919 | AA15: 920 | AB15: 921 | AC15: 922 | AD15: 923 | AF15: 924 | AG15: 925 | AH15: 926 | AI15: 927 | AJ15: 928 | AK15: 929 | AL15: 930 | AM15: 931 | AN15: 932 | AO15: 933
B16: 90 | C16: 91 | D16: 92 | F16: 93 | G16: 94 | H16: 95 | I16: 96 | J16: 97 | K16: 98 | L16: 99 | M16: 100 | N16: 101 | O16: 102 | P16: 103 | Q16: 104 | R16: 105 | S16: 106 | T16: 107 | U16: 108 | V16: 109 | X16: 110 | Y16: 111 | Z16: 112 | AA16: 113 | AB16: 114 | AC16: 115 | AD16: 116 | AF16: 117 | AG16: 118 | AH16: 119 | AI16: 120 | AJ16: 121 | AK16: 122 | AL16: 123 | AM16: 124 | AN16: 125 | AO16: 126
B17: 543 | C17: 544 | D17: 545 | F17: 546 | G17: 547 | H17: 548 | I17: 549 | J17: 550 | K17: 551 | L17: 552 | M17: 553 | N17: 554 | O17: 555 | P17: 556 | Q17: 557 | R17: 558 | S17: 559 | T17: 560 | U17: 561 | V17: 562 | X17: 563 | Y17: 564 | Z17: 565 | AA17: 566 | AB17: 567 | AC17: 568 | AD17: 569 | AF17: 570 | AG17: 571 | AH17: 572 | AI17: 573 | AJ17: 574 | AK17: 575 | AL17: 576 | AM17: 577 | AN17: 578 | AO17: 579
B18: 64 | C18: 65 | D18: 66 | F18: 67 | G18: 68 | H18: 69 | I18: 70 | J18: 71 | K18: 72 | L18: 73 | M18: 74 | N18: 75 | O18: 76 | P18: 77 | Q18: 78 | R18: 79 | S18: 80 | T18: 81 | U18: 82 | V18: 83 | X18: 84 | Y18: 85 | Z18: 86 | AA18: 87 | AB18: 88 | AC18: 89 | AD18: 90 | AF18: 91 | AG18: 92 | AH18: 93 | AI18: 94 | AJ18: 95 | AK18: 96 | AL18: 97 | AM18: 98 | AN18: 99 | AO18: 100
B19: =C13+3 -> 57 | C19: =D13+3 -> 58 | D19: =F13+3 -> 59 | F19: 60 | G19: 61 | H19: 62 | I19: 63 | J19: 64 | K19: 65 | L19: 66 | M19: 67 | N19: 68 | O19: 69 | P19: 70 | Q19: 71 | R19: 72 | S19: 73 | T19: 74 | U19: 75 | V19: 76 | X19: 77 | Y19: 78 | Z19: 79 | AA19: 80 | AB19: 81 | AC19: 82 | AD19: 83 | AF19: 84 | AG19: 85 | AH19: 86 | AI19: 87 | AJ19: 88 | AK19: 89 | AL19: 90 | AM19: 91 | AN19: 92 | AO19: 93
B20: =C14+3 -> 60 | C20: 61 | D20: 62 | F20: 63 | G20: 64 | H20: 65 | I20: 66 | J20: 67 | K20: 68 | L20: 69 | M20: 70 | N20: 71 | O20: 72 | P20: 73 | Q20: 74 | R20: 75 | S20: 76 | T20: 77 | U20: 78 | V20: 79 | X20: 80 | Y20: 81 | Z20: 82 | AA20: 83 | AB20: 84 | AC20: 85 | AD20: 86 | AF20: 87 | AG20: 88 | AH20: 89 | AI20: 90 | AJ20: 91 | AK20: 92 | AL20: 93 | AM20: 94 | AN20: 95 | AO20: 96
B21: 901 | C21: 902 | D21: 903 | F21: 904 | G21: 905 | H21: 906 | I21: 907 | J21: 908 | K21: 909 | L21: 910 | M21: 911 | N21: 912 | O21: 913 | P21: 914 | Q21: 915 | R21: 916 | S21: 917 | T21: 918 | U21: 919 | V21: 920 | X21: 921 | Y21: 922 | Z21: 923 | AA21: 924 | AB21: 925 | AC21: 926 | AD21: 927 | AF21: 928 | AG21: 929 | AH21: 930 | AI21: 931 | AJ21: 932 | AK21: 933 | AL21: 934 | AM21: 935 | AN21: 936 | AO21: 937
B22: 94 | C22: 95 | D22: 96 | F22: 97 | G22: 98 | H22: 99 | I22: 100 | J22: 101 | K22: 102 | L22: 103 | M22: 104 | N22: 105 | O22: 106 | P22: 107 | Q22: 108 | R22: 109 | S22: 110 | T22: 111 | U22: 112 | V22: 113 | X22: 114 | Y22: 115 | Z22: 116 | AA22: 117 | AB22: 118 | AC22: 119 | AD22: 120 | AF22: 121 | AG22: 122 | AH22: 123 | AI22: 124 | AJ22: 125 | AK22: 126 | AL22: 127 | AM22: 128 | AN22: 129 | AO22: 130
B23: 547 | C23: 548 | D23: 549 | F23: 550 | G23: 551 | H23: 552 | I23: 553 | J23: 554 | K23: 555 | L23: 556 | M23: 557 | N23: 558 | O23: 559 | P23: 560 | Q23: 561 | R23: 562 | S23: 563 | T23: 564 | U23: 565 | V23: 566 | X23: 567 | Y23: 568 | Z23: 569 | AA23: 570 | AB23: 571 | AC23: 572 | AD23: 573 | AF23: 574 | AG23: 575 | AH23: 576 | AI23: 577 | AJ23: 578 | AK23: 579 | AL23: 580 | AM23: 581 | AN23: 582 | AO23: 583
B24: 68 | C24: 69 | D24: 70 | F24: 71 | G24: 72 | H24: 73 | I24: 74 | J24: 75 | K24: 76 | L24: 77 | M24: 78 | N24: 79 | O24: 80 | P24: 81 | Q24: 82 | R24: 83 | S24: 84 | T24: 85 | U24: 86 | V24: 87 | X24: 88 | Y24: 89 | Z24: 90 | AA24: 91 | AB24: 92 | AC24: 93 | AD24: 94 | AF24: 95 | AG24: 96 | AH24: 97 | AI24: 98 | AJ24: 99 | AK24: 100 | AL24: 101 | AM24: 102 | AN24: 103 | AO24: 104
B25: 61 | C25: 62 | D25: 63 | F25: 64 | G25: 65 | H25: =G25+1 -> 66 | I25: 67 | J25: 68 | K25: 69 | L25: 70 | M25: 71 | N25: 72 | O25: 73 | P25: 74 | Q25: 75 | R25: 76 | S25: 77 | T25: 78 | U25: 79 | V25: 80 | X25: 81 | Y25: 82 | Z25: 83 | AA25: 84 | AB25: 85 | AC25: 86 | AD25: 87 | AF25: 88 | AG25: 89 | AH25: 90 | AI25: 91 | AJ25: 92 | AK25: 93 | AL25: 94 | AM25: 95 | AN25: 96 | AO25: 97
B26: 64 | C26: 65 | D26: 66 | F26: 67 | G26: 68 | H26: 69 | I26: 70 | J26: 71 | K26: 72 | L26: 73 | M26: 74 | N26: 75 | O26: 76 | P26: 77 | Q26: 78 | R26: 79 | S26: 80 | T26: 81 | U26: 82 | V26: 83 | X26: 84 | Y26: 85 | Z26: 86 | AA26: 87 | AB26: 88 | AC26: 89 | AD26: 90 | AF26: 91 | AG26: 92 | AH26: 93 | AI26: 94 | AJ26: 95 | AK26: 96 | AL26: 97 | AM26: 98 | AN26: 99 | AO26: 100
B27: 905 | C27: 906 | D27: 907 | F27: 908 | G27: 909 | H27: 910 | I27: 911 | J27: 912 | K27: 913 | L27: 914 | M27: 915 | N27: 916 | O27: 917 | P27: 918 | Q27: 919 | R27: 920 | S27: 921 | T27: 922 | U27: 923 | V27: 924 | X27: 925 | Y27: 926 | Z27: 927 | AA27: 928 | AB27: 929 | AC27: 930 | AD27: 931 | AF27: 932 | AG27: 933 | AH27: 934 | AI27: 935 | AJ27: 936 | AK27: 937 | AL27: 938 | AM27: 939 | AN27: 940 | AO27: 941
B28: 98 | C28: 99 | D28: 100 | F28: 101 | G28: 102 | H28: 103 | I28: 104 | J28: 105 | K28: 106 | L28: 107 | M28: 108 | N28: 109 | O28: 110 | P28: 111 | Q28: 112 | R28: 113 | S28: 114 | T28: 115 | U28: 116 | V28: 117 | X28: 118 | Y28: 119 | Z28: 120 | AA28: 121 | AB28: 122 | AC28: 123 | AD28: 124 | AF28: 125 | AG28: 126 | AH28: 127 | AI28: 128 | AJ28: 129 | AK28: 130 | AL28: 131 | AM28: 132 | AN28: 133 | AO28: 134
B29: 551 | C29: 552 | D29: 553 | F29: 554 | G29: 555 | H29: 556 | I29: 557 | J29: 558 | K29: 559 | L29: 560 | M29: 561 | N29: 562 | O29: 563 | P29: 564 | Q29: 565 | R29: 566 | S29: 567 | T29: 568 | U29: 569 | V29: 570 | X29: 571 | Y29: 572 | Z29: 573 | AA29: 574 | AB29: 575 | AC29: 576 | AD29: 577 | AF29: 578 | AG29: 579 | AH29: 580 | AI29: 581 | AJ29: 582 | AK29: 583 | AL29: 584 | AM29: 585 | AN29: 586 | AO29: 587
B30: 72 | C30: 73 | D30: 74 | F30: 75 | G30: 76 | H30: 77 | I30: 78 | J30: 79 | K30: 80 | L30: 81 | M30: 82 | N30: 83 | O30: 84 | P30: 85 | Q30: 86 | R30: 87 | S30: 88 | T30: 89 | U30: 90 | V30: 91 | X30: 92 | Y30: 93 | Z30: 94 | AA30: 95 | AB30: 96 | AC30: 97 | AD30: 98 | AF30: 99 | AG30: 100 | AH30: 101 | AI30: 102 | AJ30: 103 | AK30: 104 | AL30: 105 | AM30: 106 | AN30: 107 | AO30: 108
B31: 65 | C31: 66 | D31: 67 | F31: 68 | G31: 69 | H31: 70 | I31: 71 | J31: 72 | K31: 73 | L31: 74 | M31: 75 | N31: 76 | O31: 77 | P31: 78 | Q31: 79 | R31: 80 | S31: 81 | T31: 82 | U31: 83 | V31: 84 | X31: 85 | Y31: 86 | Z31: 87 | AA31: 88 | AB31: 89 | AC31: 90 | AD31: 91 | AF31: 92 | AG31: 93 | AH31: 94 | AI31: 95 | AJ31: 96 | AK31: 97 | AL31: 98 | AM31: 99 | AN31: 100 | AO31: 101
B32: 68 | C32: 69 | D32: 70 | F32: 71 | G32: 72 | H32: 73 | I32: 74 | J32: 75 | K32: 76 | L32: 77 | M32: 78 | N32: 79 | O32: 80 | P32: 81 | Q32: 82 | R32: 83 | S32: 84 | T32: 85 | U32: 86 | V32: 87 | X32: 88 | Y32: 89 | Z32: 90 | AA32: 91 | AB32: 92 | AC32: 93 | AD32: 94 | AF32: 95 | AG32: 96 | AH32: 97 | AI32: 98 | AJ32: 99 | AK32: 100 | AL32: 101 | AM32: 102 | AN32: 103 | AO32: 104
B33: 909 | C33: 910 | D33: 911 | F33: 912 | G33: 913 | H33: 914 | I33: 915 | J33: 916 | K33: 917 | L33: 918 | M33: 919 | N33: 920 | O33: 921 | P33: 922 | Q33: 923 | R33: 924 | S33: 925 | T33: 926 | U33: 927 | V33: 928 | X33: 929 | Y33: =X33+1 -> 930 | Z33: 931 | AA33: 932 | AB33: 933 | AC33: 934 | AD33: 935 | AF33: 936 | AG33: 937 | AH33: 938 | AI33: 939 | AJ33: 940 | AK33: 941 | AL33: 942 | AM33: 943 | AN33: 944 | AO33: 945
B34: 102 | C34: 103 | D34: 104 | F34: 105 | G34: 106 | H34: 107 | I34: 108 | J34: 109 | K34: 110 | L34: 111 | M34: 112 | N34: 113 | O34: 114 | P34: 115 | Q34: 116 | R34: 117 | S34: 118 | T34: 119 | U34: 120 | V34: 121 | X34: 122 | Y34: 123 | Z34: 124 | AA34: 125 | AB34: 126 | AC34: 127 | AD34: 128 | AF34: 129 | AG34: 130 | AH34: 131 | AI34: 132 | AJ34: 133 | AK34: 134 | AL34: 135 | AM34: 136 | AN34: 137 | AO34: 138
B35: 555 | C35: 556 | D35: 557 | F35: 558 | G35: 559 | H35: 560 | I35: 561 | J35: 562 | K35: 563 | L35: 564 | M35: 565 | N35: 566 | O35: 567 | P35: 568 | Q35: 569 | R35: 570 | S35: 571 | T35: 572 | U35: 573 | V35: 574 | X35: 575 | Y35: 576 | Z35: 577 | AA35: 578 | AB35: 579 | AC35: 580 | AD35: 581 | AF35: 582 | AG35: 583 | AH35: 584 | AI35: 585 | AJ35: 586 | AK35: 587 | AL35: 588 | AM35: 589 | AN35: 590 | AO35: 591
B36: =C30+3 -> 76 | C36: =D30+3 -> 77 | D36: 78 | F36: 79 | G36: 80 | H36: 81 | I36: 82 | J36: 83 | K36: 84 | L36: 85 | M36: 86 | N36: 87 | O36: 88 | P36: 89 | Q36: 90 | R36: 91 | S36: 92 | T36: 93 | U36: 94 | V36: 95 | X36: 96 | Y36: 97 | Z36: 98 | AA36: 99 | AB36: 100 | AC36: 101 | AD36: 102 | AF36: 103 | AG36: 104 | AH36: 105 | AI36: 106 | AJ36: 107 | AK36: 108 | AL36: 109 | AM36: 110 | AN36: 111 | AO36: 112
B37: =C31+3 -> 69 | C37: 70 | D37: 71 | F37: 72 | G37: 73 | H37: 74 | I37: 75 | J37: 76 | K37: 77 | L37: 78 | M37: 79 | N37: 80 | O37: 81 | P37: 82 | Q37: 83 | R37: 84 | S37: 85 | T37: 86 | U37: 87 | V37: 88 | X37: 89 | Y37: 90 | Z37: 91 | AA37: 92 | AB37: 93 | AC37: 94 | AD37: 95 | AF37: 96 | AG37: 97 | AH37: 98 | AI37: 99 | AJ37: 100 | AK37: 101 | AL37: 102 | AM37: 103 | AN37: 104 | AO37: 105
B38: 72 | C38: 73 | D38: 74 | F38: 75 | G38: 76 | H38: 77 | I38: 78 | J38: 79 | K38: 80 | L38: 81 | M38: 82 | N38: 83 | O38: 84 | P38: 85 | Q38: 86 | R38: 87 | S38: 88 | T38: 89 | U38: 90 | V38: 91 | X38: 92 | Y38: 93 | Z38: 94 | AA38: 95 | AB38: 96 | AC38: 97 | AD38: 98 | AF38: 99 | AG38: 100 | AH38: 101 | AI38: 102 | AJ38: 103 | AK38: 104 | AL38: 105 | AM38: 106 | AN38: 107 | AO38: 108
B39: 913 | C39: 914 | D39: 915 | F39: 916 | G39: 917 | H39: 918 | I39: 919 | J39: 920 | K39: 921 | L39: 922 | M39: 923 | N39: 924 | O39: 925 | P39: 926 | Q39: 927 | R39: 928 | S39: 929 | T39: 930 | U39: 931 | V39: 932 | X39: 933 | Y39: 934 | Z39: 935 | AA39: 936 | AB39: 937 | AC39: 938 | AD39: 939 | AF39: 940 | AG39: 941 | AH39: 942 | AI39: 943 | AJ39: 944 | AK39: 945 | AL39: 946 | AM39: 947 | AN39: 948 | AO39: 949
B40: 619.8380952 | C40: =B40+1 -> 620.8380952 | D40: 621.8380952 | F40: =D40+1 -> 622.8380952 | G40: 623.8380952 | H40: 624.8380952 | I40: 625.8380952 | J40: 626.8380952 | K40: 627.8380952 | L40: 628.8380952 | M40: 629.8380952 | N40: 630.8380952 | O40: 631.8380952 | P40: 632.8380952 | Q40: 633.8380952 | R40: 634.8380952 | S40: 635.8380952 | T40: 636.8380952 | U40: 637.8380952 | V40: 638.8380952 | X40: 639.8380952 | Y40: 640.8380952 | Z40: 641.8380952 | AA40: 642.8380952 | AB40: 643.8380952 | AC40: 644.8380952 | AD40: 645.8380952 | AF40: 646.8380952 | AG40: 647.8380952 | AH40: 648.8380952 | AI40: 649.8380952 | AJ40: 650.8380952 | AK40: 651.8380952 | AL40: 652.8380952 | AM40: 653.8380952 | AN40: 654.8380952 | AO40: 655.8380952
B41: 631.8095238 | C41: =B41+1 -> 632.8095238 | D41: 633.8095238 | F41: 634.8095238 | G41: 635.8095238 | H41: 636.8095238 | I41: 637.8095238 | J41: 638.8095238 | K41: 639.8095238 | L41: 640.8095238 | M41: 641.8095238 | N41: 642.8095238 | O41: 643.8095238 | P41: 644.8095238 | Q41: 645.8095238 | R41: 646.8095238 | S41: 647.8095238 | T41: 648.8095238 | U41: 649.8095238 | V41: 650.8095238 | X41: 651.8095238 | Y41: 652.8095238 | Z41: 653.8095238 | AA41: 654.8095238 | AB41: 655.8095238 | AC41: 656.8095238 | AD41: 657.8095238 | AF41: 658.8095238 | AG41: 659.8095238 | AH41: =AG41+1 -> 660.8095238 | AI41: 661.8095238 | AJ41: 662.8095238 | AK41: 663.8095238 | AL41: 664.8095238 | AM41: 665.8095238 | AN41: 666.8095238 | AO41: 667.8095238
B42: 643.7809524 | C42: =B42+1 -> 644.7809524 | D42: 645.7809524 | F42: 646.7809524 | G42: 647.7809524 | H42: 648.7809524 | I42: 649.7809524 | J42: 650.7809524 | K42: 651.7809524 | L42: 652.7809524 | M42: 653.7809524 | N42: 654.7809524 | O42: 655.7809524 | P42: 656.7809524 | Q42: 657.7809524 | R42: 658.7809524 | S42: 659.7809524 | T42: 660.7809524 | U42: 661.7809524 | V42: 662.7809524 | X42: 663.7809524 | Y42: 664.7809524 | Z42: 665.7809524 | AA42: 666.7809524 | AB42: 667.7809524 | AC42: 668.7809524 | AD42: 669.7809524 | AF42: 670.7809524 | AG42: 671.7809524 | AH42: 672.7809524 | AI42: 673.7809524 | AJ42: 674.7809524 | AK42: 675.7809524 | AL42: 676.7809524 | AM42: 677.7809524 | AN42: 678.7809524 | AO42: 679.7809524
B43: 655.752381 | C43: 656.752381 | D43: 657.752381 | F43: 658.752381 | G43: 659.752381 | H43: 660.752381 | I43: 661.752381 | J43: 662.752381 | K43: 663.752381 | L43: 664.752381 | M43: 665.752381 | N43: 666.752381 | O43: 667.752381 | P43: 668.752381 | Q43: 669.752381 | R43: 670.752381 | S43: 671.752381 | T43: 672.752381 | U43: 673.752381 | V43: 674.752381 | X43: 675.752381 | Y43: 676.752381 | Z43: 677.752381 | AA43: 678.752381 | AB43: 679.752381 | AC43: 680.752381 | AD43: 681.752381 | AF43: 682.752381 | AG43: 683.752381 | AH43: 684.752381 | AI43: 685.752381 | AJ43: 686.752381 | AK43: 687.752381 | AL43: 688.752381 | AM43: 689.752381 | AN43: 690.752381 | AO43: 691.752381
B44: 667.7238095 | C44: 668.7238095 | D44: 669.7238095 | F44: 670.7238095 | G44: 671.7238095 | H44: 672.7238095 | I44: 673.7238095 | J44: 674.7238095 | K44: 675.7238095 | L44: 676.7238095 | M44: 677.7238095 | N44: 678.7238095 | O44: 679.7238095 | P44: 680.7238095 | Q44: 681.7238095 | R44: 682.7238095 | S44: 683.7238095 | T44: 684.7238095 | U44: 685.7238095 | V44: 686.7238095 | X44: 687.7238095 | Y44: 688.7238095 | Z44: 689.7238095 | AA44: 690.7238095 | AB44: 691.7238095 | AC44: 692.7238095 | AD44: 693.7238095 | AF44: 694.7238095 | AG44: 695.7238095 | AH44: 696.7238095 | AI44: 697.7238095 | AJ44: 698.7238095 | AK44: 699.7238095 | AL44: 700.7238095 | AM44: 701.7238095 | AN44: 702.7238095 | AO44: 703.7238095
B45: 679.6952381 | C45: 680.6952381 | D45: 681.6952381 | F45: 682.6952381 | G45: 683.6952381 | H45: 684.6952381 | I45: 685.6952381 | J45: 686.6952381 | K45: 687.6952381 | L45: 688.6952381 | M45: 689.6952381 | N45: 690.6952381 | O45: 691.6952381 | P45: 692.6952381 | Q45: 693.6952381 | R45: 694.6952381 | S45: 695.6952381 | T45: 696.6952381 | U45: 697.6952381 | V45: 698.6952381 | X45: 699.6952381 | Y45: 700.6952381 | Z45: 701.6952381 | AA45: 702.6952381 | AB45: 703.6952381 | AC45: 704.6952381 | AD45: 705.6952381 | AF45: 706.6952381 | AG45: 707.6952381 | AH45: 708.6952381 | AI45: 709.6952381 | AJ45: 710.6952381 | AK45: 711.6952381 | AL45: 712.6952381 | AM45: 713.6952381 | AN45: 714.6952381 | AO45: 715.6952381
B46: 691.6666667 | C46: 692.6666667 | D46: 693.6666667 | F46: 694.6666667 | G46: 695.6666667 | H46: 696.6666667 | I46: 697.6666667 | J46: 698.6666667 | K46: 699.6666667 | L46: 700.6666667 | M46: 701.6666667 | N46: 702.6666667 | O46: 703.6666667 | P46: 704.6666667 | Q46: 705.6666667 | R46: 706.6666667 | S46: 707.6666667 | T46: 708.6666667 | U46: 709.6666667 | V46: 710.6666667 | X46: 711.6666667 | Y46: 712.6666667 | Z46: 713.6666667 | AA46: 714.6666667 | AB46: 715.6666667 | AC46: 716.6666667 | AD46: 717.6666667 | AF46: 718.6666667 | AG46: 719.6666667 | AH46: 720.6666667 | AI46: 721.6666667 | AJ46: 722.6666667 | AK46: 723.6666667 | AL46: 724.6666667 | AM46: 725.6666667 | AN46: 726.6666667 | AO46: 727.6666667
B47: 703.6380952 | C47: 704.6380952 | D47: 705.6380952 | F47: 706.6380952 | G47: 707.6380952 | H47: 708.6380952 | I47: 709.6380952 | J47: 710.6380952 | K47: 711.6380952 | L47: 712.6380952 | M47: 713.6380952 | N47: 714.6380952 | O47: 715.6380952 | P47: 716.6380952 | Q47: 717.6380952 | R47: 718.6380952 | S47: 719.6380952 | T47: 720.6380952 | U47: 721.6380952 | V47: 722.6380952 | X47: 723.6380952 | Y47: 724.6380952 | Z47: 725.6380952 | AA47: 726.6380952 | AB47: 727.6380952 | AC47: 728.6380952 | AD47: 729.6380952 | AF47: 730.6380952 | AG47: 731.6380952 | AH47: 732.6380952 | AI47: 733.6380952 | AJ47: 734.6380952 | AK47: 735.6380952 | AL47: 736.6380952 | AM47: 737.6380952 | AN47: 738.6380952 | AO47: 739.6380952
B48: 715.6095238 | C48: 716.6095238 | D48: 717.6095238 | F48: 718.6095238 | G48: 719.6095238 | H48: 720.6095238 | I48: 721.6095238 | J48: 722.6095238 | K48: 723.6095238 | L48: 724.6095238 | M48: 725.6095238 | N48: 726.6095238 | O48: 727.6095238 | P48: 728.6095238 | Q48: 729.6095238 | R48: 730.6095238 | S48: 731.6095238 | T48: 732.6095238 | U48: 733.6095238 | V48: 734.6095238 | X48: 735.6095238 | Y48: 736.6095238 | Z48: 737.6095238 | AA48: 738.6095238 | AB48: 739.6095238 | AC48: 740.6095238 | AD48: 741.6095238 | AF48: 742.6095238 | AG48: 743.6095238 | AH48: 744.6095238 | AI48: 745.6095238 | AJ48: 746.6095238 | AK48: =AJ48+1 -> 747.6095238 | AL48: 748.6095238 | AM48: 749.6095238 | AN48: 750.6095238 | AO48: 751.6095238
B49: 727.5809524 | C49: 728.5809524 | D49: 729.5809524 | F49: 730.5809524 | G49: 731.5809524 | H49: 732.5809524 | I49: 733.5809524 | J49: 734.5809524 | K49: 735.5809524 | L49: 736.5809524 | M49: 737.5809524 | N49: 738.5809524 | O49: 739.5809524 | P49: 740.5809524 | Q49: 741.5809524 | R49: 742.5809524 | S49: 743.5809524 | T49: =S49+1 -> 744.5809524 | U49: 745.5809524 | V49: 746.5809524 | X49: 747.5809524 | Y49: 748.5809524 | Z49: 749.5809524 | AA49: 750.5809524 | AB49: 751.5809524 | AC49: 752.5809524 | AD49: 753.5809524 | AF49: 754.5809524 | AG49: 755.5809524 | AH49: 756.5809524 | AI49: 757.5809524 | AJ49: 758.5809524 | AK49: 759.5809524 | AL49: 760.5809524 | AM49: 761.5809524 | AN49: 762.5809524 | AO49: 763.5809524

Sheet Go to Special
B2: Use of Go to Special Feature
B4: 123 | C4: =B4+1 -> 124 | D4: =C4+1 -> 125 | F4: =D4+1 -> 126 | G4: 127 | H4: 128 | I4: 129 | J4: 130 | K4: 131 | L4: 132 | M4: 133 | N4: 134 | O4: 135 | P4: 136 | Q4: 137 | R4: 138 | S4: 139 | T4: 140 | U4: 141 | V4: 142 | X4: =V4+1 -> 143 | Y4: 144 | Z4: 145 | AA4: 146 | AB4: 147 | AC4: 148 | AD4: 149 | AF4: =AD4+1 -> 150 | AG4: 151 | AH4: =AG4+1 -> 152 | AI4: =AH4+1 -> 153 | AJ4: 154 | AK4: 155 | AL4: 156 | AM4: 157 | AN4: 158 | AO4: 159
B5: 43 | C5: =B5+1 -> 44 | D5: 45 | F5: 46 | G5: 47 | H5: 48 | I5: 49 | J5: 50 | K5: 51 | L5: 52 | M5: 53 | N5: 54 | O5: 55 | P5: 56 | Q5: 57 | R5: 58 | S5: 59 | T5: 60 | U5: 61 | V5: 62 | X5: 63 | Y5: 64 | Z5: 65 | AA5: 66 | AB5: 67 | AC5: 68 | AD5: 69 | AF5: 70 | AG5: 71 | AH5: =AG5+1 -> 72 | AI5: 73 | AJ5: 74 | AK5: 75 | AL5: 76 | AM5: 77 | AN5: 78 | AO5: 79
B6: 567 | C6: 568 | D6: 569 | F6: 570 | G6: 571 | H6: 572 | I6: 573 | J6: 574 | K6: 575 | L6: 576 | M6: 577 | N6: 578 | O6: 579 | P6: 580 | Q6: 581 | R6: 582 | S6: 583 | T6: 584 | U6: 585 | V6: 586 | X6: 587 | Y6: 588 | Z6: 589 | AA6: 590 | AB6: 591 | AC6: 592 | AD6: 593 | AF6: 594 | AG6: 595 | AH6: 596 | AI6: 597 | AJ6: 598 | AK6: 599 | AL6: 600 | AM6: 601 | AN6: 602 | AO6: 603
B7: 78 | C7: 79 | D7: 80 | F7: 81 | G7: 82 | H7: 83 | I7: 84 | J7: 85 | K7: 86 | L7: 87 | M7: 88 | N7: 89 | O7: 90 | P7: 91 | Q7: 92 | R7: 93 | S7: 94 | T7: 95 | U7: 96 | V7: 97 | X7: 98 | Y7: 99 | Z7: 100 | AA7: 101 | AB7: 102 | AC7: 103 | AD7: 104 | AF7: 105 | AG7: 106 | AH7: 107 | AI7: 108 | AJ7: 109 | AK7: 110 | AL7: 111 | AM7: 112 | AN7: 113 | AO7: 114
B8: 34 | C8: 35 | D8: 36 | F8: 37 | G8: 38 | H8: 39 | I8: 40 | J8: 41 | K8: 42 | L8: 43 | M8: 44 | N8: 45 | O8: 46 | P8: 47 | Q8: 48 | R8: 49 | S8: 50 | T8: 51 | U8: 52 | V8: 53 | X8: 54 | Y8: 55 | Z8: 56 | AA8: 57 | AB8: 58 | AC8: 59 | AD8: 60 | AF8: 61 | AG8: 62 | AH8: 63 | AI8: 64 | AJ8: 65 | AK8: 66 | AL8: 67 | AM8: 68 | AN8: 69 | AO8: 70
B9: 568 | C9: 569 | D9: 570 | F9: 571 | G9: 572 | H9: 573 | I9: 574 | J9: 575 | K9: 576 | L9: 577 | M9: 578 | N9: 579 | O9: 580 | P9: 581 | Q9: 582 | R9: 583 | S9: 584 | T9: 585 | U9: 586 | V9: 587 | X9: 588 | Y9: 589 | Z9: 590 | AA9: 591 | AB9: 592 | AC9: 593 | AD9: 594 | AF9: 595 | AG9: 596 | AH9: 597 | AI9: 598 | AJ9: 599 | AK9: 600 | AL9: 601 | AM9: 602 | AN9: 603 | AO9: 604
B10: 41 | C10: 42 | D10: 43 | F10: 44 | G10: 45 | H10: 46 | I10: 47 | J10: 48 | K10: 49 | L10: 50 | M10: 51 | N10: 52 | O10: 53 | P10: 54 | Q10: 55 | R10: 56 | S10: 57 | T10: 58 | U10: 59 | V10: 60 | X10: 61 | Y10: 62 | Z10: 63 | AA10: 64 | AB10: 65 | AC10: 66 | AD10: 67 | AF10: 68 | AG10: 69 | AH10: 70 | AI10: 71 | AJ10: 72 | AK10: 73 | AL10: 74 | AM10: 75 | AN10: 76 | AO10: 77
B11: 54 | C11: 55 | D11: 56 | F11: 57 | G11: 58 | H11: 59 | I11: 60 | J11: 61 | K11: 62 | L11: 63 | M11: 64 | N11: 65 | O11: 66 | P11: 67 | Q11: 68 | R11: 69 | S11: 70 | T11: 71 | U11: 72 | V11: 73 | X11: 74 | Y11: 75 | Z11: 76 | AA11: 77 | AB11: 78 | AC11: 79 | AD11: 80 | AF11: 81 | AG11: 82 | AH11: 83 | AI11: 84 | AJ11: 85 | AK11: 86 | AL11: 87 | AM11: 88 | AN11: 89 | AO11: 90
B12: 879 | C12: 880 | D12: 881 | F12: 882 | G12: 883 | H12: 884 | I12: 885 | J12: 886 | K12: 887 | L12: 888 | M12: 889 | N12: 890 | O12: 891 | P12: 892 | Q12: 893 | R12: 894 | S12: 895 | T12: 896 | U12: 897 | V12: 898 | X12: 899 | Y12: 900 | Z12: 901 | AA12: 902 | AB12: 903 | AC12: 904 | AD12: 905 | AF12: 906 | AG12: 907 | AH12: 908 | AI12: 909 | AJ12: 910 | AK12: 911 | AL12: 912 | AM12: 913 | AN12: 914 | AO12: 915
B13: 53 | C13: 54 | D13: 55 | F13: 56 | G13: 57 | H13: 58 | I13: 59 | J13: 60 | K13: 61 | L13: 62 | M13: 63 | N13: 64 | O13: 65 | P13: 66 | Q13: 67 | R13: 68 | S13: 69 | T13: 70 | U13: 71 | V13: 72 | X13: 73 | Y13: 74 | Z13: 75 | AA13: 76 | AB13: 77 | AC13: 78 | AD13: 79 | AF13: 80 | AG13: 81 | AH13: 82 | AI13: 83 | AJ13: 84 | AK13: 85 | AL13: 86 | AM13: 87 | AN13: 88 | AO13: 89
B14: 56 | C14: 57 | D14: 58 | F14: 59 | G14: 60 | H14: 61 | I14: 62 | J14: 63 | K14: 64 | L14: 65 | M14: 66 | N14: 67 | O14: 68 | P14: 69 | Q14: 70 | R14: 71 | S14: 72 | T14: 73 | U14: 74 | V14: 75 | X14: 76 | Y14: 77 | Z14: 78 | AA14: 79 | AB14: 80 | AC14: 81 | AD14: 82 | AF14: 83 | AG14: 84 | AH14: 85 | AI14: 86 | AJ14: 87 | AK14: 88 | AL14: 89 | AM14: 90 | AN14: 91 | AO14: 92
B15: 897 | C15: 898 | D15: 899 | F15: 900 | G15: 901 | H15: 902 | I15: 903 | J15: 904 | K15: =J15+1 -> 905 | L15: 906 | M15: 907 | N15: 908 | O15: 909 | P15: 910 | Q15: 911 | R15: 912 | S15: 913 | T15: 914 | U15: 915 | V15: 916 | X15: 917 | Y15: 918 | Z15: 919 | AA15: 920 | AB15: 921 | AC15: 922 | AD15: 923 | AF15: 924 | AG15: 925 | AH15: 926 | AI15: 927 | AJ15: 928 | AK15: 929 | AL15: 930 | AM15: 931 | AN15: 932 | AO15: 933
B16: 90 | C16: 91 | D16: 92 | F16: 93 | G16: 94 | H16: 95 | I16: 96 | J16: 97 | K16: 98 | L16: 99 | M16: 100 | N16: 101 | O16: 102 | P16: 103 | Q16: 104 | R16: 105 | S16: 106 | T16: 107 | U16: 108 | V16: 109 | X16: 110 | Y16: 111 | Z16: 112 | AA16: 113 | AB16: 114 | AC16: 115 | AD16: 116 | AF16: 117 | AG16: 118 | AH16: 119 | AI16: 120 | AJ16: 121 | AK16: 122 | AL16: 123 | AM16: 124 | AN16: 125 | AO16: 126
B17: 543 | C17: 544 | D17: 545 | F17: 546 | G17: 547 | H17: 548 | I17: 549 | J17: 550 | K17: 551 | L17: 552 | M17: 553 | N17: 554 | O17: 555 | P17: 556 | Q17: 557 | R17: 558 | S17: 559 | T17: 560 | U17: 561 | V17: 562 | X17: 563 | Y17: 564 | Z17: 565 | AA17: 566 | AB17: 567 | AC17: 568 | AD17: 569 | AF17: 570 | AG17: 571 | AH17: 572 | AI17: 573 | AJ17: 574 | AK17: 575 | AL17: 576 | AM17: 577 | AN17: 578 | AO17: 579
B18: 64 | C18: 65 | D18: 66 | F18: 67 | G18: 68 | H18: 69 | I18: 70 | J18: 71 | K18: 72 | L18: 73 | M18: 74 | N18: 75 | O18: 76 | P18: 77 | Q18: 78 | R18: 79 | S18: 80 | T18: 81 | U18: 82 | V18: 83 | X18: 84 | Y18: 85 | Z18: 86 | AA18: 87 | AB18: 88 | AC18: 89 | AD18: 90 | AF18: 91 | AG18: 92 | AH18: 93 | AI18: 94 | AJ18: 95 | AK18: 96 | AL18: 97 | AM18: 98 | AN18: 99 | AO18: 100
B19: =C13+3 -> 57 | C19: =D13+3 -> 58 | D19: =F13+3 -> 59 | F19: 60 | G19: 61 | H19: 62 | I19: 63 | J19: 64 | K19: 65 | L19: 66 | M19: 67 | N19: 68 | O19: 69 | P19: 70 | Q19: 71 | R19: 72 | S19: 73 | T19: 74 | U19: 75 | V19: 76 | X19: 77 | Y19: 78 | Z19: 79 | AA19: 80 | AB19: 81 | AC19: 82 | AD19: 83 | AF19: 84 | AG19: 85 | AH19: 86 | AI19: 87 | AJ19: 88 | AK19: 89 | AL19: 90 | AM19: 91 | AN19: 92 | AO19: 93
B20: =C14+3 -> 60 | C20: 61 | D20: 62 | F20: 63 | G20: 64 | H20: 65 | I20: 66 | J20: 67 | K20: 68 | L20: 69 | M20: 70 | N20: 71 | O20: 72 | P20: 73 | Q20: 74 | R20: 75 | S20: 76 | T20: 77 | U20: 78 | V20: 79 | X20: 80 | Y20: 81 | Z20: 82 | AA20: 83 | AB20: 84 | AC20: 85 | AD20: 86 | AF20: 87 | AG20: 88 | AH20: 89 | AI20: 90 | AJ20: 91 | AK20: 92 | AL20: 93 | AM20: 94 | AN20: 95 | AO20: 96
B21: 901 | C21: 902 | D21: 903 | F21: 904 | G21: 905 | H21: 906 | I21: 907 | J21: 908 | K21: 909 | L21: 910 | M21: 911 | N21: 912 | O21: 913 | P21: 914 | Q21: 915 | R21: 916 | S21: 917 | T21: 918 | U21: 919 | V21: 920 | X21: 921 | Y21: 922 | Z21: 923 | AA21: 924 | AB21: 925 | AC21: 926 | AD21: 927 | AF21: 928 | AG21: 929 | AH21: 930 | AI21: 931 | AJ21: 932 | AK21: 933 | AL21: 934 | AM21: 935 | AN21: 936 | AO21: 937
B22: 94 | C22: 95 | D22: 96 | F22: 97 | G22: 98 | H22: 99 | I22: 100 | J22: 101 | K22: 102 | L22: 103 | M22: 104 | N22: 105 | O22: 106 | P22: 107 | Q22: 108 | R22: 109 | S22: 110 | T22: 111 | U22: 112 | V22: 113 | X22: 114 | Y22: 115 | Z22: 116 | AA22: 117 | AB22: 118 | AC22: 119 | AD22: 120 | AF22: 121 | AG22: 122 | AH22: 123 | AI22: 124 | AJ22: 125 | AK22: 126 | AL22: 127 | AM22: 128 | AN22: 129 | AO22: 130
B23: 547 | C23: 548 | D23: 549 | F23: 550 | G23: 551 | H23: 552 | I23: 553 | J23: 554 | K23: 555 | L23: 556 | M23: 557 | N23: 558 | O23: 559 | P23: 560 | Q23: 561 | R23: 562 | S23: 563 | T23: 564 | U23: 565 | V23: 566 | X23: 567 | Y23: 568 | Z23: 569 | AA23: 570 | AB23: 571 | AC23: 572 | AD23: 573 | AF23: 574 | AG23: 575 | AH23: 576 | AI23: 577 | AJ23: 578 | AK23: 579 | AL23: 580 | AM23: 581 | AN23: 582 | AO23: 583
B24: 68 | C24: 69 | D24: 70 | F24: 71 | G24: 72 | H24: 73 | I24: 74 | J24: 75 | K24: 76 | L24: 77 | M24: 78 | N24: 79 | O24: 80 | P24: 81 | Q24: 82 | R24: 83 | S24: 84 | T24: 85 | U24: 86 | V24: 87 | X24: 88 | Y24: 89 | Z24: 90 | AA24: 91 | AB24: 92 | AC24: 93 | AD24: 94 | AF24: 95 | AG24: 96 | AH24: 97 | AI24: 98 | AJ24: 99 | AK24: 100 | AL24: 101 | AM24: 102 | AN24: 103 | AO24: 104
B25: 61 | C25: 62 | D25: 63 | F25: 64 | G25: 65 | H25: =G25+1 -> 66 | I25: 67 | J25: 68 | K25: 69 | L25: 70 | M25: 71 | N25: 72 | O25: 73 | P25: 74 | Q25: 75 | R25: 76 | S25: 77 | T25: 78 | U25: 79 | V25: 80 | X25: 81 | Y25: 82 | Z25: 83 | AA25: 84 | AB25: 85 | AC25: 86 | AD25: 87 | AF25: 88 | AG25: 89 | AH25: 90 | AI25: 91 | AJ25: 92 | AK25: 93 | AL25: 94 | AM25: 95 | AN25: 96 | AO25: 97
B26: 64 | C26: 65 | D26: 66 | F26: 67 | G26: 68 | H26: 69 | I26: 70 | J26: 71 | K26: 72 | L26: 73 | M26: 74 | N26: 75 | O26: 76 | P26: 77 | Q26: 78 | R26: 79 | S26: 80 | T26: 81 | U26: 82 | V26: 83 | X26: 84 | Y26: 85 | Z26: 86 | AA26: 87 | AB26: 88 | AC26: 89 | AD26: 90 | AF26: 91 | AG26: 92 | AH26: 93 | AI26: 94 | AJ26: 95 | AK26: 96 | AL26: 97 | AM26: 98 | AN26: 99 | AO26: 100
B27: 905 | C27: 906 | D27: 907 | F27: 908 | G27: 909 | H27: 910 | I27: 911 | J27: 912 | K27: 913 | L27: 914 | M27: 915 | N27: 916 | O27: 917 | P27: 918 | Q27: 919 | R27: 920 | S27: 921 | T27: 922 | U27: 923 | V27: 924 | X27: 925 | Y27: 926 | Z27: 927 | AA27: 928 | AB27: 929 | AC27: 930 | AD27: 931 | AF27: 932 | AG27: 933 | AH27: 934 | AI27: 935 | AJ27: 936 | AK27: 937 | AL27: 938 | AM27: 939 | AN27: 940 | AO27: 941
B28: 98 | C28: 99 | D28: 100 | F28: 101 | G28: 102 | H28: 103 | I28: 104 | J28: 105 | K28: 106 | L28: 107 | M28: 108 | N28: 109 | O28: 110 | P28: 111 | Q28: 112 | R28: 113 | S28: 114 | T28: 115 | U28: 116 | V28: 117 | X28: 118 | Y28: 119 | Z28: 120 | AA28: 121 | AB28: 122 | AC28: 123 | AD28: 124 | AF28: 125 | AG28: 126 | AH28: 127 | AI28: 128 | AJ28: 129 | AK28: 130 | AL28: 131 | AM28: 132 | AN28: 133 | AO28: 134
B29: 551 | C29: 552 | D29: 553 | F29: 554 | G29: 555 | H29: 556 | I29: 557 | J29: 558 | K29: 559 | L29: 560 | M29: 561 | N29: 562 | O29: 563 | P29: 564 | Q29: 565 | R29: 566 | S29: 567 | T29: 568 | U29: 569 | V29: 570 | X29: 571 | Y29: 572 | Z29: 573 | AA29: 574 | AB29: 575 | AC29: 576 | AD29: 577 | AF29: 578 | AG29: 579 | AH29: 580 | AI29: 581 | AJ29: 582 | AK29: 583 | AL29: 584 | AM29: 585 | AN29: 586 | AO29: 587
B30: 72 | C30: 73 | D30: 74 | F30: 75 | G30: 76 | H30: 77 | I30: 78 | J30: 79 | K30: 80 | L30: 81 | M30: 82 | N30: 83 | O30: 84 | P30: 85 | Q30: 86 | R30: 87 | S30: 88 | T30: 89 | U30: 90 | V30: 91 | X30: 92 | Y30: 93 | Z30: 94 | AA30: 95 | AB30: 96 | AC30: 97 | AD30: 98 | AF30: 99 | AG30: 100 | AH30: 101 | AI30: 102 | AJ30: 103 | AK30: 104 | AL30: 105 | AM30: 106 | AN30: 107 | AO30: 108
B31: 65 | C31: 66 | D31: 67 | F31: 68 | G31: 69 | H31: 70 | I31: 71 | J31: 72 | K31: 73 | L31: 74 | M31: 75 | N31: 76 | O31: 77 | P31: 78 | Q31: 79 | R31: 80 | S31: 81 | T31: 82 | U31: 83 | V31: 84 | X31: 85 | Y31: 86 | Z31: 87 | AA31: 88 | AB31: 89 | AC31: 90 | AD31: 91 | AF31: 92 | AG31: 93 | AH31: 94 | AI31: 95 | AJ31: 96 | AK31: 97 | AL31: 98 | AM31: 99 | AN31: 100 | AO31: 101
B32: 68 | C32: 69 | D32: 70 | F32: 71 | G32: 72 | H32: 73 | I32: 74 | J32: 75 | K32: 76 | L32: 77 | M32: 78 | N32: 79 | O32: 80 | P32: 81 | Q32: 82 | R32: 83 | S32: 84 | T32: 85 | U32: 86 | V32: 87 | X32: 88 | Y32: 89 | Z32: 90 | AA32: 91 | AB32: 92 | AC32: 93 | AD32: 94 | AF32: 95 | AG32: 96 | AH32: 97 | AI32: 98 | AJ32: 99 | AK32: 100 | AL32: 101 | AM32: 102 | AN32: 103 | AO32: 104
B33: 909 | C33: 910 | D33: 911 | F33: 912 | G33: 913 | H33: 914 | I33: 915 | J33: 916 | K33: 917 | L33: 918 | M33: 919 | N33: 920 | O33: 921 | P33: 922 | Q33: 923 | R33: 924 | S33: 925 | T33: 926 | U33: 927 | V33: 928 | X33: 929 | Y33: =X33+1 -> 930 | Z33: 931 | AA33: 932 | AB33: 933 | AC33: 934 | AD33: 935 | AF33: 936 | AG33: 937 | AH33: 938 | AI33: 939 | AJ33: 940 | AK33: 941 | AL33: 942 | AM33: 943 | AN33: 944 | AO33: 945
B34: 102 | C34: 103 | D34: 104 | F34: 105 | G34: 106 | H34: =G34+1 -> 107 | I34: 108 | J34: 109 | K34: 110 | L34: 111 | M34: 112 | N34: 113 | O34: 114 | P34: 115 | Q34: 116 | R34: 117 | S34: 118 | T34: 119 | U34: 120 | V34: 121 | X34: 122 | Y34: 123 | Z34: 124 | AA34: 125 | AB34: 126 | AC34: 127 | AD34: 128 | AF34: 129 | AG34: 130 | AH34: 131 | AI34: 132 | AJ34: 133 | AK34: 134 | AL34: 135 | AM34: 136 | AN34: 137 | AO34: 138
B35: 555 | C35: 556 | D35: 557 | F35: 558 | G35: 559 | H35: 560 | I35: 561 | J35: 562 | K35: 563 | L35: 564 | M35: 565 | N35: 566 | O35: 567 | P35: 568 | Q35: 569 | R35: 570 | S35: 571 | T35: 572 | U35: 573 | V35: 574 | X35: 575 | Y35: 576 | Z35: 577 | AA35: 578 | AB35: 579 | AC35: 580 | AD35: 581 | AF35: 582 | AG35: 583 | AH35: 584 | AI35: 585 | AJ35: 586 | AK35: 587 | AL35: 588 | AM35: 589 | AN35: 590 | AO35: 591
B36: =C30+3 -> 76 | C36: =D30+3 -> 77 | D36: 78 | F36: 79 | G36: 80 | H36: 81 | I36: 82 | J36: 83 | K36: 84 | L36: 85 | M36: 86 | N36: 87 | O36: 88 | P36: 89 | Q36: 90 | R36: 91 | S36: 92 | T36: 93 | U36: 94 | V36: 95 | X36: 96 | Y36: 97 | Z36: 98 | AA36: 99 | AB36: 100 | AC36: 101 | AD36: 102 | AF36: 103 | AG36: 104 | AH36: 105 | AI36: 106 | AJ36: 107 | AK36: 108 | AL36: 109 | AM36: 110 | AN36: 111 | AO36: 112
B37: =C31+3 -> 69 | C37: 70 | D37: 71 | F37: 72 | G37: 73 | H37: 74 | I37: 75 | J37: 76 | K37: 77 | L37: 78 | M37: 79 | N37: 80 | O37: 81 | P37: 82 | Q37: 83 | R37: 84 | S37: 85 | T37: 86 | U37: 87 | V37: 88 | X37: 89 | Y37: 90 | Z37: 91 | AA37: 92 | AB37: 93 | AC37: 94 | AD37: 95 | AF37: 96 | AG37: 97 | AH37: 98 | AI37: 99 | AJ37: 100 | AK37: 101 | AL37: 102 | AM37: 103 | AN37: 104 | AO37: 105
B38: 72 | C38: 73 | D38: 74 | F38: 75 | G38: 76 | H38: 77 | I38: 78 | J38: 79 | K38: 80 | L38: 81 | M38: 82 | N38: 83 | O38: 84 | P38: 85 | Q38: 86 | R38: 87 | S38: 88 | T38: 89 | U38: 90 | V38: 91 | X38: 92 | Y38: 93 | Z38: 94 | AA38: 95 | AB38: 96 | AC38: 97 | AD38: 98 | AF38: 99 | AG38: 100 | AH38: 101 | AI38: 102 | AJ38: 103 | AK38: 104 | AL38: 105 | AM38: 106 | AN38: 107 | AO38: 108
B39: 913 | C39: 914 | D39: 915 | F39: 916 | G39: 917 | H39: 918 | I39: 919 | J39: 920 | K39: 921 | L39: 922 | M39: 923 | N39: 924 | O39: 925 | P39: 926 | Q39: 927 | R39: 928 | S39: 929 | T39: 930 | U39: 931 | V39: 932 | X39: 933 | Y39: 934 | Z39: 935 | AA39: 936 | AB39: 937 | AC39: 938 | AD39: 939 | AF39: 940 | AG39: 941 | AH39: 942 | AI39: 943 | AJ39: 944 | AK39: 945 | AL39: 946 | AM39: 947 | AN39: 948 | AO39: 949
B40: 619.8380952 | C40: =B40+1 -> 620.8380952 | D40: 621.8380952 | F40: =D40+1 -> 622.8380952 | G40: 623.8380952 | H40: 624.8380952 | I40: 625.8380952 | J40: 626.8380952 | K40: 627.8380952 | L40: 628.8380952 | M40: 629.8380952 | N40: 630.8380952 | O40: 631.8380952 | P40: 632.8380952 | Q40: 633.8380952 | R40: 634.8380952 | S40: 635.8380952 | T40: 636.8380952 | U40: 637.8380952 | V40: 638.8380952 | X40: 639.8380952 | Y40: 640.8380952 | Z40: 641.8380952 | AA40: 642.8380952 | AB40: 643.8380952 | AC40: 644.8380952 | AD40: 645.8380952 | AF40: 646.8380952 | AG40: 647.8380952 | AH40: 648.8380952 | AI40: 649.8380952 | AJ40: 650.8380952 | AK40: 651.8380952 | AL40: 652.8380952 | AM40: 653.8380952 | AN40: 654.8380952 | AO40: 655.8380952
B41: 631.8095238 | C41: =B41+1 -> 632.8095238 | D41: 633.8095238 | F41: 634.8095238 | G41: 635.8095238 | H41: 636.8095238 | I41: 637.8095238 | J41: 638.8095238 | K41: 639.8095238 | L41: 640.8095238 | M41: 641.8095238 | N41: 642.8095238 | O41: 643.8095238 | P41: 644.8095238 | Q41: 645.8095238 | R41: 646.8095238 | S41: 647.8095238 | T41: 648.8095238 | U41: 649.8095238 | V41: 650.8095238 | X41: 651.8095238 | Y41: 652.8095238 | Z41: 653.8095238 | AA41: 654.8095238 | AB41: 655.8095238 | AC41: 656.8095238 | AD41: 657.8095238 | AF41: 658.8095238 | AG41: 659.8095238 | AH41: =AG41+1 -> 660.8095238 | AI41: 661.8095238 | AJ41: 662.8095238 | AK41: 663.8095238 | AL41: 664.8095238 | AM41: 665.8095238 | AN41: 666.8095238 | AO41: 667.8095238
B42: 643.7809524 | C42: =B42+1 -> 644.7809524 | D42: 645.7809524 | F42: 646.7809524 | G42: 647.7809524 | H42: 648.7809524 | I42: 649.7809524 | J42: 650.7809524 | K42: 651.7809524 | L42: 652.7809524 | M42: 653.7809524 | N42: 654.7809524 | O42: 655.7809524 | P42: 656.7809524 | Q42: 657.7809524 | R42: 658.7809524 | S42: 659.7809524 | T42: 660.7809524 | U42: 661.7809524 | V42: 662.7809524 | X42: 663.7809524 | Y42: 664.7809524 | Z42: 665.7809524 | AA42: 666.7809524 | AB42: 667.7809524 | AC42: 668.7809524 | AD42: 669.7809524 | AF42: 670.7809524 | AG42: 671.7809524 | AH42: 672.7809524 | AI42: 673.7809524 | AJ42: 674.7809524 | AK42: 675.7809524 | AL42: 676.7809524 | AM42: 677.7809524 | AN42: 678.7809524 | AO42: 679.7809524
B43: 655.752381 | C43: 656.752381 | D43: 657.752381 | F43: 658.752381 | G43: 659.752381 | H43: 660.752381 | I43: 661.752381 | J43: 662.752381 | K43: 663.752381 | L43: 664.752381 | M43: 665.752381 | N43: 666.752381 | O43: 667.752381 | P43: 668.752381 | Q43: 669.752381 | R43: 670.752381 | S43: 671.752381 | T43: 672.752381 | U43: 673.752381 | V43: 674.752381 | X43: 675.752381 | Y43: 676.752381 | Z43: 677.752381 | AA43: 678.752381 | AB43: 679.752381 | AC43: 680.752381 | AD43: 681.752381 | AF43: 682.752381 | AG43: 683.752381 | AH43: 684.752381 | AI43: 685.752381 | AJ43: 686.752381 | AK43: 687.752381 | AL43: 688.752381 | AM43: 689.752381 | AN43: 690.752381 | AO43: 691.752381
B44: 667.7238095 | C44: 668.7238095 | D44: 669.7238095 | F44: 670.7238095 | G44: 671.7238095 | H44: 672.7238095 | I44: 673.7238095 | J44: 674.7238095 | K44: 675.7238095 | L44: 676.7238095 | M44: 677.7238095 | N44: 678.7238095 | O44: 679.7238095 | P44: 680.7238095 | Q44: 681.7238095 | R44: 682.7238095 | S44: 683.7238095 | T44: 684.7238095 | U44: 685.7238095 | V44: 686.7238095 | X44: 687.7238095 | Y44: 688.7238095 | Z44: 689.7238095 | AA44: 690.7238095 | AB44: 691.7238095 | AC44: 692.7238095 | AD44: 693.7238095 | AF44: 694.7238095 | AG44: 695.7238095 | AH44: 696.7238095 | AI44: 697.7238095 | AJ44: 698.7238095 | AK44: 699.7238095 | AL44: 700.7238095 | AM44: 701.7238095 | AN44: 702.7238095 | AO44: 703.7238095
B45: 679.6952381 | C45: 680.6952381 | D45: 681.6952381 | F45: 682.6952381 | G45: 683.6952381 | H45: 684.6952381 | I45: 685.6952381 | J45: 686.6952381 | K45: 687.6952381 | L45: 688.6952381 | M45: 689.6952381 | N45: 690.6952381 | O45: 691.6952381 | P45: 692.6952381 | Q45: 693.6952381 | R45: 694.6952381 | S45: 695.6952381 | T45: 696.6952381 | U45: 697.6952381 | V45: 698.6952381 | X45: 699.6952381 | Y45: 700.6952381 | Z45: 701.6952381 | AA45: 702.6952381 | AB45: 703.6952381 | AC45: 704.6952381 | AD45: 705.6952381 | AF45: 706.6952381 | AG45: 707.6952381 | AH45: 708.6952381 | AI45: 709.6952381 | AJ45: 710.6952381 | AK45: 711.6952381 | AL45: 712.6952381 | AM45: 713.6952381 | AN45: 714.6952381 | AO45: 715.6952381
B46: 691.6666667 | C46: 692.6666667 | D46: 693.6666667 | F46: 694.6666667 | G46: 695.6666667 | H46: 696.6666667 | I46: 697.6666667 | J46: 698.6666667 | K46: 699.6666667 | L46: 700.6666667 | M46: 701.6666667 | N46: 702.6666667 | O46: 703.6666667 | P46: 704.6666667 | Q46: 705.6666667 | R46: 706.6666667 | S46: 707.6666667 | T46: 708.6666667 | U46: 709.6666667 | V46: 710.6666667 | X46: 711.6666667 | Y46: 712.6666667 | Z46: 713.6666667 | AA46: 714.6666667 | AB46: 715.6666667 | AC46: 716.6666667 | AD46: 717.6666667 | AF46: 718.6666667 | AG46: 719.6666667 | AH46: 720.6666667 | AI46: 721.6666667 | AJ46: 722.6666667 | AK46: 723.6666667 | AL46: 724.6666667 | AM46: 725.6666667 | AN46: 726.6666667 | AO46: 727.6666667
B47: 703.6380952 | C47: 704.6380952 | D47: 705.6380952 | F47: 706.6380952 | G47: 707.6380952 | H47: 708.6380952 | I47: 709.6380952 | J47: 710.6380952 | K47: 711.6380952 | L47: 712.6380952 | M47: 713.6380952 | N47: 714.6380952 | O47: 715.6380952 | P47: 716.6380952 | Q47: 717.6380952 | R47: 718.6380952 | S47: 719.6380952 | T47: 720.6380952 | U47: 721.6380952 | V47: 722.6380952 | X47: 723.6380952 | Y47: 724.6380952 | Z47: 725.6380952 | AA47: 726.6380952 | AB47: 727.6380952 | AC47: 728.6380952 | AD47: 729.6380952 | AF47: 730.6380952 | AG47: 731.6380952 | AH47: 732.6380952 | AI47: 733.6380952 | AJ47: 734.6380952 | AK47: 735.6380952 | AL47: 736.6380952 | AM47: 737.6380952 | AN47: 738.6380952 | AO47: 739.6380952
B48: 715.6095238 | C48: 716.6095238 | D48: 717.6095238 | F48: 718.6095238 | G48: 719.6095238 | H48: 720.6095238 | I48: 721.6095238 | J48: 722.6095238 | K48: 723.6095238 | L48: 724.6095238 | M48: 725.6095238 | N48: 726.6095238 | O48: 727.6095238 | P48: 728.6095238 | Q48: 729.6095238 | R48: 730.6095238 | S48: 731.6095238 | T48: 732.6095238 | U48: 733.6095238 | V48: 734.6095238 | X48: 735.6095238 | Y48: 736.6095238 | Z48: 737.6095238 | AA48: 738.6095238 | AB48: 739.6095238 | AC48: 740.6095238 | AD48: 741.6095238 | AF48: 742.6095238 | AG48: 743.6095238 | AH48: 744.6095238 | AI48: 745.6095238 | AJ48: 746.6095238 | AK48: =AJ48+1 -> 747.6095238 | AL48: 748.6095238 | AM48: 749.6095238 | AN48: 750.6095238 | AO48: 751.6095238
B49: 727.5809524 | C49: 728.5809524 | D49: 729.5809524 | F49: 730.5809524 | G49: 731.5809524 | H49: 732.5809524 | I49: 733.5809524 | J49: 734.5809524 | K49: 735.5809524 | L49: 736.5809524 | M49: 737.5809524 | N49: 738.5809524 | O49: 739.5809524 | P49: 740.5809524 | Q49: 741.5809524 | R49: 742.5809524 | S49: 743.5809524 | T49: =S49+1 -> 744.5809524 | U49: 745.5809524 | V49: 746.5809524 | X49: 747.5809524 | Y49: 748.5809524 | Z49: 749.5809524 | AA49: 750.5809524 | AB49: 751.5809524 | AC49: 752.5809524 | AD49: 753.5809524 | AF49: 754.5809524 | AG49: 755.5809524 | AH49: 756.5809524 | AI49: 757.5809524 | AJ49: 758.5809524 | AK49: 759.5809524 | AL49: 760.5809524 | AM49: 761.5809524 | AN49: 762.5809524 | AO49: 763.5809524

Sheet Auto Generate
B2: Stop Auto Generating
B4: 123 | C4: =B4+1 -> 124 | D4: =C4+1 -> 125 | F4: =D4+1 -> 126 | G4: 127 | H4: 128 | I4: 129 | J4: 130 | K4: 131 | L4: 132 | M4: 133 | N4: 134 | O4: 135 | P4: 136 | Q4: 137 | R4: 138 | S4: 139 | T4: 140 | U4: 141 | V4: 142 | X4: =V4+1 -> 143 | Y4: 144 | Z4: 145 | AA4: 146 | AB4: 147 | AC4: 148 | AD4: 149 | AF4: =AD4+1 -> 150 | AG4: 151 | AH4: =AG4+1 -> 152 | AI4: =AH4+1 -> 153 | AJ4: 154 | AK4: 155 | AL4: 156 | AM4: 157 | AN4: 158 | AO4: 159
B5: 43 | C5: =B5+1 -> 44 | D5: 45 | F5: 46 | G5: 47 | H5: 48 | I5: 49 | J5: 50 | K5: 51 | L5: 52 | M5: 53 | N5: 54 | O5: 55 | P5: 56 | Q5: 57 | R5: 58 | S5: 59 | T5: 60 | U5: 61 | V5: 62 | X5: 63 | Y5: 64 | Z5: 65 | AA5: 66 | AB5: 67 | AC5: 68 | AD5: 69 | AF5: 70 | AG5: 71 | AH5: =AG5+1 -> 72 | AI5: 73 | AJ5: 74 | AK5: 75 | AL5: 76 | AM5: 77 | AN5: 78 | AO5: 79
B6: 567 | C6: 568 | D6: 569 | F6: 570 | G6: 571 | H6: 572 | I6: 573 | J6: 574 | K6: 575 | L6: 576 | M6: 577 | N6: 578 | O6: 579 | P6: 580 | Q6: 581 | R6: 582 | S6: 583 | T6: 584 | U6: 585 | V6: 586 | X6: 587 | Y6: 588 | Z6: 589 | AA6: 590 | AB6: 591 | AC6: 592 | AD6: 593 | AF6: 594 | AG6: 595 | AH6: 596 | AI6: 597 | AJ6: 598 | AK6: 599 | AL6: 600 | AM6: 601 | AN6: 602 | AO6: 603
B7: 78 | C7: 79 | D7: 80 | F7: 81 | G7: 82 | H7: 83 | I7: 84 | J7: 85 | K7: 86 | L7: 87 | M7: 88 | N7: 89 | O7: 90 | P7: 91 | Q7: 92 | R7: 93 | S7: 94 | T7: 95 | U7: 96 | V7: 97 | X7: 98 | Y7: 99 | Z7: 100 | AA7: 101 | AB7: 102 | AC7: 103 | AD7: 104 | AF7: 105 | AG7: 106 | AH7: 107 | AI7: 108 | AJ7: 109 | AK7: 110 | AL7: 111 | AM7: 112 | AN7: 113 | AO7: 114
B8: 34 | C8: 35 | D8: 36 | F8: 37 | G8: 38 | H8: 39 | I8: 40 | J8: 41 | K8: 42 | L8: 43 | M8: 44 | N8: 45 | O8: 46 | P8: 47 | Q8: 48 | R8: 49 | S8: 50 | T8: 51 | U8: 52 | V8: 53 | X8: 54 | Y8: 55 | Z8: 56 | AA8: 57 | AB8: 58 | AC8: 59 | AD8: 60 | AF8: 61 | AG8: 62 | AH8: 63 | AI8: 64 | AJ8: 65 | AK8: 66 | AL8: 67 | AM8: 68 | AN8: 69 | AO8: 70
B9: 568 | C9: 569 | D9: 570 | F9: 571 | G9: 572 | H9: 573 | I9: 574 | J9: 575 | K9: 576 | L9: 577 | M9: 578 | N9: 579 | O9: 580 | P9: 581 | Q9: 582 | R9: 583 | S9: 584 | T9: 585 | U9: 586 | V9: 587 | X9: 588 | Y9: 589 | Z9: 590 | AA9: 591 | AB9: 592 | AC9: 593 | AD9: 594 | AF9: 595 | AG9: 596 | AH9: 597 | AI9: 598 | AJ9: 599 | AK9: 600 | AL9: 601 | AM9: 602 | AN9: 603 | AO9: 604
B10: 41 | C10: 42 | D10: 43 | F10: 44 | G10: 45 | H10: 46 | I10: 47 | J10: 48 | K10: 49 | L10: 50 | M10: 51 | N10: 52 | O10: 53 | P10: 54 | Q10: 55 | R10: 56 | S10: 57 | T10: 58 | U10: 59 | V10: 60 | X10: 61 | Y10: 62 | Z10: 63 | AA10: 64 | AB10: 65 | AC10: 66 | AD10: 67 | AF10: 68 | AG10: 69 | AH10: 70 | AI10: 71 | AJ10: 72 | AK10: 73 | AL10: 74 | AM10: 75 | AN10: 76 | AO10: 77
B11: 54 | C11: 55 | D11: 56 | F11: 57 | G11: 58 | H11: 59 | I11: 60 | J11: 61 | K11: 62 | L11: 63 | M11: 64 | N11: 65 | O11: 66 | P11: 67 | Q11: 68 | R11: 69 | S11: 70 | T11: 71 | U11: 72 | V11: 73 | X11: 74 | Y11: 75 | Z11: 76 | AA11: 77 | AB11: 78 | AC11: 79 | AD11: 80 | AF11: 81 | AG11: 82 | AH11: 83 | AI11: 84 | AJ11: 85 | AK11: 86 | AL11: 87 | AM11: 88 | AN11: 89 | AO11: 90
B12: 879 | C12: 880 | D12: 881 | F12: 882 | G12: 883 | H12: 884 | I12: 885 | J12: 886 | K12: 887 | L12: 888 | M12: 889 | N12: 890 | O12: 891 | P12: 892 | Q12: 893 | R12: 894 | S12: 895 | T12: 896 | U12: 897 | V12: 898 | X12: 899 | Y12: 900 | Z12: 901 | AA12: 902 | AB12: 903 | AC12: 904 | AD12: 905 | AF12: 906 | AG12: 907 | AH12: 908 | AI12: 909 | AJ12: 910 | AK12: 911 | AL12: 912 | AM12: 913 | AN12: 914 | AO12: 915
B13: 53 | C13: 54 | D13: 55 | F13: 56 | G13: 57 | H13: 58 | I13: 59 | J13: 60 | K13: 61 | L13: 62 | M13: 63 | N13: 64 | O13: 65 | P13: 66 | Q13: 67 | R13: 68 | S13: 69 | T13: 70 | U13: 71 | V13: 72 | X13: 73 | Y13: 74 | Z13: 75 | AA13: 76 | AB13: 77 | AC13: 78 | AD13: 79 | AF13: 80 | AG13: 81 | AH13: 82 | AI13: 83 | AJ13: 84 | AK13: 85 | AL13: 86 | AM13: 87 | AN13: 88 | AO13: 89
B14: 56 | C14: 57 | D14: 58 | F14: 59 | G14: 60 | H14: 61 | I14: 62 | J14: 63 | K14: 64 | L14: 65 | M14: 66 | N14: 67 | O14: 68 | P14: 69 | Q14: 70 | R14: 71 | S14: 72 | T14: 73 | U14: 74 | V14: 75 | X14: 76 | Y14: 77 | Z14: 78 | AA14: 79 | AB14: 80 | AC14: 81 | AD14: 82 | AF14: 83 | AG14: 84 | AH14: 85 | AI14: 86 | AJ14: 87 | AK14: 88 | AL14: 89 | AM14: 90 | AN14: 91 | AO14: 92
B15: 897 | C15: 898 | D15: 899 | F15: 900 | G15: 901 | H15: 902 | I15: 903 | J15: 904 | K15: =J15+1 -> 905 | L15: 906 | M15: 907 | N15: 908 | O15: 909 | P15: 910 | Q15: 911 | R15: 912 | S15: 913 | T15: 914 | U15: 915 | V15: 916 | X15: 917 | Y15: 918 | Z15: 919 | AA15: 920 | AB15: 921 | AC15: 922 | AD15: 923 | AF15: 924 | AG15: 925 | AH15: 926 | AI15: 927 | AJ15: 928 | AK15: 929 | AL15: 930 | AM15: 931 | AN15: 932 | AO15: 933
B16: 90 | C16: 91 | D16: 92 | F16: 93 | G16: 94 | H16: 95 | I16: 96 | J16: 97 | K16: 98 | L16: 99 | M16: 100 | N16: 101 | O16: 102 | P16: 103 | Q16: 104 | R16: 105 | S16: 106 | T16: 107 | U16: 108 | V16: 109 | X16: 110 | Y16: 111 | Z16: 112 | AA16: 113 | AB16: 114 | AC16: 115 | AD16: 116 | AF16: 117 | AG16: 118 | AH16: 119 | AI16: 120 | AJ16: 121 | AK16: 122 | AL16: 123 | AM16: 124 | AN16: 125 | AO16: 126
B17: 543 | C17: 544 | D17: 545 | F17: 546 | G17: 547 | H17: 548 | I17: 549 | J17: 550 | K17: 551 | L17: 552 | M17: 553 | N17: 554 | O17: 555 | P17: 556 | Q17: 557 | R17: 558 | S17: 559 | T17: 560 | U17: 561 | V17: 562 | X17: 563 | Y17: 564 | Z17: 565 | AA17: 566 | AB17: 567 | AC17: 568 | AD17: 569 | AF17: 570 | AG17: 571 | AH17: 572 | AI17: 573 | AJ17: 574 | AK17: 575 | AL17: 576 | AM17: 577 | AN17: 578 | AO17: 579
B18: 64 | C18: 65 | D18: 66 | F18: 67 | G18: 68 | H18: 69 | I18: 70 | J18: 71 | K18: 72 | L18: 73 | M18: 74 | N18: 75 | O18: 76 | P18: 77 | Q18: 78 | R18: 79 | S18: 80 | T18: 81 | U18: 82 | V18: 83 | X18: 84 | Y18: 85 | Z18: 86 | AA18: 87 | AB18: 88 | AC18: 89 | AD18: 90 | AF18: 91 | AG18: 92 | AH18: 93 | AI18: 94 | AJ18: 95 | AK18: 96 | AL18: 97 | AM18: 98 | AN18: 99 | AO18: 100
B19: =C13+3 -> 57 | C19: =D13+3 -> 58 | D19: =F13+3 -> 59 | F19: 60 | G19: 61 | H19: 62 | I19: 63 | J19: 64 | K19: 65 | L19: 66 | M19: 67 | N19: 68 | O19: 69 | P19: 70 | Q19: 71 | R19: 72 | S19: 73 | T19: 74 | U19: 75 | V19: 76 | X19: 77 | Y19: 78 | Z19: 79 | AA19: 80 | AB19: 81 | AC19: 82 | AD19: 83 | AF19: 84 | AG19: 85 | AH19: 86 | AI19: 87 | AJ19: 88 | AK19: 89 | AL19: 90 | AM19: 91 | AN19: 92 | AO19: 93
B20: =C14+3 -> 60 | C20: 61 | D20: 62 | F20: 63 | G20: 64 | H20: 65 | I20: 66 | J20: 67 | K20: 68 | L20: 69 | M20: 70 | N20: 71 | O20: 72 | P20: 73 | Q20: 74 | R20: 75 | S20: 76 | T20: 77 | U20: 78 | V20: 79 | X20: 80 | Y20: 81 | Z20: 82 | AA20: 83 | AB20: 84 | AC20: 85 | AD20: 86 | AF20: 87 | AG20: 88 | AH20: 89 | AI20: 90 | AJ20: 91 | AK20: 92 | AL20: 93 | AM20: 94 | AN20: 95 | AO20: 96
B21: 901 | C21: 902 | D21: 903 | F21: 904 | G21: 905 | H21: 906 | I21: 907 | J21: 908 | K21: 909 | L21: 910 | M21: 911 | N21: 912 | O21: 913 | P21: 914 | Q21: 915 | R21: 916 | S21: 917 | T21: 918 | U21: 919 | V21: 920 | X21: 921 | Y21: 922 | Z21: 923 | AA21: 924 | AB21: 925 | AC21: 926 | AD21: 927 | AF21: 928 | AG21: 929 | AH21: 930 | AI21: 931 | AJ21: 932 | AK21: 933 | AL21: 934 | AM21: 935 | AN21: 936 | AO21: 937
B22: 94 | C22: 95 | D22: 96 | F22: 97 | G22: 98 | H22: 99 | I22: 100 | J22: 101 | K22: 102 | L22: 103 | M22: 104 | N22: 105 | O22: 106 | P22: 107 | Q22: 108 | R22: 109 | S22: 110 | T22: 111 | U22: 112 | V22: 113 | X22: 114 | Y22: 115 | Z22: 116 | AA22: 117 | AB22: 118 | AC22: 119 | AD22: 120 | AF22: 121 | AG22: 122 | AH22: 123 | AI22: 124 | AJ22: 125 | AK22: 126 | AL22: 127 | AM22: 128 | AN22: 129 | AO22: 130
B23: 547 | C23: 548 | D23: 549 | F23: 550 | G23: 551 | H23: 552 | I23: 553 | J23: 554 | K23: 555 | L23: 556 | M23: 557 | N23: 558 | O23: 559 | P23: 560 | Q23: 561 | R23: 562 | S23: 563 | T23: 564 | U23: 565 | V23: 566 | X23: 567 | Y23: 568 | Z23: 569 | AA23: 570 | AB23: 571 | AC23: 572 | AD23: 573 | AF23: 574 | AG23: 575 | AH23: 576 | AI23: 577 | AJ23: 578 | AK23: 579 | AL23: 580 | AM23: 581 | AN23: 582 | AO23: 583
B24: 68 | C24: 69 | D24: 70 | F24: 71 | G24: 72 | H24: 73 | I24: 74 | J24: 75 | K24: 76 | L24: 77 | M24: 78 | N24: 79 | O24: 80 | P24: 81 | Q24: 82 | R24: 83 | S24: 84 | T24: 85 | U24: 86 | V24: 87 | X24: 88 | Y24: 89 | Z24: 90 | AA24: 91 | AB24: 92 | AC24: 93 | AD24: 94 | AF24: 95 | AG24: 96 | AH24: 97 | AI24: 98 | AJ24: 99 | AK24: 100 | AL24: 101 | AM24: 102 | AN24: 103 | AO24: 104
B25: 61 | C25: 62 | D25: 63 | F25: 64 | G25: 65 | H25: =G25+1 -> 66 | I25: 67 | J25: 68 | K25: 69 | L25: 70 | M25: 71 | N25: 72 | O25: 73 | P25: 74 | Q25: 75 | R25: 76 | S25: 77 | T25: 78 | U25: 79 | V25: 80 | X25: 81 | Y25: 82 | Z25: 83 | AA25: 84 | AB25: 85 | AC25: 86 | AD25: 87 | AF25: 88 | AG25: 89 | AH25: 90 | AI25: 91 | AJ25: 92 | AK25: 93 | AL25: 94 | AM25: 95 | AN25: 96 | AO25: 97
B26: 64 | C26: 65 | D26: 66 | F26: 67 | G26: 68 | H26: 69 | I26: 70 | J26: 71 | K26: 72 | L26: 73 | M26: 74 | N26: 75 | O26: 76 | P26: 77 | Q26: 78 | R26: 79 | S26: 80 | T26: 81 | U26: 82 | V26: 83 | X26: 84 | Y26: 85 | Z26: 86 | AA26: 87 | AB26: 88 | AC26: 89 | AD26: 90 | AF26: 91 | AG26: 92 | AH26: 93 | AI26: 94 | AJ26: 95 | AK26: 96 | AL26: 97 | AM26: 98 | AN26: 99 | AO26: 100
B27: 905 | C27: 906 | D27: 907 | F27: 908 | G27: 909 | H27: 910 | I27: 911 | J27: 912 | K27: 913 | L27: 914 | M27: 915 | N27: 916 | O27: 917 | P27: 918 | Q27: 919 | R27: 920 | S27: 921 | T27: 922 | U27: 923 | V27: 924 | X27: 925 | Y27: 926 | Z27: 927 | AA27: 928 | AB27: 929 | AC27: 930 | AD27: 931 | AF27: 932 | AG27: 933 | AH27: 934 | AI27: 935 | AJ27: 936 | AK27: 937 | AL27: 938 | AM27: 939 | AN27: 940 | AO27: 941
B28: 98 | C28: 99 | D28: 100 | F28: 101 | G28: 102 | H28: 103 | I28: 104 | J28: 105 | K28: 106 | L28: 107 | M28: 108 | N28: 109 | O28: 110 | P28: 111 | Q28: 112 | R28: 113 | S28: 114 | T28: 115 | U28: 116 | V28: 117 | X28: 118 | Y28: 119 | Z28: 120 | AA28: 121 | AB28: 122 | AC28: 123 | AD28: 124 | AF28: 125 | AG28: 126 | AH28: 127 | AI28: 128 | AJ28: 129 | AK28: 130 | AL28: 131 | AM28: 132 | AN28: 133 | AO28: 134
B29: 551 | C29: 552 | D29: 553 | F29: 554 | G29: 555 | H29: 556 | I29: 557 | J29: 558 | K29: 559 | L29: 560 | M29: 561 | N29: 562 | O29: 563 | P29: 564 | Q29: 565 | R29: 566 | S29: 567 | T29: 568 | U29: 569 | V29: 570 | X29: 571 | Y29: 572 | Z29: 573 | AA29: 574 | AB29: 575 | AC29: 576 | AD29: 577 | AF29: 578 | AG29: 579 | AH29: 580 | AI29: 581 | AJ29: 582 | AK29: 583 | AL29: 584 | AM29: 585 | AN29: 586 | AO29: 587
B30: 72 | C30: 73 | D30: 74 | F30: 75 | G30: 76 | H30: 77 | I30: 78 | J30: 79 | K30: 80 | L30: 81 | M30: 82 | N30: 83 | O30: 84 | P30: 85 | Q30: 86 | R30: 87 | S30: 88 | T30: 89 | U30: 90 | V30: 91 | X30: 92 | Y30: 93 | Z30: 94 | AA30: 95 | AB30: 96 | AC30: 97 | AD30: 98 | AF30: 99 | AG30: 100 | AH30: 101 | AI30: 102 | AJ30: 103 | AK30: 104 | AL30: 105 | AM30: 106 | AN30: 107 | AO30: 108
B31: 65 | C31: 66 | D31: 67 | F31: 68 | G31: 69 | H31: 70 | I31: 71 | J31: 72 | K31: 73 | L31: 74 | M31: 75 | N31: 76 | O31: 77 | P31: 78 | Q31: 79 | R31: 80 | S31: 81 | T31: 82 | U31: 83 | V31: 84 | X31: 85 | Y31: 86 | Z31: 87 | AA31: 88 | AB31: 89 | AC31: 90 | AD31: 91 | AF31: 92 | AG31: 93 | AH31: 94 | AI31: 95 | AJ31: 96 | AK31: 97 | AL31: 98 | AM31: 99 | AN31: 100 | AO31: 101
B32: 68 | C32: 69 | D32: 70 | F32: 71 | G32: 72 | H32: 73 | I32: 74 | J32: 75 | K32: 76 | L32: 77 | M32: 78 | N32: 79 | O32: 80 | P32: 81 | Q32: 82 | R32: 83 | S32: 84 | T32: 85 | U32: 86 | V32: 87 | X32: 88 | Y32: 89 | Z32: 90 | AA32: 91 | AB32: 92 | AC32: 93 | AD32: 94 | AF32: 95 | AG32: 96 | AH32: 97 | AI32: 98 | AJ32: 99 | AK32: 100 | AL32: 101 | AM32: 102 | AN32: 103 | AO32: 104
B33: 909 | C33: 910 | D33: 911 | F33: 912 | G33: 913 | H33: 914 | I33: 915 | J33: 916 | K33: 917 | L33: 918 | M33: 919 | N33: 920 | O33: 921 | P33: 922 | Q33: 923 | R33: 924 | S33: 925 | T33: 926 | U33: 927 | V33: 928 | X33: 929 | Y33: =X33+1 -> 930 | Z33: 931 | AA33: 932 | AB33: 933 | AC33: 934 | AD33: 935 | AF33: 936 | AG33: 937 | AH33: 938 | AI33: 939 | AJ33: 940 | AK33: 941 | AL33: 942 | AM33: 943 | AN33: 944 | AO33: 945
B34: 102 | C34: 103 | D34: 104 | F34: 105 | G34: 106 | H34: =G34+1 -> 107 | I34: 108 | J34: 109 | K34: 110 | L34: 111 | M34: 112 | N34: 113 | O34: 114 | P34: 115 | Q34: 116 | R34: 117 | S34: 118 | T34: 119 | U34: 120 | V34: 121 | X34: 122 | Y34: 123 | Z34: 124 | AA34: 125 | AB34: 126 | AC34: 127 | AD34: 128 | AF34: 129 | AG34: 130 | AH34: 131 | AI34: 132 | AJ34: 133 | AK34: 134 | AL34: 135 | AM34: 136 | AN34: 137 | AO34: 138
B35: 555 | C35: 556 | D35: 557 | F35: 558 | G35: 559 | H35: 560 | I35: 561 | J35: 562 | K35: 563 | L35: 564 | M35: 565 | N35: 566 | O35: 567 | P35: 568 | Q35: 569 | R35: 570 | S35: 571 | T35: 572 | U35: 573 | V35: 574 | X35: 575 | Y35: 576 | Z35: 577 | AA35: 578 | AB35: 579 | AC35: 580 | AD35: 581 | AF35: 582 | AG35: 583 | AH35: 584 | AI35: 585 | AJ35: 586 | AK35: 587 | AL35: 588 | AM35: 589 | AN35: 590 | AO35: 591
B36: =C30+3 -> 76 | C36: =D30+3 -> 77 | D36: 78 | F36: 79 | G36: 80 | H36: 81 | I36: 82 | J36: 83 | K36: 84 | L36: 85 | M36: 86 | N36: 87 | O36: 88 | P36: 89 | Q36: 90 | R36: 91 | S36: 92 | T36: 93 | U36: 94 | V36: 95 | X36: 96 | Y36: 97 | Z36: 98 | AA36: 99 | AB36: 100 | AC36: 101 | AD36: 102 | AF36: 103 | AG36: 104 | AH36: 105 | AI36: 106 | AJ36: 107 | AK36: 108 | AL36: 109 | AM36: 110 | AN36: 111 | AO36: 112
B37: =C31+3 -> 69 | C37: 70 | D37: 71 | F37: 72 | G37: 73 | H37: 74 | I37: 75 | J37: 76 | K37: 77 | L37: 78 | M37: 79 | N37: 80 | O37: 81 | P37: 82 | Q37: 83 | R37: 84 | S37: 85 | T37: 86 | U37: 87 | V37: 88 | X37: 89 | Y37: 90 | Z37: 91 | AA37: 92 | AB37: 93 | AC37: 94 | AD37: 95 | AF37: 96 | AG37: 97 | AH37: 98 | AI37: 99 | AJ37: 100 | AK37: 101 | AL37: 102 | AM37: 103 | AN37: 104 | AO37: 105
B38: 72 | C38: 73 | D38: 74 | F38: 75 | G38: 76 | H38: 77 | I38: 78 | J38: 79 | K38: 80 | L38: 81 | M38: 82 | N38: 83 | O38: 84 | P38: 85 | Q38: 86 | R38: 87 | S38: 88 | T38: 89 | U38: 90 | V38: 91 | X38: 92 | Y38: 93 | Z38: 94 | AA38: 95 | AB38: 96 | AC38: 97 | AD38: 98 | AF38: 99 | AG38: 100 | AH38: 101 | AI38: 102 | AJ38: 103 | AK38: 104 | AL38: 105 | AM38: 106 | AN38: 107 | AO38: 108
B39: 913 | C39: 914 | D39: 915 | F39: 916 | G39: 917 | H39: 918 | I39: 919 | J39: 920 | K39: 921 | L39: 922 | M39: 923 | N39: 924 | O39: 925 | P39: 926 | Q39: 927 | R39: 928 | S39: 929 | T39: 930 | U39: 931 | V39: 932 | X39: 933 | Y39: 934 | Z39: 935 | AA39: 936 | AB39: 937 | AC39: 938 | AD39: 939 | AF39: 940 | AG39: 941 | AH39: 942 | AI39: 943 | AJ39: 944 | AK39: 945 | AL39: 946 | AM39: 947 | AN39: 948 | AO39: 949
B40: 619.8380952 | C40: =B40+1 -> 620.8380952 | D40: 621.8380952 | F40: =D40+1 -> 622.8380952 | G40: 623.8380952 | H40: 624.8380952 | I40: 625.8380952 | J40: 626.8380952 | K40: 627.8380952 | L40: 628.8380952 | M40: 629.8380952 | N40: 630.8380952 | O40: 631.8380952 | P40: 632.8380952 | Q40: 633.8380952 | R40: 634.8380952 | S40: 635.8380952 | T40: 636.8380952 | U40: 637.8380952 | V40: 638.8380952 | X40: 639.8380952 | Y40: 640.8380952 | Z40: 641.8380952 | AA40: 642.8380952 | AB40: 643.8380952 | AC40: 644.8380952 | AD40: 645.8380952 | AF40: 646.8380952 | AG40: 647.8380952 | AH40: 648.8380952 | AI40: 649.8380952 | AJ40: 650.8380952 | AK40: 651.8380952 | AL40: 652.8380952 | AM40: 653.8380952 | AN40: 654.8380952 | AO40: 655.8380952
B41: 631.8095238 | C41: =B41+1 -> 632.8095238 | D41: 633.8095238 | F41: 634.8095238 | G41: 635.8095238 | H41: 636.8095238 | I41: 637.8095238 | J41: 638.8095238 | K41: 639.8095238 | L41: 640.8095238 | M41: 641.8095238 | N41: 642.8095238 | O41: 643.8095238 | P41: 644.8095238 | Q41: 645.8095238 | R41: 646.8095238 | S41: 647.8095238 | T41: 648.8095238 | U41: 649.8095238 | V41: 650.8095238 | X41: 651.8095238 | Y41: 652.8095238 | Z41: 653.8095238 | AA41: 654.8095238 | AB41: 655.8095238 | AC41: 656.8095238 | AD41: 657.8095238 | AF41: 658.8095238 | AG41: 659.8095238 | AH41: =AG41+1 -> 660.8095238 | AI41: 661.8095238 | AJ41: 662.8095238 | AK41: 663.8095238 | AL41: 664.8095238 | AM41: 665.8095238 | AN41: 666.8095238 | AO41: 667.8095238
B42: 643.7809524 | C42: =B42+1 -> 644.7809524 | D42: 645.7809524 | F42: 646.7809524 | G42: 647.7809524 | H42: 648.7809524 | I42: 649.7809524 | J42: 650.7809524 | K42: 651.7809524 | L42: 652.7809524 | M42: 653.7809524 | N42: 654.7809524 | O42: 655.7809524 | P42: 656.7809524 | Q42: 657.7809524 | R42: 658.7809524 | S42: 659.7809524 | T42: 660.7809524 | U42: 661.7809524 | V42: 662.7809524 | X42: 663.7809524 | Y42: 664.7809524 | Z42: 665.7809524 | AA42: 666.7809524 | AB42: 667.7809524 | AC42: 668.7809524 | AD42: 669.7809524 | AF42: 670.7809524 | AG42: 671.7809524 | AH42: 672.7809524 | AI42: 673.7809524 | AJ42: 674.7809524 | AK42: 675.7809524 | AL42: 676.7809524 | AM42: 677.7809524 | AN42: 678.7809524 | AO42: 679.7809524
B43: 655.752381 | C43: 656.752381 | D43: 657.752381 | F43: 658.752381 | G43: 659.752381 | H43: 660.752381 | I43: 661.752381 | J43: 662.752381 | K43: 663.752381 | L43: 664.752381 | M43: 665.752381 | N43: 666.752381 | O43: 667.752381 | P43: 668.752381 | Q43: 669.752381 | R43: 670.752381 | S43: 671.752381 | T43: 672.752381 | U43: 673.752381 | V43: 674.752381 | X43: 675.752381 | Y43: 676.752381 | Z43: 677.752381 | AA43: 678.752381 | AB43: 679.752381 | AC43: 680.752381 | AD43: 681.752381 | AF43: 682.752381 | AG43: 683.752381 | AH43: 684.752381 | AI43: 685.752381 | AJ43: 686.752381 | AK43: 687.752381 | AL43: 688.752381 | AM43: 689.752381 | AN43: 690.752381 | AO43: 691.752381
B44: 667.7238095 | C44: 668.7238095 | D44: 669.7238095 | F44: 670.7238095 | G44: 671.7238095 | H44: 672.7238095 | I44: 673.7238095 | J44: 674.7238095 | K44: 675.7238095 | L44: 676.7238095 | M44: 677.7238095 | N44: 678.7238095 | O44: 679.7238095 | P44: 680.7238095 | Q44: 681.7238095 | R44: 682.7238095 | S44: 683.7238095 | T44: 684.7238095 | U44: 685.7238095 | V44: 686.7238095 | X44: 687.7238095 | Y44: 688.7238095 | Z44: 689.7238095 | AA44: 690.7238095 | AB44: 691.7238095 | AC44: 692.7238095 | AD44: 693.7238095 | AF44: 694.7238095 | AG44: 695.7238095 | AH44: 696.7238095 | AI44: 697.7238095 | AJ44: 698.7238095 | AK44: 699.7238095 | AL44: 700.7238095 | AM44: 701.7238095 | AN44: 702.7238095 | AO44: 703.7238095
B45: 679.6952381 | C45: 680.6952381 | D45: 681.6952381 | F45: 682.6952381 | G45: 683.6952381 | H45: 684.6952381 | I45: 685.6952381 | J45: 686.6952381 | K45: 687.6952381 | L45: 688.6952381 | M45: 689.6952381 | N45: 690.6952381 | O45: 691.6952381 | P45: 692.6952381 | Q45: 693.6952381 | R45: 694.6952381 | S45: 695.6952381 | T45: 696.6952381 | U45: 697.6952381 | V45: 698.6952381 | X45: 699.6952381 | Y45: 700.6952381 | Z45: 701.6952381 | AA45: 702.6952381 | AB45: 703.6952381 | AC45: 704.6952381 | AD45: 705.6952381 | AF45: 706.6952381 | AG45: 707.6952381 | AH45: 708.6952381 | AI45: 709.6952381 | AJ45: 710.6952381 | AK45: 711.6952381 | AL45: 712.6952381 | AM45: 713.6952381 | AN45: 714.6952381 | AO45: 715.6952381
B46: 691.6666667 | C46: 692.6666667 | D46: 693.6666667 | F46: 694.6666667 | G46: 695.6666667 | H46: 696.6666667 | I46: 697.6666667 | J46: 698.6666667 | K46: 699.6666667 | L46: 700.6666667 | M46: 701.6666667 | N46: 702.6666667 | O46: 703.6666667 | P46: 704.6666667 | Q46: 705.6666667 | R46: 706.6666667 | S46: 707.6666667 | T46: 708.6666667 | U46: 709.6666667 | V46: 710.6666667 | X46: 711.6666667 | Y46: 712.6666667 | Z46: 713.6666667 | AA46: 714.6666667 | AB46: 715.6666667 | AC46: 716.6666667 | AD46: 717.6666667 | AF46: 718.6666667 | AG46: 719.6666667 | AH46: 720.6666667 | AI46: 721.6666667 | AJ46: 722.6666667 | AK46: 723.6666667 | AL46: 724.6666667 | AM46: 725.6666667 | AN46: 726.6666667 | AO46: 727.6666667
B47: 703.6380952 | C47: 704.6380952 | D47: 705.6380952 | F47: 706.6380952 | G47: 707.6380952 | H47: 708.6380952 | I47: 709.6380952 | J47: 710.6380952 | K47: 711.6380952 | L47: 712.6380952 | M47: 713.6380952 | N47: 714.6380952 | O47: 715.6380952 | P47: 716.6380952 | Q47: 717.6380952 | R47: 718.6380952 | S47: 719.6380952 | T47: 720.6380952 | U47: 721.6380952 | V47: 722.6380952 | X47: 723.6380952 | Y47: 724.6380952 | Z47: 725.6380952 | AA47: 726.6380952 | AB47: 727.6380952 | AC47: 728.6380952 | AD47: 729.6380952 | AF47: 730.6380952 | AG47: 731.6380952 | AH47: 732.6380952 | AI47: 733.6380952 | AJ47: 734.6380952 | AK47: 735.6380952 | AL47: 736.6380952 | AM47: 737.6380952 | AN47: 738.6380952 | AO47: 739.6380952
B48: 715.6095238 | C48: 716.6095238 | D48: 717.6095238 | F48: 718.6095238 | G48: 719.6095238 | H48: 720.6095238 | I48: 721.6095238 | J48: 722.6095238 | K48: 723.6095238 | L48: 724.6095238 | M48: 725.6095238 | N48: 726.6095238 | O48: 727.6095238 | P48: 728.6095238 | Q48: 729.6095238 | R48: 730.6095238 | S48: 731.6095238 | T48: 732.6095238 | U48: 733.6095238 | V48: 734.6095238 | X48: 735.6095238 | Y48: 736.6095238 | Z48: 737.6095238 | AA48: 738.6095238 | AB48: 739.6095238 | AC48: 740.6095238 | AD48: 741.6095238 | AF48: 742.6095238 | AG48: 743.6095238 | AH48: 744.6095238 | AI48: 745.6095238 | AJ48: 746.6095238 | AK48: =AJ48+1 -> 747.6095238 | AL48: 748.6095238 | AM48: 749.6095238 | AN48: 750.6095238 | AO48: 751.6095238
B49: 727.5809524 | C49: 728.5809524 | D49: 729.5809524 | F49: 730.5809524 | G49: 731.5809524 | H49: 732.5809524 | I49: 733.5809524 | J49: 734.5809524 | K49: 735.5809524 | L49: 736.5809524 | M49: 737.5809524 | N49: 738.5809524 | O49: 739.5809524 | P49: 740.5809524 | Q49: 741.5809524 | R49: 742.5809524 | S49: 743.5809524 | T49: =S49+1 -> 744.5809524 | U49: 745.5809524 | V49: 746.5809524 | X49: 747.5809524 | Y49: 748.5809524 | Z49: 749.5809524 | AA49: 750.5809524 | AB49: 751.5809524 | AC49: 752.5809524 | AD49: 753.5809524 | AF49: 754.5809524 | AG49: 755.5809524 | AH49: 756.5809524 | AI49: 757.5809524 | AJ49: 758.5809524 | AK49: 759.5809524 | AL49: 760.5809524 | AM49: 761.5809524 | AN49: 762.5809524 | AO49: 763.5809524

Sheet VBA Macros
A2: Use of VBA Macros
A4: 123 | B4: =A4+1 -> 124 | C4: =B4+1 -> 125 | D4: =C4+1 -> 126 | E4: 127 | F4: 128 | G4: 129 | H4: =G4+1 -> 130 | I4: 131 | J4: 132 | K4: 133 | L4: 134 | M4: 135 | N4: 136 | O4: 137 | P4: 138 | Q4: 139 | R4: 140 | S4: 141 | T4: 142 | U4: =T4+1 -> 143 | V4: 144 | W4: 145 | X4: 146 | Y4: 147 | Z4: 148 | AA4: 149 | AB4: =AA4+1 -> 150 | AC4: 151 | AD4: =AC4+1 -> 152 | AE4: =AD4+1 -> 153 | AF4: 154 | AG4: 155 | AH4: 156 | AI4: 157 | AJ4: 158 | AK4: 159
A5: 43 | B5: =A5+1 -> 44 | C5: 45 | D5: 46 | E5: 47 | F5: 48 | G5: 49 | H5: 50 | I5: 51 | J5: 52 | K5: 53 | L5: 54 | M5: 55 | N5: 56 | O5: 57 | P5: 58 | Q5: 59 | R5: 60 | S5: 61 | T5: 62 | U5: 63 | V5: 64 | W5: 65 | X5: 66 | Y5: 67 | Z5: 68 | AA5: 69 | AB5: 70 | AC5: 71 | AD5: =AC5+1 -> 72 | AE5: 73 | AF5: 74 | AG5: 75 | AH5: 76 | AI5: 77 | AJ5: 78 | AK5: 79
A6: 567 | B6: 568 | C6: 569 | D6: 570 | E6: 571 | F6: 572 | G6: 573 | H6: 574 | I6: 575 | J6: 576 | K6: 577 | L6: 578 | M6: 579 | N6: 580 | O6: 581 | P6: 582 | Q6: 583 | R6: 584 | S6: 585 | T6: 586 | U6: 587 | V6: 588 | W6: 589 | X6: 590 | Y6: 591 | Z6: 592 | AA6: 593 | AB6: 594 | AC6: 595 | AD6: 596 | AE6: 597 | AF6: 598 | AG6: 599 | AH6: 600 | AI6: 601 | AJ6: 602 | AK6: 603
A7: 78 | B7: 79 | C7: 80 | D7: 81 | E7: 82 | F7: 83 | G7: 84 | H7: 85 | I7: 86 | J7: 87 | K7: 88 | L7: 89 | M7: 90 | N7: 91 | O7: 92 | P7: 93 | Q7: 94 | R7: 95 | S7: 96 | T7: 97 | U7: 98 | V7: 99 | W7: 100 | X7: 101 | Y7: 102 | Z7: 103 | AA7: 104 | AB7: 105 | AC7: 106 | AD7: 107 | AE7: 108 | AF7: 109 | AG7: 110 | AH7: 111 | AI7: 112 | AJ7: 113 | AK7: 114
A8: 34 | B8: 35 | C8: 36 | D8: 37 | E8: 38 | F8: 39 | G8: 40 | H8: 41 | I8: 42 | J8: 43 | K8: 44 | L8: 45 | M8: 46 | N8: 47 | O8: 48 | P8: 49 | Q8: 50 | R8: 51 | S8: 52 | T8: 53 | U8: 54 | V8: 55 | W8: 56 | X8: 57 | Y8: 58 | Z8: 59 | AA8: 60 | AB8: 61 | AC8: 62 | AD8: 63 | AE8: 64 | AF8: 65 | AG8: 66 | AH8: 67 | AI8: 68 | AJ8: 69 | AK8: 70
A9: 568 | B9: 569 | C9: 570 | D9: 571 | E9: 572 | F9: 573 | G9: 574 | H9: 575 | I9: 576 | J9: 577 | K9: 578 | L9: 579 | M9: 580 | N9: 581 | O9: 582 | P9: 583 | Q9: 584 | R9: 585 | S9: 586 | T9: 587 | U9: 588 | V9: 589 | W9: 590 | X9: 591 | Y9: 592 | Z9: 593 | AA9: 594 | AB9: 595 | AC9: 596 | AD9: 597 | AE9: 598 | AF9: 599 | AG9: 600 | AH9: 601 | AI9: 602 | AJ9: 603 | AK9: 604
A10: 41 | B10: 42 | C10: 43 | D10: 44 | E10: 45 | F10: 46 | G10: 47 | H10: 48 | I10: 49 | J10: 50 | K10: 51 | L10: 52 | M10: 53 | N10: 54 | O10: 55 | P10: 56 | Q10: 57 | R10: 58 | S10: 59 | T10: 60 | U10: 61 | V10: 62 | W10: 63 | X10: 64 | Y10: 65 | Z10: 66 | AA10: 67 | AB10: 68 | AC10: 69 | AD10: 70 | AE10: 71 | AF10: 72 | AG10: 73 | AH10: 74 | AI10: 75 | AJ10: 76 | AK10: 77
A11: 54 | B11: 55 | C11: 56 | D11: 57 | E11: 58 | F11: 59 | G11: 60 | H11: 61 | I11: 62 | J11: 63 | K11: 64 | L11: 65 | M11: 66 | N11: 67 | O11: 68 | P11: 69 | Q11: 70 | R11: 71 | S11: 72 | T11: 73 | U11: 74 | V11: 75 | W11: 76 | X11: 77 | Y11: 78 | Z11: 79 | AA11: 80 | AB11: 81 | AC11: 82 | AD11: 83 | AE11: 84 | AF11: 85 | AG11: 86 | AH11: 87 | AI11: 88 | AJ11: 89 | AK11: 90
A12: 879 | B12: 880 | C12: 881 | D12: 882 | E12: 883 | F12: 884 | G12: 885 | H12: 886 | I12: 887 | J12: 888 | K12: 889 | L12: 890 | M12: 891 | N12: 892 | O12: 893 | P12: 894 | Q12: 895 | R12: 896 | S12: 897 | T12: 898 | U12: 899 | V12: 900 | W12: 901 | X12: 902 | Y12: 903 | Z12: 904 | AA12: 905 | AB12: 906 | AC12: 907 | AD12: 908 | AE12: 909 | AF12: 910 | AG12: 911 | AH12: 912 | AI12: 913 | AJ12: 914 | AK12: 915
A13: 53 | B13: 54 | C13: 55 | D13: 56 | E13: 57 | F13: 58 | G13: 59 | H13: 60 | I13: 61 | J13: 62 | K13: 63 | L13: 64 | M13: 65 | N13: 66 | O13: 67 | P13: 68 | Q13: 69 | R13: 70 | S13: 71 | T13: 72 | U13: 73 | V13: 74 | W13: 75 | X13: 76 | Y13: 77 | Z13: 78 | AA13: 79 | AB13: 80 | AC13: 81 | AD13: 82 | AE13: 83 | AF13: 84 | AG13: 85 | AH13: 86 | AI13: 87 | AJ13: 88 | AK13: 89
A14: 56 | B14: 57 | C14: 58 | D14: 59 | E14: 60 | F14: 61 | G14: 62 | H14: 63 | I14: 64 | J14: 65 | K14: 66 | L14: 67 | M14: 68 | N14: 69 | O14: 70 | P14: 71 | Q14: 72 | R14: 73 | S14: 74 | T14: 75 | U14: 76 | V14: 77 | W14: 78 | X14: 79 | Y14: 80 | Z14: 81 | AA14: 82 | AB14: 83 | AC14: 84 | AD14: 85 | AE14: 86 | AF14: 87 | AG14: 88 | AH14: 89 | AI14: 90 | AJ14: 91 | AK14: 92
A15: 897 | B15: 898 | C15: 899 | D15: 900 | E15: 901 | F15: 902 | G15: 903 | H15: 904 | I15: =H15+1 -> 905 | J15: 906 | K15: 907 | L15: 908 | M15: 909 | N15: 910 | O15: 911 | P15: 912 | Q15: 913 | R15: 914 | S15: 915 | T15: 916 | U15: 917 | V15: 918 | W15: 919 | X15: 920 | Y15: 921 | Z15: 922 | AA15: 923 | AB15: 924 | AC15: 925 | AD15: 926 | AE15: 927 | AF15: 928 | AG15: 929 | AH15: 930 | AI15: 931 | AJ15: 932 | AK15: 933
A16: 90 | B16: 91 | C16: 92 | D16: 93 | E16: 94 | F16: 95 | G16: 96 | H16: 97 | I16: 98 | J16: 99 | K16: 100 | L16: 101 | M16: 102 | N16: 103 | O16: 104 | P16: 105 | Q16: 106 | R16: 107 | S16: 108 | T16: 109 | U16: 110 | V16: 111 | W16: 112 | X16: 113 | Y16: 114 | Z16: 115 | AA16: 116 | AB16: 117 | AC16: 118 | AD16: 119 | AE16: 120 | AF16: 121 | AG16: 122 | AH16: 123 | AI16: 124 | AJ16: 125 | AK16: 126
A17: 543 | B17: 544 | C17: 545 | D17: 546 | E17: 547 | F17: 548 | G17: 549 | H17: 550 | I17: 551 | J17: 552 | K17: 553 | L17: 554 | M17: 555 | N17: 556 | O17: 557 | P17: 558 | Q17: 559 | R17: 560 | S17: 561 | T17: 562 | U17: 563 | V17: 564 | W17: 565 | X17: 566 | Y17: 567 | Z17: 568 | AA17: 569 | AB17: 570 | AC17: 571 | AD17: 572 | AE17: 573 | AF17: 574 | AG17: 575 | AH17: 576 | AI17: 577 | AJ17: 578 | AK17: 579
A19: =B13+3 -> 57 | B19: =C13+3 -> 58 | C19: =D13+3 -> 59 | D19: 60 | E19: 61 | F19: 62 | G19: 63 | H19: =G19+1 -> 64 | I19: 65 | J19: 66 | K19: 67 | L19: 68 | M19: 69 | N19: 70 | O19: 71 | P19: 72 | Q19: 73 | R19: 74 | S19: 75 | T19: 76 | U19: =T19+1 -> 77 | V19: 78 | W19: 79 | X19: 80 | Y19: 81 | Z19: 82 | AA19: 83 | AB19: =AA19+1 -> 84 | AC19: 85 | AD19: 86 | AE19: 87 | AF19: 88 | AG19: 89 | AH19: 90 | AI19: 91 | AJ19: 92 | AK19: 93
A20: =B14+3 -> 60 | B20: 61 | C20: 62 | D20: 63 | E20: 64 | F20: 65 | G20: 66 | H20: 67 | I20: 68 | J20: 69 | K20: 70 | L20: 71 | M20: 72 | N20: 73 | O20: 74 | P20: 75 | Q20: 76 | R20: 77 | S20: 78 | T20: 79 | U20: 80 | V20: 81 | W20: 82 | X20: 83 | Y20: 84 | Z20: 85 | AA20: 86 | AB20: 87 | AC20: 88 | AD20: 89 | AE20: 90 | AF20: 91 | AG20: 92 | AH20: 93 | AI20: 94 | AJ20: 95 | AK20: 96
A21: 901 | B21: 902 | C21: 903 | D21: 904 | E21: 905 | F21: =E21+1 -> 906 | G21: 907 | H21: 908 | I21: 909 | J21: 910 | K21: 911 | L21: 912 | M21: 913 | N21: 914 | O21: 915 | P21: 916 | Q21: 917 | R21: 918 | S21: 919 | T21: 920 | U21: 921 | V21: 922 | W21: 923 | X21: 924 | Y21: 925 | Z21: 926 | AA21: 927 | AB21: 928 | AC21: 929 | AD21: 930 | AE21: 931 | AF21: 932 | AG21: 933 | AH21: 934 | AI21: 935 | AJ21: 936 | AK21: 937
A22: 94 | B22: 95 | C22: 96 | D22: 97 | E22: 98 | F22: 99 | G22: 100 | H22: 101 | I22: 102 | J22: 103 | K22: 104 | L22: 105 | M22: 106 | N22: 107 | O22: 108 | P22: 109 | Q22: 110 | R22: 111 | S22: 112 | T22: 113 | U22: 114 | V22: 115 | W22: 116 | X22: 117 | Y22: 118 | Z22: 119 | AA22: 120 | AB22: 121 | AC22: 122 | AD22: 123 | AE22: 124 | AF22: 125 | AG22: 126 | AH22: 127 | AI22: 128 | AJ22: 129 | AK22: 130
A23: 547 | B23: 548 | C23: 549 | D23: 550 | E23: 551 | F23: 552 | G23: 553 | H23: 554 | I23: 555 | J23: 556 | K23: 557 | L23: 558 | M23: 559 | N23: 560 | O23: 561 | P23: 562 | Q23: 563 | R23: 564 | S23: 565 | T23: 566 | U23: 567 | V23: 568 | W23: 569 | X23: 570 | Y23: 571 | Z23: 572 | AA23: 573 | AB23: 574 | AC23: 575 | AD23: 576 | AE23: 577 | AF23: 578 | AG23: 579 | AH23: 580 | AI23: 581 | AJ23: 582 | AK23: 583
A24: 3 | B24: 3 | C24: 3 | D24: 3 | E24: 3 | F24: 4 | G24: 5 | H24: 6 | I24: 7 | J24: 8 | K24: 9 | L24: 10 | M24: 11 | N24: 12 | O24: 13 | P24: 14 | Q24: 15 | R24: 16 | S24: 17 | T24: 18 | U24: 19 | V24: 20 | W24: 21 | X24: 22 | Y24: 23 | Z24: 24 | AA24: 25 | AB24: 26 | AC24: 27 | AD24: 28 | AE24: 29 | AF24: 30 | AG24: 31 | AH24: 32 | AI24: 33 | AJ24: 34 | AK24: 35
A25: 61 | B25: 62 | C25: 63 | D25: 64 | E25: 65 | F25: 66 | G25: 67 | H25: 68 | I25: 69 | J25: 70 | K25: 71 | L25: 72 | M25: 73 | N25: 74 | O25: 75 | P25: 76 | Q25: 77 | R25: 78 | S25: 79 | T25: 80 | U25: 81 | V25: 82 | W25: 83 | X25: 84 | Y25: 85 | Z25: 86 | AA25: 87 | AB25: 88 | AC25: 89 | AD25: 90 | AE25: 91 | AF25: 92 | AG25: 93 | AH25: 94 | AI25: 95 | AJ25: 96 | AK25: 97
A26: 64 | B26: 65 | C26: 66 | D26: 67 | E26: 68 | F26: 69 | G26: 70 | H26: 71 | I26: 72 | J26: 73 | K26: 74 | L26: 75 | M26: 76 | N26: 77 | O26: 78 | P26: 79 | Q26: 80 | R26: 81 | S26: 82 | T26: 83 | U26: 84 | V26: 85 | W26: 86 | X26: 87 | Y26: 88 | Z26: 89 | AA26: 90 | AB26: 91 | AC26: 92 | AD26: 93 | AE26: 94 | AF26: 95 | AG26: 96 | AH26: 97 | AI26: 98 | AJ26: 99 | AK26: 100
A27: 905 | B27: 906 | C27: 907 | D27: 908 | E27: 909 | F27: 910 | G27: 911 | H27: 912 | I27: 913 | J27: 914 | K27: 915 | L27: 916 | M27: 917 | N27: 918 | O27: 919 | P27: 920 | Q27: 921 | R27: 922 | S27: 923 | T27: 924 | U27: 925 | V27: 926 | W27: 927 | X27: 928 | Y27: 929 | Z27: 930 | AA27: 931 | AB27: 932 | AC27: 933 | AD27: 934 | AE27: 935 | AF27: 936 | AG27: 937 | AH27: 938 | AI27: 939 | AJ27: 940 | AK27: 941
A28: 98 | B28: 99 | C28: 100 | D28: 101 | E28: 102 | F28: 103 | G28: 104 | H28: 105 | I28: 106 | J28: 107 | K28: 108 | L28: 109 | M28: 110 | N28: 111 | O28: 112 | P28: 113 | Q28: 114 | R28: 115 | S28: 116 | T28: 117 | U28: 118 | V28: 119 | W28: 120 | X28: 121 | Y28: 122 | Z28: 123 | AA28: 124 | AB28: 125 | AC28: 126 | AD28: 127 | AE28: 128 | AF28: 129 | AG28: 130 | AH28: 131 | AI28: 132 | AJ28: 133 | AK28: 134
A29: 551 | B29: 552 | C29: 553 | D29: 554 | E29: 555 | F29: 556 | G29: 557 | H29: 558 | I29: 559 | J29: 560 | K29: 561 | L29: 562 | M29: 563 | N29: 564 | O29: 565 | P29: 566 | Q29: 567 | R29: 568 | S29: 569 | T29: 570 | U29: 571 | V29: =U29+1 -> 572 | W29: 573 | X29: 574 | Y29: 575 | Z29: 576 | AA29: 577 | AB29: 578 | AC29: 579 | AD29: 580 | AE29: 581 | AF29: 582 | AG29: 583 | AH29: 584 | AI29: 585 | AJ29: 586 | AK29: 587
A30: 6 | B30: 6 | C30: 6 | D30: 6 | E30: 7 | F30: 8 | G30: 9 | H30: 10 | I30: 11 | J30: 12 | K30: 13 | L30: 14 | M30: 15 | N30: 16 | O30: 17 | P30: 18 | Q30: 19 | R30: 20 | S30: 21 | T30: 22 | U30: 23 | V30: 24 | W30: 25 | X30: 26 | Y30: 27 | Z30: 28 | AA30: 29 | AB30: 30 | AC30: 31 | AD30: 32 | AE30: 33 | AF30: 34 | AG30: 35 | AH30: 36 | AI30: 37 | AJ30: 38 | AK30: 39
A31: 65 | B31: 66 | C31: 67 | D31: 68 | E31: 69 | F31: 70 | G31: 71 | H31: 72 | I31: 73 | J31: 74 | K31: 75 | L31: 76 | M31: 77 | N31: 78 | O31: 79 | P31: 80 | Q31: 81 | R31: 82 | S31: 83 | T31: 84 | U31: 85 | V31: 86 | W31: 87 | X31: 88 | Y31: 89 | Z31: 90 | AA31: 91 | AB31: 92 | AC31: 93 | AD31: 94 | AE31: 95 | AF31: 96 | AG31: 97 | AH31: 98 | AI31: 99 | AJ31: 100 | AK31: 101
A32: 68 | B32: 69 | C32: 70 | D32: 71 | E32: 72 | F32: 73 | G32: 74 | H32: 75 | I32: 76 | J32: 77 | K32: 78 | L32: 79 | M32: 80 | N32: 81 | O32: 82 | P32: 83 | Q32: 84 | R32: 85 | S32: 86 | T32: 87 | U32: 88 | V32: 89 | W32: 90 | X32: 91 | Y32: 92 | Z32: 93 | AA32: 94 | AB32: 95 | AC32: 96 | AD32: 97 | AE32: 98 | AF32: 99 | AG32: 100 | AH32: 101 | AI32: 102 | AJ32: 103 | AK32: 104
A33: 909 | B33: 910 | C33: 911 | D33: 912 | E33: 913 | F33: 914 | G33: 915 | H33: 916 | I33: 917 | J33: 918 | K33: 919 | L33: 920 | M33: 921 | N33: 922 | O33: 923 | P33: 924 | Q33: 925 | R33: 926 | S33: 927 | T33: 928 | U33: 929 | V33: 930 | W33: 931 | X33: 932 | Y33: 933 | Z33: 934 | AA33: 935 | AB33: 936 | AC33: 937 | AD33: 938 | AE33: 939 | AF33: 940 | AG33: 941 | AH33: 942 | AI33: 943 | AJ33: 944 | AK33: 945
A34: 102 | B34: 103 | C34: 104 | D34: 105 | E34: 106 | F34: 107 | G34: 108 | H34: 109 | I34: 110 | J34: 111 | K34: 112 | L34: 113 | M34: 114 | N34: 115 | O34: 116 | P34: 117 | Q34: 118 | R34: 119 | S34: 120 | T34: 121 | U34: 122 | V34: 123 | W34: 124 | X34: 125 | Y34: 126 | Z34: 127 | AA34: 128 | AB34: 129 | AC34: 130 | AD34: 131 | AE34: 132 | AF34: 133 | AG34: 134 | AH34: 135 | AI34: 136 | AJ34: 137 | AK34: 138
A35: 555 | B35: 556 | C35: 557 | D35: 558 | E35: 559 | F35: 560 | G35: 561 | H35: 562 | I35: 563 | J35: 564 | K35: 565 | L35: 566 | M35: 567 | N35: 568 | O35: 569 | P35: 570 | Q35: 571 | R35: 572 | S35: 573 | T35: 574 | U35: 575 | V35: 576 | W35: 577 | X35: 578 | Y35: 579 | Z35: 580 | AA35: 581 | AB35: 582 | AC35: 583 | AD35: 584 | AE35: 585 | AF35: 586 | AG35: 587 | AH35: 588 | AI35: 589 | AJ35: 590 | AK35: 591
A36: =B30+3 -> 9 | B36: =C30+3 -> 9 | C36: 9 | D36: 10 | E36: 11 | F36: 12 | G36: 13 | H36: 14 | I36: 15 | J36: 16 | K36: 17 | L36: 18 | M36: 19 | N36: 20 | O36: 21 | P36: 22 | Q36: 23 | R36: 24 | S36: 25 | T36: 26 | U36: 27 | V36: 28 | W36: 29 | X36: 30 | Y36: 31 | Z36: 32 | AA36: 33 | AB36: 34 | AC36: 35 | AD36: 36 | AE36: 37 | AF36: 38 | AG36: 39 | AH36: 40 | AI36: 41 | AJ36: 42 | AK36: 43
A37: =B31+3 -> 69 | B37: 70 | C37: 71 | D37: 72 | E37: 73 | F37: 74 | G37: 75 | H37: 76 | I37: 77 | J37: 78 | K37: 79 | L37: 80 | M37: 81 | N37: 82 | O37: 83 | P37: 84 | Q37: 85 | R37: 86 | S37: 87 | T37: 88 | U37: 89 | V37: 90 | W37: 91 | X37: 92 | Y37: 93 | Z37: 94 | AA37: 95 | AB37: 96 | AC37: 97 | AD37: 98 | AE37: 99 | AF37: 100 | AG37: 101 | AH37: 102 | AI37: 103 | AJ37: 104 | AK37: 105
A38: 72 | B38: 73 | C38: 74 | D38: 75 | E38: 76 | F38: =E38+1 -> 77 | G38: 78 | H38: 79 | I38: 80 | J38: 81 | K38: 82 | L38: 83 | M38: 84 | N38: 85 | O38: 86 | P38: 87 | Q38: 88 | R38: 89 | S38: 90 | T38: 91 | U38: 92 | V38: 93 | W38: 94 | X38: 95 | Y38: 96 | Z38: 97 | AA38: 98 | AB38: 99 | AC38: 100 | AD38: 101 | AE38: 102 | AF38: 103 | AG38: 104 | AH38: 105 | AI38: 106 | AJ38: 107 | AK38: 108
A39: 913 | B39: 914 | C39: 915 | D39: 916 | E39: 917 | F39: 918 | G39: 919 | H39: 920 | I39: 921 | J39: 922 | K39: 923 | L39: 924 | M39: 925 | N39: 926 | O39: 927 | P39: 928 | Q39: 929 | R39: 930 | S39: 931 | T39: 932 | U39: 933 | V39: 934 | W39: 935 | X39: 936 | Y39: 937 | Z39: 938 | AA39: 939 | AB39: 940 | AC39: 941 | AD39: 942 | AE39: 943 | AF39: 944 | AG39: 945 | AH39: 946 | AI39: 947 | AJ39: 948 | AK39: 949
A40: 619.8380952 | B40: =A40+1 -> 620.8380952 | C40: 621.8380952 | D40: =C40+1 -> 622.8380952 | E40: 623.8380952 | F40: 624.8380952 | G40: 625.8380952 | H40: 626.8380952 | I40: 627.8380952 | J40: 628.8380952 | K40: 629.8380952 | L40: 630.8380952 | M40: 631.8380952 | N40: 632.8380952 | O40: 633.8380952 | P40: 634.8380952 | Q40: 635.8380952 | R40: 636.8380952 | S40: 637.8380952 | T40: 638.8380952 | U40: 639.8380952 | V40: 640.8380952 | W40: 641.8380952 | X40: 642.8380952 | Y40: 643.8380952 | Z40: 644.8380952 | AA40: 645.8380952 | AB40: 646.8380952 | AC40: 647.8380952 | AD40: 648.8380952 | AE40: 649.8380952 | AF40: 650.8380952 | AG40: 651.8380952 | AH40: 652.8380952 | AI40: 653.8380952 | AJ40: 654.8380952 | AK40: 655.8380952
A41: 631.8095238 | B41: =A41+1 -> 632.8095238 | C41: 633.8095238 | D41: 634.8095238 | E41: 635.8095238 | F41: 636.8095238 | G41: 637.8095238 | H41: 638.8095238 | I41: 639.8095238 | J41: 640.8095238 | K41: 641.8095238 | L41: 642.8095238 | M41: 643.8095238 | N41: 644.8095238 | O41: 645.8095238 | P41: 646.8095238 | Q41: 647.8095238 | R41: 648.8095238 | S41: 649.8095238 | T41: 650.8095238 | U41: 651.8095238 | V41: 652.8095238 | W41: 653.8095238 | X41: 654.8095238 | Y41: 655.8095238 | Z41: 656.8095238 | AA41: 657.8095238 | AB41: 658.8095238 | AC41: 659.8095238 | AD41: =AC41+1 -> 660.8095238 | AE41: 661.8095238 | AF41: 662.8095238 | AG41: 663.8095238 | AH41: 664.8095238 | AI41: 665.8095238 | AJ41: 666.8095238 | AK41: 667.8095238
A42: 643.7809524 | B42: =A42+1 -> 644.7809524 | C42: 645.7809524 | D42: 646.7809524 | E42: 647.7809524 | F42: 648.7809524 | G42: 649.7809524 | H42: 650.7809524 | I42: 651.7809524 | J42: 652.7809524 | K42: 653.7809524 | L42: 654.7809524 | M42: 655.7809524 | N42: 656.7809524 | O42: 657.7809524 | P42: 658.7809524 | Q42: 659.7809524 | R42: 660.7809524 | S42: 661.7809524 | T42: 662.7809524 | U42: 663.7809524 | V42: 664.7809524 | W42: 665.7809524 | X42: 666.7809524 | Y42: 667.7809524 | Z42: 668.7809524 | AA42: 669.7809524 | AB42: 670.7809524 | AC42: 671.7809524 | AD42: 672.7809524 | AE42: 673.7809524 | AF42: 674.7809524 | AG42: 675.7809524 | AH42: 676.7809524 | AI42: 677.7809524 | AJ42: 678.7809524 | AK42: 679.7809524
A43: 655.752381 | B43: 656.752381 | C43: 657.752381 | D43: 658.752381 | E43: 659.752381 | F43: 660.752381 | G43: 661.752381 | H43: 662.752381 | I43: 663.752381 | J43: 664.752381 | K43: 665.752381 | L43: 666.752381 | M43: 667.752381 | N43: 668.752381 | O43: 669.752381 | P43: 670.752381 | Q43: 671.752381 | R43: 672.752381 | S43: 673.752381 | T43: 674.752381 | U43: 675.752381 | V43: 676.752381 | W43: 677.752381 | X43: 678.752381 | Y43: 679.752381 | Z43: 680.752381 | AA43: 681.752381 | AB43: 682.752381 | AC43: 683.752381 | AD43: 684.752381 | AE43: 685.752381 | AF43: 686.752381 | AG43: 687.752381 | AH43: 688.752381 | AI43: 689.752381 | AJ43: 690.752381 | AK43: 691.752381
A44: 667.7238095 | B44: 668.7238095 | C44: 669.7238095 | D44: 670.7238095 | E44: 671.7238095 | F44: 672.7238095 | G44: 673.7238095 | H44: 674.7238095 | I44: 675.7238095 | J44: 676.7238095 | K44: 677.7238095 | L44: 678.7238095 | M44: 679.7238095 | N44: 680.7238095 | O44: 681.7238095 | P44: 682.7238095 | Q44: 683.7238095 | R44: 684.7238095 | S44: 685.7238095 | T44: 686.7238095 | U44: 687.7238095 | V44: 688.7238095 | W44: 689.7238095 | X44: 690.7238095 | Y44: 691.7238095 | Z44: 692.7238095 | AA44: 693.7238095 | AB44: 694.7238095 | AC44: 695.7238095 | AD44: 696.7238095 | AE44: 697.7238095 | AF44: 698.7238095 | AG44: 699.7238095 | AH44: 700.7238095 | AI44: 701.7238095 | AJ44: 702.7238095 | AK44: 703.7238095
A45: 679.6952381 | B45: 680.6952381 | C45: 681.6952381 | D45: 682.6952381 | E45: 683.6952381 | F45: 684.6952381 | G45: 685.6952381 | H45: 686.6952381 | I45: 687.6952381 | J45: 688.6952381 | K45: 689.6952381 | L45: 690.6952381 | M45: 691.6952381 | N45: 692.6952381 | O45: 693.6952381 | P45: 694.6952381 | Q45: 695.6952381 | R45: 696.6952381 | S45: 697.6952381 | T45: 698.6952381 | U45: 699.6952381 | V45: 700.6952381 | W45: 701.6952381 | X45: 702.6952381 | Y45: 703.6952381 | Z45: 704.6952381 | AA45: 705.6952381 | AB45: 706.6952381 | AC45: 707.6952381 | AD45: 708.6952381 | AE45: 709.6952381 | AF45: 710.6952381 | AG45: 711.6952381 | AH45: 712.6952381 | AI45: 713.6952381 | AJ45: 714.6952381 | AK45: 715.6952381
A46: 691.6666667 | B46: 692.6666667 | C46: 693.6666667 | D46: 694.6666667 | E46: 695.6666667 | F46: 696.6666667 | G46: 697.6666667 | H46: 698.6666667 | I46: 699.6666667 | J46: 700.6666667 | K46: 701.6666667 | L46: 702.6666667 | M46: 703.6666667 | N46: 704.6666667 | O46: 705.6666667 | P46: 706.6666667 | Q46: 707.6666667 | R46: 708.6666667 | S46: 709.6666667 | T46: 710.6666667 | U46: 711.6666667 | V46: 712.6666667 | W46: 713.6666667 | X46: 714.6666667 | Y46: 715.6666667 | Z46: 716.6666667 | AA46: 717.6666667 | AB46: 718.6666667 | AC46: 719.6666667 | AD46: 720.6666667 | AE46: 721.6666667 | AF46: 722.6666667 | AG46: 723.6666667 | AH46: 724.6666667 | AI46: 725.6666667 | AJ46: 726.6666667 | AK46: 727.6666667
A47: 703.6380952 | B47: 704.6380952 | C47: 705.6380952 | D47: 706.6380952 | E47: 707.6380952 | F47: 708.6380952 | G47: 709.6380952 | H47: 710.6380952 | I47: 711.6380952 | J47: 712.6380952 | K47: 713.6380952 | L47: 714.6380952 | M47: 715.6380952 | N47: 716.6380952 | O47: 717.6380952 | P47: 718.6380952 | Q47: 719.6380952 | R47: 720.6380952 | S47: 721.6380952 | T47: 722.6380952 | U47: 723.6380952 | V47: 724.6380952 | W47: 725.6380952 | X47: 726.6380952 | Y47: 727.6380952 | Z47: 728.6380952 | AA47: 729.6380952 | AB47: 730.6380952 | AC47: 731.6380952 | AD47: 732.6380952 | AE47: 733.6380952 | AF47: 734.6380952 | AG47: 735.6380952 | AH47: 736.6380952 | AI47: 737.6380952 | AJ47: 738.6380952 | AK47: 739.6380952
A48: 715.6095238 | B48: 716.6095238 | C48: 717.6095238 | D48: 718.6095238 | E48: 719.6095238 | F48: 720.6095238 | G48: 721.6095238 | H48: 722.6095238 | I48: 723.6095238 | J48: 724.6095238 | K48: 725.6095238 | L48: 726.6095238 | M48: 727.6095238 | N48: 728.6095238 | O48: 729.6095238 | P48: 730.6095238 | Q48: 731.6095238 | R48: 732.6095238 | S48: 733.6095238 | T48: 734.6095238 | U48: 735.6095238 | V48: 736.6095238 | W48: 737.6095238 | X48: 738.6095238 | Y48: 739.6095238 | Z48: 740.6095238 | AA48: 741.6095238 | AB48: 742.6095238 | AC48: 743.6095238 | AD48: 744.6095238 | AE48: 745.6095238 | AF48: 746.6095238 | AG48: =AF48+1 -> 747.6095238 | AH48: 748.6095238 | AI48: 749.6095238 | AJ48: 750.6095238 | AK48: 751.6095238
A49: 727.5809524 | B49: 728.5809524 | C49: 729.5809524 | D49: 730.5809524 | E49: 731.5809524 | F49: 732.5809524 | G49: 733.5809524 | H49: 734.5809524 | I49: 735.5809524 | J49: 736.5809524 | K49: 737.5809524 | L49: 738.5809524 | M49: 739.5809524 | N49: 740.5809524 | O49: 741.5809524 | P49: 742.5809524 | Q49: 743.5809524 | R49: =Q49+1 -> 744.5809524 | S49: 745.5809524 | T49: 746.5809524 | U49: 747.5809524 | V49: 748.5809524 | W49: 749.5809524 | X49: 750.5809524 | Y49: 751.5809524 | Z49: 752.5809524 | AA49: 753.5809524 | AB49: 754.5809524 | AC49: 755.5809524 | AD49: 756.5809524 | AE49: 757.5809524 | AF49: 758.5809524 | AG49: 759.5809524 | AH49: 760.5809524 | AI49: 761.5809524 | AJ49: 762.5809524 | AK49: 763.5809524
